Workbook

Sheet Manual Inputs
B1: Company | D1: Kentucky Power Co.
B2: State/Jurisdiction | D2: Kentucky
B3: Customer Class | D3: Residential
B4: Sample Year Begins | D4: 2019-04-01 | E4: =+D4+0/24 -> 2019-04-01
B5: Reporting Year Begins | D5: 2019-04-01 | E5: =+D5+0/24 -> 2019-04-01
B6: Days in Sample Year | D6: =DATE(YEAR(TYBegin)+1,MONTH(TYBegin),DAY(TYBegin))-TYBegin -> 366
A9: Test Year Inputs from Revenue Process
A10: Year | B10: Month | C10: kWh | D10: Customers | F10: SummaryID | G10: NCPTotal | H10: NCPOnPk | I10: NCPOffPk
A11: =YEAR(D5) -> 2019 | B11: =MONTH(D4) -> 4 | C11: 148178370 | D11: 133754 | F11: LRAPKPCRES | G11: 9.283026726 | H11: 8.822269332 | I11: 8.801286996
A12: =IF(B12=1,A11+1,A11) -> 2019 | B12: =IF(B11=12,1,B11+1) -> 5 | C12: 117073247.7 | D12: 133754
A13: =IF(B13=1,A12+1,A12) -> 2019 | B13: =IF(B12=12,1,B12+1) -> 6 | C13: 127459635.9 | D13: 133754
A14: 2019 | B14: 7 | C14: 156863468.3 | D14: 133754
A15: 2019 | B15: 8 | C15: 163408561.8 | D15: 133754
A16: 2019 | B16: 9 | C16: 151010592.5 | D16: 133754
A17: 2019 | B17: 10 | C17: 110132323.7 | D17: 133754
A18: 2019 | B18: 11 | C18: 126686260.1 | D18: 133754
A19: 2019 | B19: 12 | C19: 196513334.3 | D19: 133754
A20: 2020 | B20: 1 | C20: 261438442.8 | D20: 133754
A21: 2020 | B21: 2 | C21: 231833012.7 | D21: 133754
A22: 2020 | B22: 3 | C22: 201810078.6 | D22: 133754
C23: =SUM(C11:C22) -> 1992407328 | D23: =SUM(D11:D22) -> 1605048
A25: Coincident Peaks
A26: Year | B26: Month | C26: Day | D26: Hour Ended | E26: Concident Peak
A27: =YEAR(TYBegin) -> 2019 | B27: =MONTH(TYBegin) -> 4 | C27: 1 | D27: 7 | E27: =DATEVALUE(B27&"/"&C27&"/"&A27)+(D27-1)/24 -> 2019-04-01T06:00:00
A28: =IF(B28=1,A27+1,A27) -> 2019 | B28: =IF(B27=12,1,B27+1) -> 5 | C28: 28 | D28: 16 | E28: =DATEVALUE(B28&"/"&C28&"/"&A28)+(D28-1)/24 -> 2019-05-28T15:00:00
A29: =IF(B29=1,A28+1,A28) -> 2019 | B29: =IF(B28=12,1,B28+1) -> 6 | C29: 27 | D29: 16 | E29: 2019-06-27T15:00:00
A30: 2019 | B30: 7 | C30: 19 | D30: 16 | E30: 2019-07-19T15:00:00
A31: 2019 | B31: 8 | C31: 19 | D31: 16 | E31: 2019-08-19T15:00:00
A32: 2019 | B32: 9 | C32: 11 | D32: 16 | E32: 2019-09-11T15:00:00
A33: 2019 | B33: 10 | C33: 1 | D33: 16 | E33: 2019-10-01T15:00:00
A34: 2019 | B34: 11 | C34: 13 | D34: 8 | E34: 2019-11-13T07:00:00
A35: 2019 | B35: 12 | C35: 19 | D35: 8 | E35: 2019-12-19T07:00:00
A36: 2020 | B36: 1 | C36: 22 | D36: 8 | E36: 2020-01-22T07:00:00
A37: 2020 | B37: 2 | C37: 15 | D37: 8 | E37: 2020-02-15T07:00:00
A38: 2020 | B38: 3 | C38: 1 | D38: 8 | E38: 2020-03-01T07:00:00

Sheet TOD Inputs
A1: Peak Times for TOD Tariffs | F1: Holidays
B2: Hour | C2: Formatted | F2: Description | G2: Date
A3: Peak Start Hour | B3: 7 | C3: =TEXT(B3/24,"h:mm AM/PM") -> 7:00 AM | F3: New Year's Day
A4: Peak End Hour | B4: 21 | C4: =TEXT(B4/24,"h:mm AM/PM") -> 9:00 PM | F4: President's Day
F5: Memorial Day
F6: Independence Day
A7: Daylight Savings Time | F7: Labor Day
A8: Starts | B8: 2020-03-08 | F8: Thanksgiving Day
A9: Ends | B9: 2019-11-03 | F9: Christmas Day
A19: DST Dates
B20: 2011 | C20: 2012 | D20: 2013 | E20: 2014
A21: Starts | B21: 2011-03-13 | C21: 2012-03-11 | D21: 2013-03-10 | E21: 2014-03-09
A22: Ends | B22: 2011-11-06 | C22: 2012-11-04 | D22: 2013-11-03 | E22: 2014-11-02
B24: 2015 | C24: 2016
B25: 2015-03-08 | C25: 2016-03-13
B26: 2015-11-01 | C26: 2016-11-06

Sheet LR Monthly
A1: STATISTICID | B1: CNAME | C1: YEAR | D1: MONTH | E1: ENERGY_MPU | F1: NCP | G1: NCP_ON | H1: NCP_OFF | I1: ClassPeak_Mont | J1: CLASS_PEAK_ON | K1: CLASS_PEAK_OFF
A2: LRKPCRES | B2: KPC RES CLASS RLW | C2: 2019 | D2: 4 | E2: 863.1773259 | F2: 6.633008488 | G2: 6.031913965 | H2: 5.91895602 | I2: 3.124508808 | J2: 3.124508808 | K2: 3.032763092
A3: LRKPCRES | B3: KPC RES CLASS RLW | C3: 2019 | D3: 5 | E3: 957.1946434 | F3: 6.338298856 | G3: 5.982179647 | H3: 5.774002347 | I3: 2.932718473 | J3: 2.932718473 | K3: 2.91245489
A4: LRKPCRES | B4: KPC RES CLASS RLW | C4: 2019 | D4: 6 | E4: 1033.807186 | F4: 6.154012145 | G4: 5.664097082 | H4: 5.771973738 | I4: 3.015956759 | J4: 2.988554438 | K4: 3.015956759
A5: LRKPCRES | B5: KPC RES CLASS RLW | C5: 2019 | D5: 7 | E5: 1384.09923 | F5: 6.503556202 | G5: 6.155835228 | H5: 6.036321511 | I5: 3.374598309 | J5: 3.32802398 | K5: 3.374598309
A6: LRKPCRES | B6: KPC RES CLASS RLW | C6: 2019 | D6: 8 | E6: 1248.281456 | F6: 6.140206889 | G6: 5.806046381 | H6: 5.726543516 | I6: 3.216236291 | J6: 3.153874929 | K6: 3.216236291
A7: LRKPCRES | B7: KPC RES CLASS RLW | C7: 2019 | D7: 9 | E7: 1100.719158 | F7: 6.3560847 | G7: 5.922749201 | H7: 5.711877365 | I7: 3.059063842 | J7: 3.059063842 | K7: 2.871007185
A8: LRKPCRES | B8: KPC RES CLASS RLW | C8: 2019 | D8: 10 | E8: 868.3492303 | F8: 6.463764424 | G8: 5.977931224 | H8: 5.581272178 | I8: 2.78695921 | J8: 2.78695921 | K8: 2.118429378
A9: LRKPCRES | B9: KPC RES CLASS RLW | C9: 2019 | D9: 11 | E9: 1413.944768 | F9: 7.485295785 | G9: 6.923363525 | H9: 6.829466727 | I9: 4.198302719 | J9: 4.198302719 | K9: 4.061248062
A10: LRKPCRES | B10: KPC RES CLASS RLW | C10: 2019 | D10: 12 | E10: 1497.469545 | F10: 7.302756144 | G10: 6.957268903 | H10: 6.523608128 | I10: 3.784521922 | J10: 3.784521922 | K10: 3.553704257
A11: LRKPCRES | B11: KPC RES CLASS RLW | C11: 2020 | D11: 1 | E11: 1522.25733 | F11: 7.589390145 | G11: 7.035901577 | H11: 7.028381722 | I11: 4.345616478 | J11: 4.312503861 | K11: 4.345616478
A12: LRKPCRES | B12: KPC RES CLASS RLW | C12: 2020 | D12: 2 | E12: 1493.173284 | F12: 7.660746836 | G12: 6.839362042 | H12: 7.31828855 | I12: 4.180345003 | J12: 3.694233702 | K12: 4.180345003
A13: LRKPCRES | B13: KPC RES CLASS RLW | C13: 2020 | D13: 3 | E13: 1149.705263 | F13: 7.225295083 | G13: 6.148410811 | H13: 6.842398706 | I13: 3.724029769 | J13: 2.681379233 | K13: 3.724029769

Sheet LR 8760 Loads
A1: ClassID | B1: Date | E1: IN | F1: UM | G1: CH | H1: TYP | I1: 01:00:00 | J1: 02:00:00 | K1: 03:00:00 | L1: 04:00:00 | M1: 05:00:00 | N1: 06:00:00 | O1: 07:00:00 | P1: 08:00:00 | Q1: 09:00:00 | R1: 10:00:00 | S1: 11:00:00 | T1: 12:00:00 | U1: 13:00:00 | V1: 14:00:00 | W1: 15:00:00 | X1: 16:00:00 | Y1: 17:00:00 | Z1: 18:00:00 | AA1: 19:00:00 | AB1: 20:00:00 | AC1: 21:00:00 | AD1: 22:00:00 | AE1: 23:00:00 | AF1: 1
A2: LRKPCRES | B2: 040119 | C2: 1 | D2: 2400 | E2: 60 | F2: 1 | G2: 1 | H2: KW | I2: 2.358043315 | J2: 2.268426926 | K2: 2.244035538 | L2: 2.348240616 | M2: 2.641812101 | N2: 2.839060772 | O2: 3.032763092 | P2: 3.068367244 | Q2: 3.124508808 | R2: 2.662080723 | S2: 2.238929567 | T2: 1.951532396 | U2: 1.889753948 | V2: 1.594798801 | W2: 1.478728096 | X2: 1.441044439 | Y2: 1.397861221 | Z2: 1.542960131 | AA2: 1.410286677 | AB2: 1.788308467 | AC2: 1.892124924 | AD2: 1.934858325 | AE2: 1.905781365 | AF2: 1.962080763
A3: LRKPCRES | B3: 040219 | C3: 1 | D3: 2400 | E3: 60 | F3: 1 | G3: 1 | H3: KW | I3: 1.889514383 | J3: 2.101668791 | K3: 2.223298226 | L3: 2.101973419 | M3: 2.27457522 | N3: 2.438153881 | O3: 2.714575387 | P3: 2.611443532 | Q3: 2.560061724 | R3: 2.247350853 | S3: 1.785339683 | T3: 1.665832571 | U3: 1.511494916 | V3: 1.677109538 | W3: 1.287744695 | X3: 1.296754771 | Y3: 1.451915941 | Z3: 1.286670937 | AA3: 1.350639466 | AB3: 1.394256732 | AC3: 1.904146485 | AD3: 1.783086232 | AE3: 1.687130071 | AF3: 1.723532694
A4: LRKPCRES | B4: 040319 | C4: 1 | D4: 2400 | E4: 60 | F4: 1 | G4: 1 | H4: KW | I4: 1.584360395 | J4: 1.802561146 | K4: 2.007974364 | L4: 2.070318551 | M4: 2.255881655 | N4: 2.234744687 | O4: 2.452165688 | P4: 2.57018652 | Q4: 2.686176312 | R4: 2.225594945 | S4: 1.561046369 | T4: 1.283753722 | U4: 1.061318382 | V4: 1.02849567 | W4: 0.9819737883 | X4: 1.134054192 | Y4: 1.095379185 | Z4: 1.140420006 | AA4: 1.081423129 | AB4: 1.074066679 | AC4: 1.318821591 | AD4: 1.321048598 | AE4: 1.161216644 | AF4: 1.144726417
A5: LRKPCRES | B5: 040419 | C5: 1 | D5: 2400 | E5: 60 | F5: 1 | G5: 1 | H5: KW | I5: 1.096030088 | J5: 1.16936304 | K5: 1.251678476 | L5: 1.292505153 | M5: 1.285463445 | N5: 1.475323309 | O5: 1.848888906 | P5: 1.961750369 | Q5: 1.758379731 | R5: 1.442433186 | S5: 1.213986751 | T5: 1.079074713 | U5: 0.9330290157 | V5: 0.7940387518 | W5: 0.8396091083 | X5: 0.9733414254 | Y5: 0.8665679976 | Z5: 1.084885713 | AA5: 1.239282929 | AB5: 1.076158745 | AC5: 1.158621708 | AD5: 1.279112022 | AE5: 1.225807809 | AF5: 0.9383488285
A6: LRKPCRES | B6: 040519 | C6: 1 | D6: 2400 | E6: 60 | F6: 1 | G6: 1 | H6: KW | I6: 0.7338298319 | J6: 0.7146434718 | K6: 0.5981439573 | L6: 0.60902776 | M6: 0.7112143003 | N6: 0.7703011283 | O6: 1.023822445 | P6: 1.149321727 | Q6: 1.170684327 | R6: 0.9573115598 | S6: 1.012601299 | T6: 0.8760412818 | U6: 0.8276247568 | V6: 0.8690340488 | W6: 0.8789033312 | X6: 0.9220984351 | Y6: 0.8763080291 | Z6: 1.023484079 | AA6: 0.9844450672 | AB6: 0.9771232609 | AC6: 1.216430304 | AD6: 1.350928735 | AE6: 1.188493601 | AF6: 1.060853155
A7: LRKPCRES | B7: 040619 | C7: 1 | D7: 2400 | E7: 60 | F7: 1 | G7: 1 | H7: KW | I7: 0.9320944406 | J7: 0.8008145907 | K7: 0.8043737858 | L7: 0.7295858324 | M7: 0.7381397937 | N7: 0.7988496675 | O7: 0.873165585 | P7: 0.8965281906 | Q7: 1.058827699 | R7: 1.323208847 | S7: 1.098052338 | T7: 1.009276653 | U7: 1.091387472 | V7: 1.136865136 | W7: 1.193679178 | X7: 1.180501199 | Y7: 1.255446207 | Z7: 1.258655898 | AA7: 1.088997012 | AB7: 1.214445999 | AC7: 1.102059832 | AD7: 1.310454427 | AE7: 1.210661182 | AF7: 1.018290822
A8: LRKPCRES | B8: 040719 | C8: 1 | D8: 2400 | E8: 60 | F8: 1 | G8: 1 | H8: KW | I8: 0.8742282075 | J8: 0.7343208748 | K8: 0.8120956256 | L8: 0.8438211369 | M8: 0.8455640367 | N8: 0.9662692356 | O8: 0.9852894994 | P8: 1.072038466 | Q8: 1.284856697 | R8: 1.425353316 | S8: 1.312060925 | T8: 1.133580752 | U8: 0.9436671137 | V8: 0.9622763239 | W8: 1.186667501 | X8: 1.105088505 | Y8: 1.02225025 | Z8: 1.154135006 | AA8: 1.249690857 | AB8: 1.169174357 | AC8: 1.200312695 | AD8: 1.09001399 | AE8: 1.018143261 | AF8: 0.7592825093
A9: LRKPCRES | B9: 040819 | C9: 1 | D9: 2400 | E9: 60 | F9: 1 | G9: 1 | H9: KW | I9: 0.6844843995 | J9: 0.6631331504 | K9: 0.6819542576 | L9: 0.6808065923 | M9: 0.6798249802 | N9: 0.7306124566 | O9: 0.9394257574 | P9: 0.9798943235 | Q9: 1.032302725 | R9: 1.007653111 | S9: 0.9450658135 | T9: 1.170075829 | U9: 1.121034465 | V9: 1.077804034 | W9: 0.9530448875 | X9: 1.013203141 | Y9: 0.9925165645 | Z9: 1.108623614 | AA9: 1.171033284 | AB9: 1.065673446 | AC9: 1.239254755 | AD9: 1.254849098 | AE9: 1.021144329 | AF9: 0.8488300483
A10: LRKPCRES | B10: 040919 | C10: 1 | D10: 2400 | E10: 60 | F10: 1 | G10: 1 | H10: KW | I10: 0.6779531409 | J10: 0.7312933694 | K10: 0.7346642118 | L10: 0.6750046151 | M10: 0.7557257325 | N10: 0.8378356884 | O10: 1.115191304 | P10: 1.127827575 | Q10: 1.14228741 | R10: 0.9926218005 | S10: 0.9420498566 | T10: 0.8577058279 | U10: 0.8714132339 | V10: 0.8515874256 | W10: 0.9287826773 | X10: 0.8874219272 | Y10: 1.173220319 | Z10: 1.151486679 | AA10: 1.119809596 | AB10: 1.146063343 | AC10: 1.36596279 | AD10: 1.30841103 | AE10: 1.066093435 | AF10: 0.8949595417
A11: LRKPCRES | B11: 041019 | C11: 1 | D11: 2400 | E11: 60 | F11: 1 | G11: 1 | H11: KW | I11: 0.7451900085 | J11: 0.7244394813 | K11: 0.7522295327 | L11: 0.8336221579 | M11: 0.8309460888 | N11: 1.228629216 | O11: 1.802676713 | P11: 1.755211445 | Q11: 1.389250518 | R11: 1.371813419 | S11: 1.175861528 | T11: 0.8716523143 | U11: 0.8394351986 | V11: 0.901132314 | W11: 0.9817314947 | X11: 1.016793213 | Y11: 1.080172916 | Z11: 1.24979517 | AA11: 1.237630033 | AB11: 1.197221434 | AC11: 1.21185777 | AD11: 1.316749195 | AE11: 1.125584508 | AF11: 1.015277941
A12: LRKPCRES | B12: 041119 | C12: 1 | D12: 2400 | E12: 60 | F12: 1 | G12: 1 | H12: KW | I12: 0.8306036145 | J12: 0.6689920657 | K12: 0.7412366666 | L12: 0.712909969 | M12: 0.8004695566 | N12: 0.8903850674 | O12: 1.146076936 | P12: 1.278427739 | Q12: 1.185848427 | R12: 0.9385819532 | S12: 0.7466269 | T12: 0.7910197284 | U12: 0.7738656025 | V12: 1.126322186 | W12: 1.18239835 | X12: 1.251570616 | Y12: 1.27498255 | Z12: 1.320256014 | AA12: 1.488431163 | AB12: 1.536957963 | AC12: 1.496353419 | AD12: 1.55767577 | AE12: 1.323681681 | AF12: 1.041946368
A13: LRKPCRES | B13: 041219 | C13: 1 | D13: 2400 | E13: 60 | F13: 1 | G13: 1 | H13: KW | I13: 0.868526713 | J13: 0.7399317771 | K13: 0.6688980426 | L13: 0.5665175493 | M13: 0.5959463001 | N13: 0.734954051 | O13: 0.8710731467 | P13: 0.9574090605 | Q13: 0.8931341236 | R13: 0.9685966104 | S13: 0.9368873301 | T13: 1.026186637 | U13: 1.081713432 | V13: 1.150510303 | W13: 1.154051109 | X13: 1.102653729 | Y13: 1.215354807 | Z13: 1.219934049 | AA13: 1.383870076 | AB13: 1.279055922 | AC13: 1.306023514 | AD13: 1.300560952 | AE13: 1.055162532 | AF13: 0.8837560853
A14: LRKPCRES | B14: 041319 | C14: 1 | D14: 2400 | E14: 60 | F14: 1 | G14: 1 | H14: KW | I14: 0.7312815314 | J14: 0.6877801608 | K14: 0.68892398 | L14: 0.6078532747 | M14: 0.6062237512 | N14: 0.6154611968 | O14: 0.7661206595 | P14: 0.8775716567 | Q14: 1.013610502 | R14: 1.320573799 | S14: 1.343512667 | T14: 1.120097637 | U14: 1.207388313 | V14: 1.064732691 | W14: 1.174366755 | X14: 1.141811904 | Y14: 1.221126718 | Z14: 1.270654311 | AA14: 1.156600581 | AB14: 1.071053778 | AC14: 1.232413124 | AD14: 1.223571181 | AE14: 1.122362448 | AF14: 0.8038868276
A15: LRKPCRES | B15: 041419 | C15: 1 | D15: 2400 | E15: 60 | F15: 1 | G15: 1 | H15: KW | I15: 0.6558421396 | J15: 0.6419330074 | K15: 0.6508301177 | L15: 0.596438925 | M15: 0.5614845572 | N15: 0.6408491008 | O15: 0.6925186838 | P15: 0.7741396528 | Q15: 0.9204391347 | R15: 1.124814762 | S15: 1.076495775 | T15: 1.00678244 | U15: 1.130914503 | V15: 1.342289229 | W15: 1.379571108 | X15: 1.500632444 | Y15: 1.466996702 | Z15: 1.535996324 | AA15: 1.614218651 | AB15: 1.632531755 | AC15: 1.578467493 | AD15: 1.489389837 | AE15: 1.387617194 | AF15: 0.9530396819
A16: LRKPCRES | B16: 041519 | C16: 1 | D16: 2400 | E16: 60 | F16: 1 | G16: 1 | H16: KW | I16: 0.8750005118 | J16: 0.7619552565 | K16: 0.7803527955 | L16: 0.7617540276 | M16: 0.8286363209 | N16: 1.082411049 | O16: 1.506660721 | P16: 1.372355049 | Q16: 1.271585316 | R16: 1.661539672 | S16: 1.762125574 | T16: 1.643363635 | U16: 1.514715528 | V16: 1.559752293 | W16: 1.904872364 | X16: 1.883535513 | Y16: 1.850727884 | Z16: 1.971476243 | AA16: 1.789451968 | AB16: 1.629927932 | AC16: 1.748535442 | AD16: 1.924576959 | AE16: 2.005347531 | AF16: 1.782677205
A17: LRKPCRES | B17: 041619 | C17: 1 | D17: 2400 | E17: 60 | F17: 1 | G17: 1 | H17: KW | I17: 1.894915796 | J17: 1.83970953 | K17: 1.994211824 | L17: 1.970241199 | M17: 2.125728991 | N17: 2.165605408 | O17: 2.535195703 | P17: 2.549610028 | Q17: 2.312137038 | R17: 1.955726583 | S17: 1.472166036 | T17: 1.197674963 | U17: 1.045066877 | V17: 0.9781948526 | W17: 0.9457495841 | X17: 1.085841841 | Y17: 1.127380759 | Z17: 1.200327705 | AA17: 1.035241988 | AB17: 1.111018118 | AC17: 1.237524893 | AD17: 1.284147492 | AE17: 1.111549938 | AF17: 0.8422750542
A18: LRKPCRES | B18: 041719 | C18: 1 | D18: 2400 | E18: 60 | F18: 1 | G18: 1 | H18: KW | I18: 0.6672603618 | J18: 0.6700673164 | K18: 0.6310853179 | L18: 0.7044951828 | M18: 0.8266877617 | N18: 0.9766352759 | O18: 1.324521769 | P18: 1.414018337 | Q18: 1.224083454 | R18: 1.052489884 | S18: 0.8376266153 | T18: 0.7241079371 | U18: 0.7644181949 | V18: 0.9579413534 | W18: 1.146014795 | X18: 1.15559897 | Y18: 1.1532355 | Z18: 1.30847295 | AA18: 1.224816086 | AB18: 1.237595959 | AC18: 1.271810375 | AD18: 1.425863974 | AE18: 1.183559578 | AF18: 0.9506029887
A19: LRKPCRES | B19: 041819 | C19: 1 | D19: 2400 | E19: 60 | F19: 1 | G19: 1 | H19: KW | I19: 0.7640803395 | J19: 0.7010703273 | K19: 0.6768193376 | L19: 0.6738310143 | M19: 0.700358252 | N19: 0.7307193234 | O19: 1.146578845 | P19: 0.9985885915 | Q19: 0.9463482298 | R19: 0.9881224532 | S19: 0.9032570334 | T19: 0.979510046 | U19: 1.002448982 | V19: 1.136952088 | W19: 1.309485492 | X19: 1.461117228 | Y19: 1.633594268 | Z19: 1.760642689 | AA19: 1.574960279 | AB19: 1.519251546 | AC19: 1.747663682 | AD19: 1.491691659 | AE19: 1.357106604 | AF19: 1.039229919
A20: LRKPCRES | B20: 041919 | C20: 1 | D20: 2400 | E20: 60 | F20: 1 | G20: 1 | H20: KW | I20: 0.8018713339 | J20: 0.7445354803 | K20: 0.6726473431 | L20: 0.688436472 | M20: 0.6626087532 | N20: 0.6829225532 | O20: 0.9909429161 | P20: 1.013783885 | Q20: 1.097734368 | R20: 0.8555298349 | S20: 0.8664168559 | T20: 0.873678345 | U20: 0.9443445114 | V20: 1.001743399 | W20: 1.033689918 | X20: 1.082480487 | Y20: 1.179409554 | Z20: 1.186099008 | AA20: 1.123841521 | AB20: 0.929326377 | AC20: 1.199054845 | AD20: 1.138459846 | AE20: 1.095832994 | AF20: 0.8435799907
A21: LRKPCRES | B21: 042019 | C21: 1 | D21: 2400 | E21: 60 | F21: 1 | G21: 1 | H21: KW | I21: 0.8321422432 | J21: 0.71044415 | K21: 0.6910479501 | L21: 0.7250605738 | M21: 0.7865433741 | N21: 0.7694872163 | O21: 0.9621268044 | P21: 1.041052408 | Q21: 1.450559609 | R21: 1.477635366 | S21: 1.464876918 | T21: 1.443656218 | U21: 1.505241233 | V21: 1.394979471 | W21: 1.354567756 | X21: 1.259935495 | Y21: 1.22409832 | Z21: 1.307089891 | AA21: 1.264353299 | AB21: 1.453649649 | AC21: 1.614859543 | AD21: 1.578859958 | AE21: 1.636786265 | AF21: 1.320303454
A22: LRKPCRES | B22: 042119 | C22: 1 | D22: 2400 | E22: 60 | F22: 1 | G22: 1 | H22: KW | I22: 1.377733825 | J22: 1.336118365 | K22: 1.219644246 | L22: 1.128438567 | M22: 1.253735343 | N22: 1.325953846 | O22: 1.363745731 | P22: 1.499261989 | Q22: 1.600065707 | R22: 1.810755721 | S22: 1.615089729 | T22: 1.531790401 | U22: 1.438946128 | V22: 1.323750022 | W22: 1.238638294 | X22: 1.254656355 | Y22: 1.028061681 | Z22: 1.217267617 | AA22: 1.138075224 | AB22: 1.187949146 | AC22: 1.392095418 | AD22: 1.456773327 | AE22: 1.256826837 | AF22: 1.349078081
A23: LRKPCRES | B23: 042219 | C23: 1 | D23: 2400 | E23: 60 | F23: 1 | G23: 1 | H23: KW | I23: 1.091757996 | J23: 1.094005438 | K23: 1.12779567 | L23: 1.190706827 | M23: 1.184361386 | N23: 1.378456758 | O23: 1.746468064 | P23: 1.676003312 | Q23: 1.577121163 | R23: 1.395444313 | S23: 1.186237846 | T23: 1.025526153 | U23: 1.134216828 | V23: 0.9187688757 | W23: 1.019187134 | X23: 1.133100581 | Y23: 1.267208569 | Z23: 1.309521884 | AA23: 1.382918664 | AB23: 1.356719763 | AC23: 1.389618991 | AD23: 1.459124239 | AE23: 1.218165818 | AF23: 0.9513099996
A24: LRKPCRES | B24: 042319 | C24: 1 | D24: 2400 | E24: 60 | F24: 1 | G24: 1 | H24: KW | I24: 0.7838155835 | J24: 0.7209068289 | K24: 0.7050566288 | L24: 0.6696971177 | M24: 0.7829476187 | N24: 0.8968583819 | O24: 1.08021336 | P24: 1.223835357 | Q24: 1.028936986 | R24: 1.138585446 | S24: 0.8245352083 | T24: 0.9070709885 | U24: 0.9212192407 | V24: 1.049337228 | W24: 1.171379215 | X24: 1.410700018 | Y24: 1.461422853 | Z24: 1.726239526 | AA24: 1.543104405 | AB24: 1.536161533 | AC24: 1.526823321 | AD24: 1.571305299 | AE24: 1.446398423 | AF24: 1.078700548
A25: LRKPCRES | B25: 042419 | C25: 1 | D25: 2400 | E25: 60 | F25: 1 | G25: 1 | H25: KW | I25: 0.8078088045 | J25: 0.661469052 | K25: 0.6268532774 | L25: 0.6640425966 | M25: 0.636654658 | N25: 0.8200146523 | O25: 0.9247823343 | P25: 0.9733021289 | Q25: 0.9367921403 | R25: 0.9198640706 | S25: 0.8834463666 | T25: 0.9467046235 | U25: 0.9316077258 | V25: 0.9776131935 | W25: 1.125889283 | X25: 1.316758195 | Y25: 1.456611814 | Z25: 1.619278817 | AA25: 1.420958508 | AB25: 1.455178685 | AC25: 1.617099413 | AD25: 1.533842972 | AE25: 1.333767265 | AF25: 0.9079651983
A26: LRKPCRES | B26: 042519 | C26: 1 | D26: 2400 | E26: 60 | F26: 1 | G26: 1 | H26: KW | I26: 0.7165655407 | J26: 0.6662595496 | K26: 0.5858059116 | L26: 0.6075862789 | M26: 0.6997607478 | N26: 0.6931656842 | O26: 0.8682506985 | P26: 1.05360391 | Q26: 0.910186421 | R26: 1.031725186 | S26: 0.919977981 | T26: 0.9306986731 | U26: 1.005923707 | V26: 1.042464835 | W26: 1.308475382 | X26: 1.409057786 | Y26: 1.41012933 | Z26: 1.461191293 | AA26: 1.503397323 | AB26: 1.281952591 | AC26: 1.357766525 | AD26: 1.435702601 | AE26: 1.102248513 | AF26: 0.8396247906
A27: LRKPCRES | B27: 042619 | C27: 1 | D27: 2400 | E27: 60 | F27: 1 | G27: 1 | H27: KW | I27: 0.7278953812 | J27: 0.7024395216 | K27: 0.7032177778 | L27: 0.6231829064 | M27: 0.6735403931 | N27: 0.7751618291 | O27: 0.9272320783 | P27: 0.9762355711 | Q27: 0.8937823436 | R27: 0.7817914349 | S27: 0.7589037735 | T27: 0.81097599 | U27: 0.9114072782 | V27: 0.9855677228 | W27: 1.069866213 | X27: 1.145063698 | Y27: 1.08089349 | Z27: 1.038132317 | AA27: 1.043501379 | AB27: 1.111863689 | AC27: 1.139216239 | AD27: 1.224569069 | AE27: 1.179274536 | AF27: 1.012204011
A28: LRKPCRES | B28: 042719 | C28: 1 | D28: 2400 | E28: 60 | F28: 1 | G28: 1 | H28: KW | I28: 1.137791217 | J28: 1.066867418 | K28: 1.175538085 | L28: 1.297120017 | M28: 1.204103771 | N28: 1.326758608 | O28: 1.449989005 | P28: 1.559284944 | Q28: 1.577503754 | R28: 1.367384887 | S28: 1.324347546 | T28: 1.164888352 | U28: 1.098650362 | V28: 1.082630205 | W28: 1.068568334 | X28: 1.110638847 | Y28: 1.099540473 | Z28: 1.273420142 | AA28: 1.153930938 | AB28: 1.053797077 | AC28: 1.171581084 | AD28: 1.117028059 | AE28: 0.9699519214 | AF28: 0.885085633
A29: LRKPCRES | B29: 042819 | C29: 1 | D29: 2400 | E29: 60 | F29: 1 | G29: 1 | H29: KW | I29: 0.8691038397 | J29: 0.7745979801 | K29: 0.7625175252 | L29: 0.7838052805 | M29: 0.7788977762 | N29: 0.8259844256 | O29: 0.8522634994 | P29: 1.003699294 | Q29: 1.128662117 | R29: 1.214005654 | S29: 1.016684473 | T29: 1.157318662 | U29: 1.388022344 | V29: 1.056177538 | W29: 1.091896147 | X29: 1.217599642 | Y29: 1.19153562 | Z29: 1.200323213 | AA29: 1.470889582 | AB29: 1.628481031 | AC29: 1.533886348 | AD29: 1.582503117 | AE29: 1.373183272 | AF29: 1.174741362
A30: LRKPCRES | B30: 042919 | C30: 1 | D30: 2400 | E30: 60 | F30: 1 | G30: 1 | H30: KW | I30: 0.9249043528 | J30: 1.052049879 | K30: 1.015077775 | L30: 1.045609646 | M30: 1.074136474 | N30: 1.231262824 | O30: 1.633763631 | P30: 1.382377624 | Q30: 1.136536021 | R30: 1.082695186 | S30: 0.9754060229 | T30: 0.929619963 | U30: 1.027735112 | V30: 0.9979350408 | W30: 1.30447401 | X30: 1.378930192 | Y30: 1.422356395 | Z30: 1.469100028 | AA30: 1.75282301 | AB30: 1.578329445 | AC30: 1.38206192 | AD30: 1.493416591 | AE30: 1.395244181 | AF30: 0.9909692413
A31: LRKPCRES | B31: 043019 | C31: 1 | D31: 2400 | E31: 60 | F31: 1 | G31: 1 | H31: KW | I31: 0.7660555296 | J31: 0.6866350986 | K31: 0.6167839774 | L31: 0.5836104216 | M31: 0.6074582666 | N31: 0.7285857476 | O31: 1.125311774 | P31: 0.9933080361 | Q31: 0.8687192157 | R31: 0.7950958833 | S31: 0.869725563 | T31: 0.8497382193 | U31: 1.167970311 | V31: 1.438269496 | W31: 1.447817155 | X31: 1.650135299 | Y31: 1.840675559 | Z31: 2.035325212 | AA31: 1.894293399 | AB31: 1.658700939 | AC31: 1.680944037 | AD31: 1.661293012 | AE31: 1.432498466 | AF31: 1.058517615
A32: LRKPCRES | B32: 050119 | C32: 1 | D32: 2400 | E32: 60 | F32: 1 | G32: 1 | H32: KW | I32: 0.7929043665 | J32: 0.6928000047 | K32: 0.6364008257 | L32: 0.601420912 | M32: 0.580923091 | N32: 0.647748171 | O32: 1.005665849 | P32: 0.8691488579 | Q32: 0.8396729961 | R32: 0.8279507764 | S32: 1.083643501 | T32: 1.356737915 | U32: 1.373132221 | V32: 1.631983632 | W32: 1.676257142 | X32: 1.814714496 | Y32: 1.921097121 | Z32: 1.978757603 | AA32: 1.753786523 | AB32: 1.693698359 | AC32: 1.672150754 | AD32: 1.487584041 | AE32: 1.330784558 | AF32: 1.088313404
A33: LRKPCRES | B33: 050219 | C33: 1 | D33: 2400 | E33: 60 | F33: 1 | G33: 1 | H33: KW | I33: 0.8871353027 | J33: 0.7216410212 | K33: 0.6198562055 | L33: 0.6644484122 | M33: 0.6353411456 | N33: 0.6962677053 | O33: 1.004392566 | P33: 0.99550323 | Q33: 0.9256872061 | R33: 0.962530026 | S33: 1.123232674 | T33: 1.352644405 | U33: 1.559157251 | V33: 1.545529329 | W33: 1.547272233 | X33: 1.873712911 | Y33: 2.086982929 | Z33: 2.09813917 | AA33: 1.90045882 | AB33: 1.818131891 | AC33: 1.632637877 | AD33: 1.484518521 | AE33: 1.194305361 | AF33: 0.9821184144
A34: LRKPCRES | B34: 050319 | C34: 1 | D34: 2400 | E34: 60 | F34: 1 | G34: 1 | H34: KW | I34: 0.7027057292 | J34: 0.6829277901 | K34: 0.6759048008 | L34: 0.5963332749 | M34: 0.6622815946 | N34: 0.6720582938 | O34: 0.898541509 | P34: 0.9401384347 | Q34: 0.8342646771 | R34: 0.9148711345 | S34: 0.8626374146 | T34: 1.091667244 | U34: 1.114929346 | V34: 1.24268581 | W34: 1.337706832 | X34: 1.46064628 | Y34: 1.594607604 | Z34: 1.592975495 | AA34: 1.467494861 | AB34: 1.312468697 | AC34: 1.281407277 | AD34: 1.287273459 | AE34: 1.095097395 | AF34: 0.9579175718
A35: LRKPCRES | B35: 050419 | C35: 1 | D35: 2400 | E35: 60 | F35: 1 | G35: 1 | H35: KW | I35: 0.7840981511 | J35: 0.7033024768 | K35: 0.6628085534 | L35: 0.6030871917 | M35: 0.5846658774 | N35: 0.5521884239 | O35: 0.6332382348 | P35: 0.7471184727 | Q35: 0.9926949341 | R35: 1.0060949 | S35: 1.187973997 | T35: 1.428922179 | U35: 1.355756283 | V35: 1.47566459 | W35: 1.468994513 | X35: 1.300920488 | Y35: 1.453538321 | Z35: 1.431868342 | AA35: 1.365015649 | AB35: 1.402728461 | AC35: 1.322714064 | AD35: 1.208411034 | AE35: 1.123997002 | AF35: 0.9117009152
A36: LRKPCRES | B36: 050519 | C36: 1 | D36: 2400 | E36: 60 | F36: 1 | G36: 1 | H36: KW | I36: 0.8049984405 | J36: 0.6780263837 | K36: 0.6570315039 | L36: 0.6394292646 | M36: 0.6010190356 | N36: 0.5786544649 | O36: 0.6742915923 | P36: 0.7278397204 | Q36: 1.128716618 | R36: 1.230205822 | S36: 1.097363056 | T36: 1.075837882 | U36: 1.125137159 | V36: 1.176278514 | W36: 1.280105729 | X36: 1.154160612 | Y36: 1.192841567 | Z36: 1.321360725 | AA36: 1.177210983 | AB36: 1.377209169 | AC36: 1.209577714 | AD36: 1.195100331 | AE36: 1.044576372 | AF36: 0.8528072639
A37: LRKPCRES | B37: 050619 | C37: 1 | D37: 2400 | E37: 60 | F37: 1 | G37: 1 | H37: KW | I37: 0.7839223764 | J37: 0.6683541861 | K37: 0.6664248191 | L37: 0.7297445721 | M37: 0.7907499459 | N37: 0.8897374721 | O37: 1.02166882 | P37: 0.9705434257 | Q37: 1.048814607 | R37: 0.8434883321 | S37: 0.8862747237 | T37: 0.7149847636 | U37: 0.7817673522 | V37: 0.8603376042 | W37: 1.129805272 | X37: 1.116713697 | Y37: 1.338625801 | Z37: 1.370693706 | AA37: 1.263385208 | AB37: 1.348176181 | AC37: 1.365455096 | AD37: 1.391027307 | AE37: 1.263480374 | AF37: 0.8338638882
A38: LRKPCRES | B38: 050719 | C38: 1 | D38: 2400 | E38: 60 | F38: 1 | G38: 1 | H38: KW | I38: 0.7466231676 | J38: 0.6808693978 | K38: 0.6767930061 | L38: 0.6611949595 | M38: 0.6944935953 | N38: 0.8637182446 | O38: 1.237477422 | P38: 1.271886919 | Q38: 1.149272166 | R38: 0.9068038606 | S38: 0.9229694966 | T38: 0.8986301072 | U38: 0.9589596591 | V38: 1.092615292 | W38: 1.239686284 | X38: 1.528344454 | Y38: 1.653777802 | Z38: 1.697623496 | AA38: 1.594329995 | AB38: 1.596205102 | AC38: 1.647023834 | AD38: 1.481088172 | AE38: 1.270610104 | AF38: 0.9449174961
A39: LRKPCRES | B39: 050819 | C39: 1 | D39: 2400 | E39: 60 | F39: 1 | G39: 1 | H39: KW | I39: 0.8394747571 | J39: 0.6372120022 | K39: 0.5832280165 | L39: 0.5745170144 | M39: 0.5937762279 | N39: 0.7174835046 | O39: 1.00504777 | P39: 0.8969902303 | Q39: 0.8905262088 | R39: 0.9234583061 | S39: 0.9261261636 | T39: 0.9936324912 | U39: 1.215610755 | V39: 1.41084412 | W39: 1.554453739 | X39: 1.779185671 | Y39: 1.98639371 | Z39: 2.02420321 | AA39: 2.10022858 | AB39: 1.906955768 | AC39: 2.05408472 | AD39: 2.06583849 | AE39: 1.725629975 | AF39: 1.142342168
A40: LRKPCRES | B40: 050919 | C40: 1 | D40: 2400 | E40: 60 | F40: 1 | G40: 1 | H40: KW | I40: 0.8630009424 | J40: 0.760841483 | K40: 0.6535406949 | L40: 0.6513314402 | M40: 0.6338352324 | N40: 0.6527386109 | O40: 0.8925832342 | P40: 0.9260929789 | Q40: 0.8862165433 | R40: 0.8795687451 | S40: 0.9860291643 | T40: 1.25057222 | U40: 1.322262213 | V40: 1.436924998 | W40: 1.331583053 | X40: 1.39814612 | Y40: 1.56981329 | Z40: 1.73349986 | AA40: 1.781816291 | AB40: 1.70448265 | AC40: 1.851771811 | AD40: 1.721794633 | AE40: 1.291220066 | AF40: 1.027494093
A41: LRKPCRES | B41: 051019 | C41: 1 | D41: 2400 | E41: 60 | F41: 1 | G41: 1 | H41: KW | I41: 0.8410179451 | J41: 0.6788599065 | K41: 0.654287076 | L41: 0.6718734547 | M41: 0.6545684081 | N41: 0.7441613772 | O41: 0.9698055077 | P41: 0.9251684849 | Q41: 0.9026465178 | R41: 1.028599303 | S41: 0.9966613382 | T41: 1.118554451 | U41: 1.326075663 | V41: 1.4025278 | W41: 1.648666475 | X41: 1.635401666 | Y41: 1.852669673 | Z41: 2.070111917 | AA41: 1.762523537 | AB41: 1.667877852 | AC41: 1.563378045 | AD41: 1.567883347 | AE41: 1.254609638 | AF41: 1.157548537
A42: LRKPCRES | B42: 051119 | C42: 1 | D42: 2400 | E42: 60 | F42: 1 | G42: 1 | H42: KW | I42: 0.9396485507 | J42: 0.7963540103 | K42: 0.7076237547 | L42: 0.6706407485 | M42: 0.5965704093 | N42: 0.7024660576 | O42: 0.6857925129 | P42: 0.6965103881 | Q42: 1.076006722 | R42: 1.068176418 | S42: 1.004359188 | T42: 0.9586657919 | U42: 0.9600494162 | V42: 1.112808139 | W42: 1.093972022 | X42: 1.179021492 | Y42: 1.120615165 | Z42: 1.255826915 | AA42: 1.211446809 | AB42: 1.065514598 | AC42: 1.320686994 | AD42: 1.198939258 | AE42: 1.166102515 | AF42: 0.8795835857
A43: LRKPCRES | B43: 051219 | C43: 1 | D43: 2400 | E43: 60 | F43: 1 | G43: 1 | H43: KW | I43: 0.892993083 | J43: 0.7887196646 | K43: 0.6791073156 | L43: 0.6752006944 | M43: 0.6566177787 | N43: 0.7060331414 | O43: 0.7849231692 | P43: 0.8912159428 | Q43: 0.9363542461 | R43: 1.05109109 | S43: 0.9873130357 | T43: 1.248857895 | U43: 1.230432731 | V43: 1.240946297 | W43: 1.094324909 | X43: 1.089477932 | Y43: 1.108608074 | Z43: 1.225676763 | AA43: 1.223578415 | AB43: 1.413007722 | AC43: 1.541493277 | AD43: 1.328086762 | AE43: 1.031489514 | AF43: 0.9213934529
A44: LRKPCRES | B44: 051319 | C44: 1 | D44: 2400 | E44: 60 | F44: 1 | G44: 1 | H44: KW | I44: 0.8000998708 | J44: 0.669218383 | K44: 0.6585807847 | L44: 0.6874411726 | M44: 0.6792448967 | N44: 0.7856311874 | O44: 1.119515529 | P44: 0.9983021073 | Q44: 0.9017829818 | R44: 1.042368875 | S44: 1.011088412 | T44: 1.002740044 | U44: 1.118237321 | V44: 1.001171096 | W44: 0.9893244584 | X44: 1.018603171 | Y44: 1.19361969 | Z44: 1.343991529 | AA44: 1.243721322 | AB44: 1.347046282 | AC44: 1.317618049 | AD44: 1.397178234 | AE44: 1.329831806 | AF44: 0.9393356133
A45: LRKPCRES | B45: 051419 | C45: 1 | D45: 2400 | E45: 60 | F45: 1 | G45: 1 | H45: KW | I45: 0.8866633417 | J45: 0.849791736 | K45: 0.8280947475 | L45: 0.8301345431 | M45: 0.8499995258 | N45: 0.9195643001 | O45: 1.19169788 | P45: 1.238532742 | Q45: 1.09655511 | R45: 1.264151098 | S45: 0.9799923491 | T45: 0.8592598461 | U45: 0.9869762845 | V45: 0.8796140281 | W45: 0.8256575159 | X45: 0.9776179169 | Y45: 1.052066586 | Z45: 1.187176403 | AA45: 1.248220784 | AB45: 1.203732957 | AC45: 1.228264575 | AD45: 1.2463747 | AE45: 1.210109965 | AF45: 0.89085123
A46: LRKPCRES | B46: 051519 | C46: 1 | D46: 2400 | E46: 60 | F46: 1 | G46: 1 | H46: KW | I46: 0.9603190871 | J46: 0.9500423109 | K46: 1.103584912 | L46: 1.11965552 | M46: 1.081896085 | N46: 1.221164643 | O46: 1.382487788 | P46: 1.328522117 | Q46: 1.145230212 | R46: 1.212113594 | S46: 0.9266279119 | T46: 0.8362966133 | U46: 0.9078223644 | V46: 0.8398168763 | W46: 0.9627330635 | X46: 0.9414294027 | Y46: 1.0300912 | Z46: 1.14987083 | AA46: 1.176259167 | AB46: 1.204775583 | AC46: 1.086335324 | AD46: 1.151892936 | AE46: 1.035856084 | AF46: 0.7414558575
A47: LRKPCRES | B47: 051619 | C47: 1 | D47: 2400 | E47: 60 | F47: 1 | G47: 1 | H47: KW | I47: 0.7640175495 | J47: 0.7589710292 | K47: 0.7205901874 | L47: 0.7950146639 | M47: 0.9121155332 | N47: 0.9536244213 | O47: 1.254873537 | P47: 1.159553319 | Q47: 1.261990895 | R47: 1.028106581 | S47: 0.8601790194 | T47: 0.7801328099 | U47: 0.9033143535 | V47: 0.8702006089 | W47: 1.020179556 | X47: 1.202500864 | Y47: 1.436733354 | Z47: 1.498276677 | AA47: 1.418908001 | AB47: 1.579761849 | AC47: 1.385073672 | AD47: 1.366823145 | AE47: 1.275692687 | AF47: 1.055459368
A48: LRKPCRES | B48: 051719 | C48: 1 | D48: 2400 | E48: 60 | F48: 1 | G48: 1 | H48: KW | I48: 0.8838900877 | J48: 0.754324712 | K48: 0.6435626638 | L48: 0.6932806038 | M48: 0.7238656838 | N48: 0.7852082198 | O48: 0.8817901826 | P48: 0.9403965119 | Q48: 0.9271408403 | R48: 0.9312202223 | S48: 0.9400097753 | T48: 1.037219081 | U48: 1.220224857 | V48: 1.427372442 | W48: 1.55086148 | X48: 1.870758538 | Y48: 1.942061726 | Z48: 1.925666088 | AA48: 1.905892201 | AB48: 1.779951219 | AC48: 1.756465819 | AD48: 1.728920862 | AE48: 1.522618071 | AF48: 1.18385574
A49: LRKPCRES | B49: 051819 | C49: 1 | D49: 2400 | E49: 60 | F49: 1 | G49: 1 | H49: KW | I49: 0.9345736582 | J49: 0.8569676494 | K49: 0.7143633448 | L49: 0.7588763171 | M49: 0.677397886 | N49: 0.6480069319 | O49: 0.7171745563 | P49: 0.7746387013 | Q49: 1.061418317 | R49: 1.245805509 | S49: 1.588408007 | T49: 1.686249934 | U49: 1.984132216 | V49: 1.961564226 | W49: 2.162505987 | X49: 2.304605179 | Y49: 2.333676452 | Z49: 2.40084512 | AA49: 2.371017581 | AB49: 2.225283365 | AC49: 2.012803133 | AD49: 1.830519291 | AE49: 1.685118179 | AF49: 1.410574494
A50: LRKPCRES | B50: 051919 | C50: 1 | D50: 2400 | E50: 60 | F50: 1 | G50: 1 | H50: KW | I50: 1.145262791 | J50: 0.9389969872 | K50: 0.8232968843 | L50: 0.7562335007 | M50: 0.7115695437 | N50: 0.6575036512 | O50: 0.8140513656 | P50: 1.010151043 | Q50: 1.137179848 | R50: 1.531160592 | S50: 1.446006084 | T50: 1.542081472 | U50: 1.983138624 | V50: 2.138514803 | W50: 2.184160348 | X50: 2.41017905 | Y50: 2.471813932 | Z50: 2.29734115 | AA50: 2.416297758 | AB50: 2.331968741 | AC50: 2.069181478 | AD50: 1.897504911 | AE50: 1.669047279 | AF50: 1.443606045
A51: LRKPCRES | B51: 052019 | C51: 1 | D51: 2400 | E51: 60 | F51: 1 | G51: 1 | H51: KW | I51: 1.199749387 | J51: 1.015678986 | K51: 0.886056135 | L51: 0.8358390624 | M51: 0.8342632961 | N51: 0.8478125225 | O51: 0.9394877602 | P51: 0.9243966418 | Q51: 0.8991289847 | R51: 1.170085817 | S51: 1.241541926 | T51: 1.272901454 | U51: 1.523701737 | V51: 1.755274469 | W51: 1.80929748 | X51: 2.125806625 | Y51: 2.297587203 | Z51: 2.201948898 | AA51: 2.211580547 | AB51: 2.017473189 | AC51: 1.675645388 | AD51: 1.606350144 | AE51: 1.225960007 | AF51: 1.007331755
A52: LRKPCRES | B52: 052119 | C52: 1 | D52: 2400 | E52: 60 | F52: 1 | G52: 1 | H52: KW | I52: 0.8367279682 | J52: 0.6771812543 | K52: 0.6098337234 | L52: 0.6160582002 | M52: 0.6337004366 | N52: 0.6527119895 | O52: 0.9501151585 | P52: 0.9670116935 | Q52: 0.8733365305 | R52: 0.8118199391 | S52: 0.7922914927 | T52: 0.8800106622 | U52: 1.030817082 | V52: 1.132732622 | W52: 1.261794585 | X52: 1.509048028 | Y52: 1.67125315 | Z52: 1.755930982 | AA52: 1.855214452 | AB52: 1.649933086 | AC52: 1.631870588 | AD52: 1.460771444 | AE52: 1.217965654 | AF52: 0.9116297819
A53: LRKPCRES | B53: 052219 | C53: 1 | D53: 2400 | E53: 60 | F53: 1 | G53: 1 | H53: KW | I53: 0.7112039201 | J53: 0.7307820737 | K53: 0.6122656519 | L53: 0.6124822707 | M53: 0.6555986011 | N53: 0.6836766529 | O53: 0.8122087193 | P53: 0.8250349156 | Q53: 0.8111620109 | R53: 0.991073527 | S53: 1.139620943 | T53: 1.257782803 | U53: 1.590544256 | V53: 1.812649172 | W53: 2.023070689 | X53: 2.1714736 | Y53: 2.379151607 | Z53: 2.495836671 | AA53: 2.536938663 | AB53: 2.270397596 | AC53: 2.374502657 | AD53: 2.266162322 | AE53: 1.885260686 | AF53: 1.433097261
A54: LRKPCRES | B54: 052319 | C54: 1 | D54: 2400 | E54: 60 | F54: 1 | G54: 1 | H54: KW | I54: 1.225695733 | J54: 1.058002749 | K54: 0.8807195424 | L54: 0.853646798 | M54: 0.7701312361 | N54: 0.7369631109 | O54: 0.9149235276 | P54: 1.101908955 | Q54: 1.069924511 | R54: 1.114610134 | S54: 1.404684598 | T54: 1.537409418 | U54: 1.482889434 | V54: 1.581297019 | W54: 1.883271252 | X54: 2.230450402 | Y54: 2.587783444 | Z54: 2.43626399 | AA54: 2.411426703 | AB54: 2.187075889 | AC54: 2.056344529 | AD54: 2.064151923 | AE54: 1.808045252 | AF54: 1.457124723
A55: LRKPCRES | B55: 052419 | C55: 1 | D55: 2400 | E55: 60 | F55: 1 | G55: 1 | H55: KW | I55: 1.239660133 | J55: 1.065255922 | K55: 0.9217238709 | L55: 0.7746143344 | M55: 0.8333187213 | N55: 0.8417221149 | O55: 0.9312279965 | P55: 1.079475597 | Q55: 1.323289938 | R55: 1.317944201 | S55: 1.450534846 | T55: 1.675105716 | U55: 2.055532834 | V55: 2.188877478 | W55: 2.519394596 | X55: 2.565920556 | Y55: 2.761810919 | Z55: 2.92056301 | AA55: 2.738506743 | AB55: 2.607958155 | AC55: 2.37755427 | AD55: 2.102417434 | AE55: 1.836982187 | AF55: 1.506615622
A56: LRKPCRES | B56: 052519 | C56: 1 | D56: 2400 | E56: 60 | F56: 1 | G56: 1 | H56: KW | I56: 1.245912625 | J56: 1.003072597 | K56: 0.8771201445 | L56: 0.8863567293 | M56: 0.8159499677 | N56: 0.8109890848 | O56: 0.7697654183 | P56: 0.8550808425 | Q56: 1.177046226 | R56: 1.4246766 | S56: 1.627141111 | T56: 1.751710606 | U56: 2.075827807 | V56: 2.429958036 | W56: 2.735679795 | X56: 2.8193479 | Y56: 2.873799887 | Z56: 2.724382627 | AA56: 2.582363371 | AB56: 2.393371757 | AC56: 2.04467829 | AD56: 2.070649844 | AE56: 1.850083989 | AF56: 1.800113982
A57: LRKPCRES | B57: 052619 | C57: 1 | D57: 2400 | E57: 60 | F57: 1 | G57: 1 | H57: KW | I57: 1.343836352 | J57: 1.156460874 | K57: 0.9083134744 | L57: 0.8154044527 | M57: 0.7851973745 | N57: 0.7095778554 | O57: 0.7873896966 | P57: 0.8529738385 | Q57: 1.095469172 | R57: 1.476253851 | S57: 1.728881923 | T57: 1.989920794 | U57: 2.231770152 | V57: 2.380315437 | W57: 2.629208541 | X57: 2.884730793 | Y57: 2.91245489 | Z57: 2.874348248 | AA57: 2.691286836 | AB57: 2.535545048 | AC57: 2.09577582 | AD57: 1.879856548 | AE57: 1.676975544 | AF57: 1.44358289
A58: LRKPCRES | B58: 052719 | C58: 1 | D58: 2400 | E58: 60 | F58: 1 | G58: 1 | H58: KW | I58: 1.129132589 | J58: 0.961766457 | K58: 0.8990013416 | L58: 0.7553381845 | M58: 0.7800239665 | N58: 0.772337532 | O58: 0.7735773196 | P58: 0.8201338245 | Q58: 1.054685001 | R58: 1.246716429 | S58: 1.555896911 | T58: 1.779206638 | U58: 1.919424695 | V58: 1.960318915 | W58: 2.337697596 | X58: 2.525086881 | Y58: 2.483686729 | Z58: 2.542707788 | AA58: 2.487335475 | AB58: 2.397656574 | AC58: 2.137219244 | AD58: 2.126028378 | AE58: 1.811837472 | AF58: 1.420506972
A59: LRKPCRES | B59: 052819 | C59: 1 | D59: 2400 | E59: 60 | F59: 1 | G59: 1 | H59: KW | I59: 1.239446326 | J59: 1.023870534 | K59: 0.9527707933 | L59: 0.8523118663 | M59: 0.8152355438 | N59: 0.8509492479 | O59: 1.080310011 | P59: 1.148506241 | Q59: 1.207279354 | R59: 1.346418753 | S59: 1.60249323 | T59: 1.928498043 | U59: 2.251689851 | V59: 2.504619848 | W59: 2.525073543 | X59: 2.672248179 | Y59: 2.901848726 | Z59: 2.932718473 | AA59: 2.872683521 | AB59: 2.637928255 | AC59: 2.558556474 | AD59: 2.340645081 | AE59: 2.070567832 | AF59: 1.632065804
A60: LRKPCRES | B60: 052919 | C60: 1 | D60: 2400 | E60: 60 | F60: 1 | G60: 1 | H60: KW | I60: 1.317044472 | J60: 1.155205938 | K60: 0.958289693 | L60: 0.9052486424 | M60: 0.8180122681 | N60: 0.8301027614 | O60: 0.9505484589 | P60: 0.9577912322 | Q60: 1.071291309 | R60: 1.287740442 | S60: 1.465367324 | T60: 1.897031954 | U60: 1.982567602 | V60: 1.979909312 | W60: 1.887961047 | X60: 1.6015134 | Y60: 1.571700399 | Z60: 1.44910211 | AA60: 1.694776139 | AB60: 1.505859794 | AC60: 1.409519757 | AD60: 1.576786493 | AE60: 1.373139139 | AF60: 1.205733931
A61: LRKPCRES | B61: 053019 | C61: 1 | D61: 2400 | E61: 60 | F61: 1 | G61: 1 | H61: KW | I61: 0.9934812078 | J61: 0.8078898014 | K61: 0.7410681353 | L61: 0.7202409148 | M61: 0.684318711 | N61: 0.6703466695 | O61: 0.9556253536 | P61: 0.9616729778 | Q61: 1.066291849 | R61: 1.091409123 | S61: 1.177778673 | T61: 1.294947246 | U61: 1.497653041 | V61: 1.566398399 | W61: 1.773641283 | X61: 1.83809267 | Y61: 1.894621988 | Z61: 1.747186929 | AA61: 1.643108682 | AB61: 1.551697157 | AC61: 1.596243109 | AD61: 1.74657335 | AE61: 1.438617907 | AF61: 1.230792878
A62: LRKPCRES | B62: 053119 | C62: 1 | D62: 2400 | E62: 60 | F62: 1 | G62: 1 | H62: KW | I62: 1.122616085 | J62: 0.9428174164 | K62: 0.7970805682 | L62: 0.7441919842 | M62: 0.734505083 | N62: 0.7744096537 | O62: 0.8883008612 | P62: 0.9660261976 | Q62: 1.074377342 | R62: 1.010673216 | S62: 1.108067534 | T62: 1.263095496 | U62: 1.471904834 | V62: 1.441828983 | W62: 1.377892096 | X62: 1.275810593 | Y62: 1.29047804 | Z62: 1.142996527 | AA62: 1.231815609 | AB62: 1.188231121 | AC62: 1.321835984 | AD62: 1.291963306 | AE62: 1.127636367 | AF62: 0.9916847302
A63: LRKPCRES | B63: 060119 | C63: 1 | D63: 2400 | E63: 60 | F63: 1 | G63: 1 | H63: KW | I63: 0.7871618716 | J63: 0.7072449447 | K63: 0.634673754 | L63: 0.6230368944 | M63: 0.6225783796 | N63: 0.6042013671 | O63: 0.6310524457 | P63: 0.738288707 | Q63: 0.8606639443 | R63: 0.9243188717 | S63: 1.078962843 | T63: 1.260942186 | U63: 1.322086633 | V63: 1.605022542 | W63: 1.679285697 | X63: 1.798423672 | Y63: 2.011542713 | Z63: 1.946998827 | AA63: 1.75882977 | AB63: 1.643195239 | AC63: 1.722112908 | AD63: 1.510530171 | AE63: 1.499716708 | AF63: 1.151259767
A64: LRKPCRES | B64: 060219 | C64: 1 | D64: 2400 | E64: 60 | F64: 1 | G64: 1 | H64: KW | I64: 0.9003761162 | J64: 0.7514110516 | K64: 0.7837114172 | L64: 0.7420813975 | M64: 0.6714171154 | N64: 0.6263413362 | O64: 0.6970601 | P64: 0.8145263986 | Q64: 1.111615559 | R64: 1.313285393 | S64: 1.288448946 | T64: 1.467482385 | U64: 1.707876985 | V64: 1.871512568 | W64: 2.06265439 | X64: 2.251452747 | Y64: 2.228770874 | Z64: 2.157938706 | AA64: 2.128152296 | AB64: 1.985745117 | AC64: 1.774735694 | AD64: 1.787802845 | AE64: 1.568077053 | AF64: 1.275177746
A65: LRKPCRES | B65: 060319 | C65: 1 | D65: 2400 | E65: 60 | F65: 1 | G65: 1 | H65: KW | I65: 0.9963376937 | J65: 0.7756802166 | K65: 0.7274016754 | L65: 0.7069540333 | M65: 0.6062257161 | N65: 0.6586524456 | O65: 0.8435142613 | P65: 0.8109676987 | Q65: 0.8409315852 | R65: 0.8888875475 | S65: 1.038962978 | T65: 1.217188034 | U65: 1.269468466 | V65: 1.346148357 | W65: 1.329631758 | X65: 1.472645585 | Y65: 1.802007339 | Z65: 1.645006556 | AA65: 1.596483919 | AB65: 1.60801292 | AC65: 1.291176663 | AD65: 1.277189094 | AE65: 1.171581048 | AF65: 0.8988718896
A66: LRKPCRES | B66: 060419 | C66: 1 | D66: 2400 | E66: 60 | F66: 1 | G66: 1 | H66: KW | I66: 0.7100582413 | J66: 0.6800187887 | K66: 0.604366879 | L66: 0.5368765882 | M66: 0.5709542802 | N66: 0.6034262107 | O66: 0.7116243355 | P66: 0.8375052397 | Q66: 0.9780208643 | R66: 0.9079378508 | S66: 0.8236393511 | T66: 0.9593789746 | U66: 1.091632564 | V66: 1.480660935 | W66: 1.603883492 | X66: 1.767378419 | Y66: 1.924146445 | Z66: 2.107081589 | AA66: 1.964582035 | AB66: 1.90410707 | AC66: 1.610780849 | AD66: 1.724879601 | AE66: 1.450776722 | AF66: 1.219292532
A67: LRKPCRES | B67: 060519 | C67: 1 | D67: 2400 | E67: 60 | F67: 1 | G67: 1 | H67: KW | I67: 1.012239748 | J67: 0.8392370662 | K67: 0.7628710678 | L67: 0.7435068502 | M67: 0.7058498788 | N67: 0.726560846 | O67: 0.9684936077 | P67: 0.9572310249 | Q67: 0.9022419805 | R67: 1.056110027 | S67: 1.049398817 | T67: 1.050815921 | U67: 1.282215954 | V67: 1.301139002 | W67: 1.274182068 | X67: 1.666396349 | Y67: 1.810132149 | Z67: 1.938134918 | AA67: 1.974340026 | AB67: 2.021409499 | AC67: 1.993797458 | AD67: 1.921147582 | AE67: 1.611178897 | AF67: 1.298653466
A68: LRKPCRES | B68: 060619 | C68: 1 | D68: 2400 | E68: 60 | F68: 1 | G68: 1 | H68: KW | I68: 1.164704529 | J68: 0.9177056654 | K68: 0.7826439628 | L68: 0.7841718305 | M68: 0.7366144998 | N68: 0.7239228358 | O68: 0.9436823183 | P68: 1.03787541 | Q68: 1.005992087 | R68: 1.191469879 | S68: 1.203882767 | T68: 1.576964433 | U68: 1.908386711 | V68: 2.059092043 | W68: 2.187078218 | X68: 2.372612583 | Y68: 2.354964113 | Z68: 2.241797484 | AA68: 2.090627792 | AB68: 1.96349679 | AC68: 2.017998516 | AD68: 1.842934014 | AE68: 1.696358791 | AF68: 1.483464578
A69: LRKPCRES | B69: 060719 | C69: 1 | D69: 2400 | E69: 60 | F69: 1 | G69: 1 | H69: KW | I69: 1.228752754 | J69: 0.9496392701 | K69: 0.856492348 | L69: 0.8014475048 | M69: 0.8536841592 | N69: 0.7601488233 | O69: 0.9153457447 | P69: 1.029919923 | Q69: 1.101321903 | R69: 1.284915908 | S69: 1.285299023 | T69: 1.363357669 | U69: 1.443391074 | V69: 1.253496699 | W69: 1.276496813 | X69: 1.464036858 | Y69: 1.618061644 | Z69: 1.764749938 | AA69: 1.692811367 | AB69: 1.645442146 | AC69: 1.646512049 | AD69: 1.665904117 | AE69: 1.497324047 | AF69: 1.165976413
A70: LRKPCRES | B70: 060819 | C70: 1 | D70: 2400 | E70: 60 | F70: 1 | G70: 1 | H70: KW | I70: 1.020226261 | J70: 0.9109352716 | K70: 0.8277562309 | L70: 0.8100184752 | M70: 0.7987867462 | N70: 0.767183565 | O70: 0.8150761209 | P70: 0.8975196291 | Q70: 0.9975195342 | R70: 1.213590572 | S70: 1.258459148 | T70: 1.415101128 | U70: 1.571643027 | V70: 1.822917635 | W70: 1.735910707 | X70: 1.854565996 | Y70: 1.987076276 | Z70: 2.182340652 | AA70: 1.981675839 | AB70: 1.909537703 | AC70: 1.792070972 | AD70: 1.737928341 | AE70: 1.620268047 | AF70: 1.405021568
A71: LRKPCRES | B71: 060919 | C71: 1 | D71: 2400 | E71: 60 | F71: 1 | G71: 1 | H71: KW | I71: 1.050866125 | J71: 0.8750611933 | K71: 0.7715671509 | L71: 0.7473534883 | M71: 0.6961600027 | N71: 0.7566828078 | O71: 0.74957914 | P71: 0.7501339219 | Q71: 0.9802194949 | R71: 1.294595088 | S71: 1.329962531 | T71: 1.432122 | U71: 1.455590248 | V71: 1.677207603 | W71: 1.800573918 | X71: 2.068717505 | Y71: 1.99983418 | Z71: 1.934700135 | AA71: 1.935879972 | AB71: 2.147930349 | AC71: 1.866468033 | AD71: 1.726912629 | AE71: 1.490221539 | AF71: 1.270432047
A72: LRKPCRES | B72: 061019 | C72: 1 | D72: 2400 | E72: 60 | F72: 1 | G72: 1 | H72: KW | I72: 1.04361333 | J72: 0.9236655028 | K72: 0.9360064944 | L72: 0.8289915986 | M72: 0.839653709 | N72: 0.916380725 | O72: 0.9184774633 | P72: 0.9248191488 | Q72: 0.9745005552 | R72: 1.112002233 | S72: 1.411788298 | T72: 1.460428943 | U72: 1.637617027 | V72: 1.748678783 | W72: 1.693489045 | X72: 1.653014456 | Y72: 1.738992348 | Z72: 1.747870998 | AA72: 1.797774801 | AB72: 1.679983873 | AC72: 1.569627962 | AD72: 1.568077338 | AE72: 1.519083918 | AF72: 1.086446126
A73: LRKPCRES | B73: 061119 | C73: 1 | D73: 2400 | E73: 60 | F73: 1 | G73: 1 | H73: KW | I73: 0.9206035349 | J73: 0.7688816517 | K73: 0.6947711665 | L73: 0.6816061797 | M73: 0.690739048 | N73: 0.7321651532 | O73: 0.8061981672 | P73: 0.7984197312 | Q73: 0.9019314148 | R73: 0.9505395346 | S73: 1.09760142 | T73: 1.151658281 | U73: 1.173139785 | V73: 1.292997587 | W73: 1.37964268 | X73: 1.444372825 | Y73: 1.558027414 | Z73: 1.52734496 | AA73: 1.512604983 | AB73: 1.631539379 | AC73: 1.350660275 | AD73: 1.341970056 | AE73: 1.1540475 | AF73: 1.079862777
A74: LRKPCRES | B74: 061219 | C74: 1 | D74: 2400 | E74: 60 | F74: 1 | G74: 1 | H74: KW | I74: 0.7850433404 | J74: 0.7039215077 | K74: 0.6452438947 | L74: 0.7011182719 | M74: 0.692487083 | N74: 0.6511012941 | O74: 0.8337594939 | P74: 0.7989286919 | Q74: 0.8400806963 | R74: 1.007783164 | S74: 0.9528730754 | T74: 1.010725629 | U74: 1.093697421 | V74: 1.185111363 | W74: 1.308673537 | X74: 1.280070641 | Y74: 1.416248948 | Z74: 1.493313903 | AA74: 1.451146704 | AB74: 1.553758274 | AC74: 1.342012008 | AD74: 1.238575685 | AE74: 1.305667052 | AF74: 0.9857636736
A75: LRKPCRES | B75: 061319 | C75: 1 | D75: 2400 | E75: 60 | F75: 1 | G75: 1 | H75: KW | I75: 0.8427047167 | J75: 0.7869946314 | K75: 0.6772211243 | L75: 0.6240831082 | M75: 0.6002957674 | N75: 0.6717749863 | O75: 0.8176788149 | P75: 0.8811465277 | Q75: 0.8101341576 | R75: 0.8078403346 | S75: 0.9684032786 | T75: 0.9895900409 | U75: 1.032432003 | V75: 1.272030202 | W75: 1.256954761 | X75: 1.329560194 | Y75: 1.32791204 | Z75: 1.434844106 | AA75: 1.257154973 | AB75: 1.319383545 | AC75: 1.275232242 | AD75: 1.367753848 | AE75: 1.181180848 | AF75: 0.9095120315
A76: LRKPCRES | B76: 061419 | C76: 1 | D76: 2400 | E76: 60 | F76: 1 | G76: 1 | H76: KW | I76: 0.7580296076 | J76: 0.6422601461 | K76: 0.614279158 | L76: 0.5850338019 | M76: 0.6361111232 | N76: 0.7767295472 | O76: 0.9252437352 | P76: 0.9275357113 | Q76: 0.8953028443 | R76: 1.02396678 | S76: 0.877849525 | T76: 0.9522510946 | U76: 1.12072268 | V76: 1.152368761 | W76: 1.357009329 | X76: 1.395137178 | Y76: 1.512593351 | Z76: 1.483176455 | AA76: 1.545211281 | AB76: 1.465923342 | AC76: 1.376806026 | AD76: 1.461650509 | AE76: 1.272056449 | AF76: 1.061291652
A77: LRKPCRES | B77: 061519 | C77: 1 | D77: 2400 | E77: 60 | F77: 1 | G77: 1 | H77: KW | I77: 0.8911531854 | J77: 0.7421241844 | K77: 0.6697833853 | L77: 0.6951536195 | M77: 0.6730665474 | N77: 0.6153018833 | O77: 0.7196304326 | P77: 0.7381885178 | Q77: 0.9218240529 | R77: 1.065050412 | S77: 1.217505786 | T77: 1.612760846 | U77: 1.78562146 | V77: 1.612391996 | W77: 1.747014722 | X77: 1.961403743 | Y77: 2.037073462 | Z77: 2.108642695 | AA77: 1.985064921 | AB77: 1.801209913 | AC77: 1.652231773 | AD77: 1.589068048 | AE77: 1.583963418 | AF77: 1.45852963
A78: LRKPCRES | B78: 061619 | C78: 1 | D78: 2400 | E78: 60 | F78: 1 | G78: 1 | H78: KW | I78: 1.165762471 | J78: 0.9918482537 | K78: 0.8203409121 | L78: 0.7404839513 | M78: 0.7429434196 | N78: 0.7062946585 | O78: 0.8270827738 | P78: 0.8864837867 | Q78: 1.18748089 | R78: 1.369855271 | S78: 1.522093076 | T78: 1.566225697 | U78: 1.801698931 | V78: 1.949242898 | W78: 2.073166082 | X78: 2.307145744 | Y78: 2.520668384 | Z78: 2.602065875 | AA78: 2.627164336 | AB78: 2.356162046 | AC78: 2.278209205 | AD78: 2.273469968 | AE78: 2.020436214 | AF78: 1.505211879
A79: LRKPCRES | B79: 061719 | C79: 1 | D79: 2400 | E79: 60 | F79: 1 | G79: 1 | H79: KW | I79: 1.167267297 | J79: 0.9879376393 | K79: 0.9841563032 | L79: 0.8841709233 | M79: 0.9028601989 | N79: 0.9242581551 | O79: 1.03750888 | P79: 1.079565905 | Q79: 1.168209298 | R79: 1.332641884 | S79: 1.452771959 | T79: 1.534767473 | U79: 1.665741354 | V79: 1.765366086 | W79: 2.112626623 | X79: 2.25786261 | Y79: 2.247919707 | Z79: 2.116973132 | AA79: 2.119759814 | AB79: 1.928224142 | AC79: 1.694685785 | AD79: 1.711833382 | AE79: 1.54026792 | AF79: 1.24900286
A80: LRKPCRES | B80: 061819 | C80: 1 | D80: 2400 | E80: 60 | F80: 1 | G80: 1 | H80: KW | I80: 1.116174954 | J80: 1.015428844 | K80: 0.8367584311 | L80: 0.8135694259 | M80: 0.8761958688 | N80: 0.8862443047 | O80: 0.9561653998 | P80: 0.9776828296 | Q80: 1.11856065 | R80: 1.084658459 | S80: 1.103584883 | T80: 1.241603836 | U80: 1.340200995 | V80: 1.424207762 | W80: 1.414262892 | X80: 1.535588979 | Y80: 1.878154234 | Z80: 2.065235529 | AA80: 2.065314326 | AB80: 2.13519832 | AC80: 1.933542364 | AD80: 1.783729267 | AE80: 1.466366925 | AF80: 1.24535565
A81: LRKPCRES | B81: 061919 | C81: 1 | D81: 2400 | E81: 60 | F81: 1 | G81: 1 | H81: KW | I81: 1.089662302 | J81: 0.8944505853 | K81: 0.8708578089 | L81: 0.865602743 | M81: 0.8416626522 | N81: 0.8374784208 | O81: 0.9006368273 | P81: 0.9602631282 | Q81: 1.095940061 | R81: 1.345032219 | S81: 1.404331708 | T81: 1.487283968 | U81: 1.695320215 | V81: 1.637337711 | W81: 1.891103292 | X81: 2.07208138 | Y81: 2.153959069 | Z81: 2.343090001 | AA81: 2.353945603 | AB81: 2.306088579 | AC81: 2.128682117 | AD81: 1.95719242 | AE81: 1.873871554 | AF81: 1.506626627
A82: LRKPCRES | B82: 062019 | C82: 1 | D82: 2400 | E82: 60 | F82: 1 | G82: 1 | H82: KW | I82: 1.245662435 | J82: 1.040166711 | K82: 0.9825818118 | L82: 0.931867768 | M82: 0.877082355 | N82: 0.8400268942 | O82: 1.026264803 | P82: 1.069616395 | Q82: 1.023714392 | R82: 1.054190775 | S82: 1.104447056 | T82: 1.191773044 | U82: 1.280227481 | V82: 1.40920552 | W82: 1.549005995 | X82: 1.532761595 | Y82: 1.646570363 | Z82: 1.859917115 | AA82: 1.96199823 | AB82: 1.859298789 | AC82: 1.667251909 | AD82: 1.793639675 | AE82: 1.599480988 | AF82: 1.236620189
A83: LRKPCRES | B83: 062119 | C83: 1 | D83: 2400 | E83: 60 | F83: 1 | G83: 1 | H83: KW | I83: 1.068475451 | J83: 0.9312455549 | K83: 0.8360422619 | L83: 0.7806798918 | M83: 0.7578840392 | N83: 0.8369767139 | O83: 0.9767956595 | P83: 1.005328107 | Q83: 1.07686853 | R83: 1.173426447 | S83: 1.193612048 | T83: 1.227670565 | U83: 1.479884619 | V83: 1.684756071 | W83: 1.874483922 | X83: 1.943182729 | Y83: 1.967793006 | Z83: 2.147208031 | AA83: 2.099219023 | AB83: 1.998300017 | AC83: 1.762181762 | AD83: 1.596564148 | AE83: 1.631339414 | AF83: 1.327006609
A84: LRKPCRES | B84: 062219 | C84: 1 | D84: 2400 | E84: 60 | F84: 1 | G84: 1 | H84: KW | I84: 1.122675689 | J84: 0.9724952456 | K84: 0.8911123503 | L84: 0.8817114507 | M84: 0.777410147 | N84: 0.7795518328 | O84: 0.7980158073 | P84: 0.8167802588 | Q84: 1.034678086 | R84: 1.049678902 | S84: 1.161275044 | T84: 1.338506909 | U84: 1.52041192 | V84: 1.578954206 | W84: 1.661988838 | X84: 1.854569641 | Y84: 1.936781377 | Z84: 2.032528794 | AA84: 1.887461721 | AB84: 1.850951056 | AC84: 1.656092209 | AD84: 1.569435447 | AE84: 1.413014643 | AF84: 1.13426521
A85: LRKPCRES | B85: 062319 | C85: 1 | D85: 2400 | E85: 60 | F85: 1 | G85: 1 | H85: KW | I85: 1.012597994 | J85: 0.8103675542 | K85: 0.7844774612 | L85: 0.7027607742 | M85: 0.6913673692 | N85: 0.6984472816 | O85: 0.7080709963 | P85: 0.7747826484 | Q85: 0.9730102483 | R85: 1.247295701 | S85: 1.505107897 | T85: 1.750515281 | U85: 1.948330325 | V85: 1.973812504 | W85: 2.220731589 | X85: 2.491330487 | Y85: 2.773893211 | Z85: 2.734852034 | AA85: 2.655207995 | AB85: 2.411455575 | AC85: 2.289277034 | AD85: 2.129725882 | AE85: 1.975304951 | AF85: 1.637603164
A86: LRKPCRES | B86: 062419 | C86: 1 | D86: 2400 | E86: 60 | F86: 1 | G86: 1 | H86: KW | I86: 1.382385246 | J86: 1.082202609 | K86: 1.046946588 | L86: 0.9238106526 | M86: 0.8423783122 | N86: 0.8794076522 | O86: 1.07336382 | P86: 1.047305146 | Q86: 0.9942503507 | R86: 1.22416227 | S86: 1.637845603 | T86: 2.116941814 | U86: 2.246301596 | V86: 2.387792398 | W86: 2.606179069 | X86: 2.651333932 | Y86: 2.80737015 | Z86: 2.791915814 | AA86: 2.306510597 | AB86: 2.235565183 | AC86: 2.015683642 | AD86: 1.906825796 | AE86: 1.789039861 | AF86: 1.401588419
A87: LRKPCRES | B87: 062519 | C87: 1 | D87: 2400 | E87: 60 | F87: 1 | G87: 1 | H87: KW | I87: 1.288640807 | J87: 1.039387242 | K87: 0.9361082415 | L87: 0.8662046665 | M87: 0.8169526501 | N87: 0.8525420737 | O87: 1.076882043 | P87: 1.109070571 | Q87: 1.290621063 | R87: 1.416200698 | S87: 1.545930217 | T87: 1.599892282 | U87: 1.863532058 | V87: 2.066338208 | W87: 2.229665896 | X87: 2.255460134 | Y87: 2.396006345 | Z87: 2.668090127 | AA87: 2.376505502 | AB87: 2.312065599 | AC87: 2.031865096 | AD87: 1.926767248 | AE87: 1.687247546 | AF87: 1.432380948
A88: LRKPCRES | B88: 062619 | C88: 1 | D88: 2400 | E88: 60 | F88: 1 | G88: 1 | H88: KW | I88: 1.083883107 | J88: 0.9630685107 | K88: 0.8445710649 | L88: 0.7528560034 | M88: 0.7571037374 | N88: 0.7921347576 | O88: 0.9837314145 | P88: 0.9503760022 | Q88: 0.9993458553 | R88: 1.215490364 | S88: 1.366067491 | T88: 1.568597026 | U88: 1.877942065 | V88: 2.233638179 | W88: 2.479632499 | X88: 2.517082249 | Y88: 2.928963151 | Z88: 2.913363726 | AA88: 2.815882996 | AB88: 2.5797655 | AC88: 2.522655377 | AD88: 2.273863144 | AE88: 2.012965779 | AF88: 1.690786446
A89: LRKPCRES | B89: 062719 | C89: 1 | D89: 2400 | E89: 60 | F89: 1 | G89: 1 | H89: KW | I89: 1.298612977 | J89: 1.242221099 | K89: 1.112232904 | L89: 0.9761542584 | M89: 0.8884743014 | N89: 0.9092552303 | O89: 1.062082838 | P89: 1.049411501 | Q89: 1.15918712 | R89: 1.353062702 | S89: 1.634795723 | T89: 1.928231406 | U89: 2.106823881 | V89: 2.366018867 | W89: 2.605522852 | X89: 2.94658376 | Y89: 2.972910813 | Z89: 2.963225647 | AA89: 2.9877179 | AB89: 2.623053714 | AC89: 2.502908466 | AD89: 2.459260785 | AE89: 2.01647418 | AF89: 1.589466035
A90: LRKPCRES | B90: 062819 | C90: 1 | D90: 2400 | E90: 60 | F90: 1 | G90: 1 | H90: KW | I90: 1.412102751 | J90: 1.19862765 | K90: 1.023301902 | L90: 0.9809060966 | M90: 0.8783418104 | N90: 0.9085035216 | O90: 1.016627545 | P90: 1.018962744 | Q90: 1.207981213 | R90: 1.494738097 | S90: 1.778130435 | T90: 2.018541462 | U90: 2.270057532 | V90: 2.598045159 | W90: 2.859634644 | X90: 2.988554438 | Y90: 2.94799048 | Z90: 2.854741867 | AA90: 2.856160162 | AB90: 2.673324943 | AC90: 2.318715053 | AD90: 2.229774623 | AE90: 2.132837923 | AF90: 1.850517175
A91: LRKPCRES | B91: 062919 | C91: 1 | D91: 2400 | E91: 60 | F91: 1 | G91: 1 | H91: KW | I91: 1.581789252 | J91: 1.288798738 | K91: 1.081690816 | L91: 0.9733357256 | M91: 0.9874298618 | N91: 0.8715703284 | O91: 0.880110594 | P91: 1.100916305 | Q91: 1.242292832 | R91: 1.47964671 | S91: 1.797932853 | T91: 2.326068897 | U91: 2.510932366 | V91: 2.645430332 | W91: 2.811850261 | X91: 2.834750978 | Y91: 2.987996786 | Z91: 3.015956759 | AA91: 2.891961417 | AB91: 2.686193974 | AC91: 2.34859986 | AD91: 2.343726093 | AE91: 2.00757075 | AF91: 1.873888909
A92: LRKPCRES | B92: 063019 | C92: 1 | D92: 2400 | E92: 60 | F92: 1 | G92: 1 | H92: KW | I92: 1.673824794 | J92: 1.483897927 | K92: 1.26479332 | L92: 1.148846283 | M92: 1.059981217 | N92: 1.016703295 | O92: 0.9801324403 | P92: 1.067104865 | Q92: 1.378941759 | R92: 1.720774036 | S92: 1.92960484 | T92: 2.21984892 | U92: 2.496972501 | V92: 2.658401482 | W92: 2.766333232 | X92: 2.780743264 | Y92: 2.952225498 | Z92: 2.907630418 | AA92: 2.757397055 | AB92: 2.48647983 | AC92: 2.601467214 | AD92: 2.362557108 | AE92: 2.121893776 | AF92: 1.870569116
A93: LRKPCRES | B93: 070119 | C93: 1 | D93: 2400 | E93: 60 | F93: 1 | G93: 1 | H93: KW | I93: 1.533060923 | J93: 1.258584721 | K93: 1.142265817 | L93: 1.038167077 | M93: 0.9413780266 | N93: 1.046872291 | O93: 1.080273135 | P93: 1.121121559 | Q93: 1.192322424 | R93: 1.466145008 | S93: 1.611657987 | T93: 1.924509907 | U93: 2.180251969 | V93: 2.283891233 | W93: 2.717817105 | X93: 2.896902117 | Y93: 3.105399865 | Z93: 3.143385482 | AA93: 3.047504787 | AB93: 2.952829643 | AC93: 2.817809776 | AD93: 2.545394627 | AE93: 2.401905159 | AF93: 1.989930235
A94: LRKPCRES | B94: 070219 | C94: 1 | D94: 2400 | E94: 60 | F94: 1 | G94: 1 | H94: KW | I94: 1.675882434 | J94: 1.403814456 | K94: 1.334074028 | L94: 1.216108327 | M94: 1.072832243 | N94: 1.067704925 | O94: 1.310891842 | P94: 1.130009229 | Q94: 1.293885151 | R94: 1.455742226 | S94: 1.806733968 | T94: 1.872536163 | U94: 2.00229109 | V94: 2.349782367 | W94: 2.641205403 | X94: 2.880689591 | Y94: 2.732366245 | Z94: 2.778561939 | AA94: 2.535664622 | AB94: 2.451839015 | AC94: 2.094418823 | AD94: 2.049030721 | AE94: 1.830888304 | AF94: 1.510635434
A95: LRKPCRES | B95: 070319 | C95: 1 | D95: 2400 | E95: 60 | F95: 1 | G95: 1 | H95: KW | I95: 1.286589665 | J95: 1.127484149 | K95: 1.014611641 | L95: 1.054411263 | M95: 0.9379250618 | N95: 0.9508436871 | O95: 1.078335234 | P95: 1.050281037 | Q95: 0.9971388272 | R95: 1.340187444 | S95: 1.667859205 | T95: 1.778904912 | U95: 1.99476209 | V95: 2.306111655 | W95: 2.660070219 | X95: 2.849290797 | Y95: 2.889827294 | Z95: 2.710873845 | AA95: 2.490134242 | AB95: 2.274499859 | AC95: 2.083388335 | AD95: 2.04654102 | AE95: 1.955331088 | AF95: 1.567142045
A96: LRKPCRES | B96: 070419 | C96: 1 | D96: 2400 | E96: 60 | F96: 1 | G96: 1 | H96: KW | I96: 1.298892559 | J96: 1.157160447 | K96: 1.10847592 | L96: 1.021626769 | M96: 0.9281978637 | N96: 0.9584939459 | O96: 0.9442959972 | P96: 1.078053522 | Q96: 1.25331524 | R96: 1.495468212 | S96: 1.944058669 | T96: 2.352139869 | U96: 2.706489191 | V96: 2.668729537 | W96: 2.737454577 | X96: 2.871384812 | Y96: 2.964672647 | Z96: 2.756820021 | AA96: 2.788659651 | AB96: 2.448683174 | AC96: 2.336113174 | AD96: 2.069022482 | AE96: 1.928250938 | AF96: 1.723119627
A97: LRKPCRES | B97: 070519 | C97: 1 | D97: 2400 | E97: 60 | F97: 1 | G97: 1 | H97: KW | I97: 1.473885527 | J97: 1.288792239 | K97: 1.141525139 | L97: 1.047559393 | M97: 1.008077115 | N97: 0.9724189202 | O97: 1.037892051 | P97: 1.028422843 | Q97: 1.198217043 | R97: 1.466664154 | S97: 1.810305979 | T97: 2.092926174 | U97: 2.268110804 | V97: 2.579168865 | W97: 2.808390832 | X97: 2.938497138 | Y97: 3.102180589 | Z97: 3.05785757 | AA97: 3.01289734 | AB97: 2.89157952 | AC97: 2.792326812 | AD97: 2.499105615 | AE97: 2.59374199 | AF97: 2.129567872
A98: LRKPCRES | B98: 070619 | C98: 1 | D98: 2400 | E98: 60 | F98: 1 | G98: 1 | H98: KW | I98: 1.794616619 | J98: 1.460180459 | K98: 1.270991808 | L98: 1.22358361 | M98: 1.159113505 | N98: 1.041511693 | O98: 1.138449203 | P98: 1.134069958 | Q98: 1.405369269 | R98: 1.647371535 | S98: 2.019518837 | T98: 2.337227974 | U98: 2.554475199 | V98: 2.821530978 | W98: 2.843414137 | X98: 3.047443631 | Y98: 3.03914146 | Z98: 2.866841529 | AA98: 2.868748799 | AB98: 2.519574998 | AC98: 2.529320206 | AD98: 2.353652851 | AE98: 2.141038151 | AF98: 1.826715255
A99: LRKPCRES | B99: 070719 | C99: 1 | D99: 2400 | E99: 60 | F99: 1 | G99: 1 | H99: KW | I99: 1.634585183 | J99: 1.551947004 | K99: 1.292366262 | L99: 1.161739551 | M99: 1.109400357 | N99: 1.022195956 | O99: 1.05882213 | P99: 1.093205913 | Q99: 1.261772243 | R99: 1.579896447 | S99: 2.089871794 | T99: 2.395888025 | U99: 2.432301724 | V99: 2.586119569 | W99: 2.404426841 | X99: 2.573199386 | Y99: 2.724835715 | Z99: 3.027616052 | AA99: 2.595671331 | AB99: 2.54955611 | AC99: 2.382548823 | AD99: 2.191047679 | AE99: 2.010756391 | AF99: 1.795501608
A100: LRKPCRES | B100: 070819 | C100: 1 | D100: 2400 | E100: 60 | F100: 1 | G100: 1 | H100: KW | I100: 1.582025257 | J100: 1.294256126 | K100: 1.23938387 | L100: 1.139492537 | M100: 1.138687102 | N100: 1.138042808 | O100: 1.178480568 | P100: 1.320302909 | Q100: 1.394114369 | R100: 1.405901094 | S100: 1.518192234 | T100: 1.801109129 | U100: 1.858367148 | V100: 2.267515747 | W100: 2.401090123 | X100: 2.893690977 | Y100: 2.918668306 | Z100: 3.133492923 | AA100: 2.85978441 | AB100: 2.862904785 | AC100: 2.667535388 | AD100: 2.388864321 | AE100: 1.979999181 | AF100: 1.713628491
A101: LRKPCRES | B101: 070919 | C101: 1 | D101: 2400 | E101: 60 | F101: 1 | G101: 1 | H101: KW | I101: 1.299860069 | J101: 1.171787505 | K101: 1.102859917 | L101: 1.036919149 | M101: 0.9726120417 | N101: 0.9411744092 | O101: 1.196696047 | P101: 1.185588954 | Q101: 1.242024092 | R101: 1.527475337 | S101: 1.834649147 | T101: 2.111572326 | U101: 2.479993444 | V101: 2.656479862 | W101: 2.914500868 | X101: 3.019627768 | Y101: 3.029483498 | Z101: 3.20815046 | AA101: 3.191544174 | AB101: 3.061072455 | AC101: 2.960791756 | AD101: 2.658977235 | AE101: 2.199953626 | AF101: 1.86656358
A102: LRKPCRES | B102: 071019 | C102: 1 | D102: 2400 | E102: 60 | F102: 1 | G102: 1 | H102: KW | I102: 1.705998445 | J102: 1.450236692 | K102: 1.276012858 | L102: 1.11968121 | M102: 1.104460963 | N102: 1.118456191 | O102: 1.217088739 | P102: 1.304288686 | Q102: 1.38788682 | R102: 1.560652948 | S102: 1.962555717 | T102: 2.272898236 | U102: 2.582258253 | V102: 2.651796375 | W102: 2.877565278 | X102: 3.134738576 | Y102: 3.07381579 | Z102: 3.074486701 | AA102: 3.064388077 | AB102: 2.809197223 | AC102: 2.81281669 | AD102: 2.641094426 | AE102: 2.464471075 | AF102: 2.020570932
A103: LRKPCRES | B103: 071119 | C103: 1 | D103: 2400 | E103: 60 | F103: 1 | G103: 1 | H103: KW | I103: 1.746393007 | J103: 1.602953275 | K103: 1.455477647 | L103: 1.353737946 | M103: 1.267102021 | N103: 1.191305339 | O103: 1.427950011 | P103: 1.301683844 | Q103: 1.338404589 | R103: 1.415366057 | S103: 1.395106338 | T103: 1.556028102 | U103: 1.644104501 | V103: 1.798949955 | W103: 2.021523847 | X103: 2.349012845 | Y103: 2.417308165 | Z103: 2.595717527 | AA103: 2.333512178 | AB103: 2.295149554 | AC103: 2.164030212 | AD103: 2.059746866 | AE103: 1.867254457 | AF103: 1.615146279
A104: LRKPCRES | B104: 071219 | C104: 1 | D104: 2400 | E104: 60 | F104: 1 | G104: 1 | H104: KW | I104: 1.36551199 | J104: 1.162701259 | K104: 1.007283894 | L104: 0.9427973502 | M104: 0.9858306609 | N104: 0.9997753773 | O104: 1.1205239 | P104: 1.102005748 | Q104: 1.163711657 | R104: 1.3359987 | S104: 1.61629142 | T104: 2.003503978 | U104: 2.318371502 | V104: 2.470932766 | W104: 2.586968929 | X104: 2.900356661 | Y104: 3.003805097 | Z104: 2.90834457 | AA104: 2.844038507 | AB104: 2.608509905 | AC104: 2.621526766 | AD104: 2.564277105 | AE104: 2.209279533 | AF104: 1.781987185
A105: LRKPCRES | B105: 071319 | C105: 1 | D105: 2400 | E105: 60 | F105: 1 | G105: 1 | H105: KW | I105: 1.517136582 | J105: 1.322403524 | K105: 1.159804455 | L105: 1.07417352 | M105: 0.9579132081 | N105: 0.9639764809 | O105: 1.038842899 | P105: 1.146423069 | Q105: 1.277075094 | R105: 1.557728866 | S105: 1.917734282 | T105: 2.381426555 | U105: 2.747885875 | V105: 2.799105455 | W105: 2.901242743 | X105: 2.959384905 | Y105: 2.950173568 | Z105: 3.0230885 | AA105: 2.916441253 | AB105: 2.716735917 | AC105: 2.475065994 | AD105: 2.404367026 | AE105: 2.275597703 | AF105: 1.836612356
A106: LRKPCRES | B106: 071419 | C106: 1 | D106: 2400 | E106: 60 | F106: 1 | G106: 1 | H106: KW | I106: 1.610097127 | J106: 1.436464461 | K106: 1.307916741 | L106: 1.10450566 | M106: 1.038825481 | N106: 0.9948018195 | O106: 1.047500663 | P106: 1.069854035 | Q106: 1.264175787 | R106: 1.672097246 | S106: 1.92089948 | T106: 2.289633159 | U106: 2.493984649 | V106: 2.684901462 | W106: 2.856497756 | X106: 2.953658249 | Y106: 3.005985291 | Z106: 3.201467157 | AA106: 3.174952616 | AB106: 2.915247125 | AC106: 2.663411999 | AD106: 2.433048085 | AE106: 2.300062323 | AF106: 1.995455465
A107: LRKPCRES | B107: 071519 | C107: 1 | D107: 2400 | E107: 60 | F107: 1 | G107: 1 | H107: KW | I107: 1.766809441 | J107: 1.462847241 | K107: 1.293855404 | L107: 1.171812884 | M107: 1.145743558 | N107: 1.146666347 | O107: 1.328153328 | P107: 1.312663964 | Q107: 1.401339789 | R107: 1.625674871 | S107: 1.877774211 | T107: 2.297250673 | U107: 2.619371291 | V107: 2.90084746 | W107: 3.089227828 | X107: 3.027973195 | Y107: 3.046535641 | Z107: 2.717089813 | AA107: 2.547373778 | AB107: 2.207157029 | AC107: 2.110400626 | AD107: 2.108926664 | AE107: 1.931860757 | AF107: 1.593331643
A108: LRKPCRES | B108: 071619 | C108: 1 | D108: 2400 | E108: 60 | F108: 1 | G108: 1 | H108: KW | I108: 1.429085475 | J108: 1.151691764 | K108: 1.096111435 | L108: 1.073181873 | M108: 0.9994311189 | N108: 1.037748901 | O108: 1.189563739 | P108: 1.203828539 | Q108: 1.218532831 | R108: 1.49876513 | S108: 1.695635734 | T108: 2.045222282 | U108: 2.273602937 | V108: 2.788587573 | W108: 2.878537922 | X108: 3.125253611 | Y108: 3.223664575 | Z108: 3.32802398 | AA108: 3.189395708 | AB108: 2.991354303 | AC108: 2.788766588 | AD108: 2.514183142 | AE108: 2.296164829 | AF108: 1.890970016
A109: LRKPCRES | B109: 071719 | C109: 1 | D109: 2400 | E109: 60 | F109: 1 | G109: 1 | H109: KW | I109: 1.641410794 | J109: 1.414301916 | K109: 1.251252312 | L109: 1.185344462 | M109: 1.187476222 | N109: 1.163018956 | O109: 1.287446345 | P109: 1.381184439 | Q109: 1.299419123 | R109: 1.514279084 | S109: 1.666993296 | T109: 1.802679377 | U109: 1.887646837 | V109: 1.976844501 | W109: 2.245407722 | X109: 2.414496891 | Y109: 2.485431484 | Z109: 2.554795911 | AA109: 2.543068392 | AB109: 2.496392921 | AC109: 2.242838214 | AD109: 2.099301726 | AE109: 1.94603832 | AF109: 1.771577482
A110: LRKPCRES | B110: 071819 | C110: 1 | D110: 2400 | E110: 60 | F110: 1 | G110: 1 | H110: KW | I110: 1.454914962 | J110: 1.287226315 | K110: 1.234280762 | L110: 1.115995462 | M110: 1.06638666 | N110: 1.096798863 | O110: 1.218926276 | P110: 1.254575391 | Q110: 1.273348439 | R110: 1.339861987 | S110: 1.608384073 | T110: 1.888673109 | U110: 2.059703182 | V110: 2.292443665 | W110: 2.545930949 | X110: 2.764378234 | Y110: 2.745780176 | Z110: 2.679908885 | AA110: 2.64671289 | AB110: 2.504176643 | AC110: 2.314853521 | AD110: 2.263137202 | AE110: 2.165731148 | AF110: 1.725035475
A111: LRKPCRES | B111: 071919 | C111: 1 | D111: 2400 | E111: 60 | F111: 1 | G111: 1 | H111: KW | I111: 1.520438536 | J111: 1.365275365 | K111: 1.25952337 | L111: 1.108343825 | M111: 1.082966529 | N111: 0.9876171159 | O111: 1.117152388 | P111: 1.237791455 | Q111: 1.351803336 | R111: 1.649190606 | S111: 1.998739991 | T111: 2.404660286 | U111: 2.654380867 | V111: 2.787573334 | W111: 2.976702241 | X111: 3.218210237 | Y111: 3.217828147 | Z111: 3.166322033 | AA111: 3.092666452 | AB111: 3.005968913 | AC111: 2.998176598 | AD111: 2.679600274 | AE111: 2.54901851 | AF111: 2.201789754
A112: LRKPCRES | B112: 072019 | C112: 1 | D112: 2400 | E112: 60 | F112: 1 | G112: 1 | H112: KW | I112: 1.848607087 | J112: 1.694526682 | K112: 1.540422072 | L112: 1.425361395 | M112: 1.348984663 | N112: 1.305996205 | O112: 1.287166173 | P112: 1.459850708 | Q112: 1.501154416 | R112: 1.841108214 | S112: 2.176450959 | T112: 2.493401285 | U112: 2.722041075 | V112: 2.870177308 | W112: 3.110656999 | X112: 3.180103261 | Y112: 3.202097234 | Z112: 3.337718897 | AA112: 3.374598309 | AB112: 3.117285613 | AC112: 3.031415364 | AD112: 2.767819933 | AE112: 2.622144177 | AF112: 2.260676883
A113: LRKPCRES | B113: 072119 | C113: 1 | D113: 2400 | E113: 60 | F113: 1 | G113: 1 | H113: KW | I113: 1.91602248 | J113: 1.73403717 | K113: 1.548935609 | L113: 1.377013109 | M113: 1.274024025 | N113: 1.274445635 | O113: 1.23033344 | P113: 1.39157784 | Q113: 1.684744322 | R113: 1.900281514 | S113: 2.071774493 | T113: 2.363697964 | U113: 2.648330291 | V113: 2.937515124 | W113: 3.152465813 | X113: 3.144372839 | Y113: 3.082802383 | Z113: 2.912704293 | AA113: 2.618316941 | AB113: 2.322252308 | AC113: 2.034408797 | AD113: 2.011863112 | AE113: 1.884621969 | AF113: 1.605122122
A114: LRKPCRES | B114: 072219 | C114: 1 | D114: 2400 | E114: 60 | F114: 1 | G114: 1 | H114: KW | I114: 1.421483664 | J114: 1.266029859 | K114: 1.190227119 | L114: 1.150718481 | M114: 1.061962013 | N114: 1.105217514 | O114: 1.153035132 | P114: 1.301586348 | Q114: 1.152399631 | R114: 1.321802806 | S114: 1.374960128 | T114: 1.373671567 | U114: 1.4639542 | V114: 1.669030933 | W114: 1.708668513 | X114: 1.974772775 | Y114: 2.171580236 | Z114: 2.291218618 | AA114: 2.171326718 | AB114: 2.077152767 | AC114: 2.115670576 | AD114: 1.930760175 | AE114: 1.609387882 | AF114: 1.385563292
A115: LRKPCRES | B115: 072319 | C115: 1 | D115: 2400 | E115: 60 | F115: 1 | G115: 1 | H115: KW | I115: 1.229056301 | J115: 1.175143817 | K115: 0.9840334799 | L115: 0.9340233508 | M115: 0.8896760399 | N115: 0.9834734244 | O115: 1.011219325 | P115: 1.115903599 | Q115: 1.204100914 | R115: 1.077886404 | S115: 1.297765597 | T115: 1.307717119 | U115: 1.37826578 | V115: 1.506947053 | W115: 1.70079938 | X115: 1.752259016 | Y115: 1.967807745 | Z115: 2.09951508 | AA115: 2.022610946 | AB115: 1.914762848 | AC115: 1.745148392 | AD115: 1.693886573 | AE115: 1.52877336 | AF115: 1.233427136
A116: LRKPCRES | B116: 072419 | C116: 1 | D116: 2400 | E116: 60 | F116: 1 | G116: 1 | H116: KW | I116: 1.032620804 | J116: 0.9102940486 | K116: 0.7963103086 | L116: 0.7070979432 | M116: 0.7448874535 | N116: 0.7585289855 | O116: 0.9013798226 | P116: 0.9342724515 | Q116: 0.8613419211 | R116: 1.047351735 | S116: 1.324911019 | T116: 1.542840902 | U116: 1.52977633 | V116: 1.632641327 | W116: 1.806779921 | X116: 2.026212762 | Y116: 2.127067727 | Z116: 2.274301342 | AA116: 2.190816499 | AB116: 1.962229127 | AC116: 1.847094727 | AD116: 1.754139299 | AE116: 1.401377521 | AF116: 1.117140049
A117: LRKPCRES | B117: 072519 | C117: 1 | D117: 2400 | E117: 60 | F117: 1 | G117: 1 | H117: KW | I117: 0.9794221456 | J117: 0.8773611613 | K117: 0.7919856136 | L117: 0.754994012 | M117: 0.6572699328 | N117: 0.7560382859 | O117: 0.8196483795 | P117: 0.8015065665 | Q117: 0.8212668125 | R117: 1.1146273 | S117: 1.1765903 | T117: 1.368043453 | U117: 1.538405054 | V117: 1.758569807 | W117: 1.921024797 | X117: 2.056249339 | Y117: 2.082999183 | Z117: 2.37333263 | AA117: 2.411305145 | AB117: 2.093490373 | AC117: 2.030687007 | AD117: 1.834013879 | AE117: 1.571049891 | AF117: 1.258275984
A118: LRKPCRES | B118: 072619 | C118: 1 | D118: 2400 | E118: 60 | F118: 1 | G118: 1 | H118: KW | I118: 1.077756084 | J118: 0.9301981695 | K118: 0.8378887979 | L118: 0.7572534365 | M118: 0.7056231984 | N118: 0.7687434329 | O118: 0.9429016159 | P118: 1.000786832 | Q118: 0.9337699068 | R118: 1.150427786 | S118: 1.200658458 | T118: 1.597934316 | U118: 1.748410978 | V118: 2.04577284 | W118: 2.277660877 | X118: 2.407474974 | Y118: 2.529266765 | Z118: 2.707949578 | AA118: 2.464987172 | AB118: 2.242163376 | AC118: 2.147666908 | AD118: 2.133245088 | AE118: 1.785667028 | AF118: 1.395449741
A119: LRKPCRES | B119: 072719 | C119: 1 | D119: 2400 | E119: 60 | F119: 1 | G119: 1 | H119: KW | I119: 1.21806623 | J119: 1.185298689 | K119: 1.007582011 | L119: 0.8200727952 | M119: 0.7887121501 | N119: 0.7965482555 | O119: 0.767640113 | P119: 0.827401392 | Q119: 1.045070027 | R119: 1.144294817 | S119: 1.492788205 | T119: 1.743747351 | U119: 2.151170669 | V119: 2.357390613 | W119: 2.495082102 | X119: 2.716585807 | Y119: 2.724096507 | Z119: 2.704681438 | AA119: 2.488071235 | AB119: 2.414592225 | AC119: 2.161247421 | AD119: 1.969826932 | AE119: 1.896484178 | AF119: 1.579547088
A120: LRKPCRES | B120: 072819 | C120: 1 | D120: 2400 | E120: 60 | F120: 1 | G120: 1 | H120: KW | I120: 1.331548327 | J120: 1.066974971 | K120: 0.9787262283 | L120: 0.8829545064 | M120: 0.7949077286 | N120: 0.7599881733 | O120: 0.8016459604 | P120: 0.9286968034 | Q120: 1.247964558 | R120: 1.586335587 | S120: 1.668336197 | T120: 1.890050643 | U120: 2.180680288 | V120: 2.495836258 | W120: 2.780115437 | X120: 2.768650336 | Y120: 2.755388934 | Z120: 2.800101696 | AA120: 2.625911054 | AB120: 2.407948961 | AC120: 2.507835547 | AD120: 2.338089017 | AE120: 2.06156212 | AF120: 1.687777885
A121: LRKPCRES | B121: 072919 | C121: 1 | D121: 2400 | E121: 60 | F121: 1 | G121: 1 | H121: KW | I121: 1.487268894 | J121: 1.215421016 | K121: 1.119195803 | L121: 1.008528161 | M121: 0.9597085714 | N121: 0.9617568744 | O121: 1.078510946 | P121: 1.062170929 | Q121: 1.327271432 | R121: 1.465643654 | S121: 1.781952728 | T121: 2.119106909 | U121: 2.329263158 | V121: 2.430824782 | W121: 2.859447993 | X121: 2.864272608 | Y121: 2.985508942 | Z121: 2.954035515 | AA121: 2.890587231 | AB121: 2.645342887 | AC121: 2.370349038 | AD121: 2.326665778 | AE121: 2.164727533 | AF121: 1.849384426
A122: LRKPCRES | B122: 073019 | C122: 1 | D122: 2400 | E122: 60 | F122: 1 | G122: 1 | H122: KW | I122: 1.471522657 | J122: 1.286063206 | K122: 1.192308828 | L122: 1.159970612 | M122: 0.9843600783 | N122: 0.9814165938 | O122: 1.184346652 | P122: 1.173183246 | Q122: 1.219970493 | R122: 1.388157727 | S122: 1.538039519 | T122: 1.777364318 | U122: 1.933648441 | V122: 2.299033074 | W122: 2.201068708 | X122: 2.371280656 | Y122: 2.503168184 | Z122: 2.433416927 | AA122: 2.274055265 | AB122: 2.094272619 | AC122: 1.953908557 | AD122: 1.896873324 | AE122: 1.751422984 | AF122: 1.391151725
A123: LRKPCRES | B123: 073119 | C123: 1 | D123: 2400 | E123: 60 | F123: 1 | G123: 1 | H123: KW | I123: 1.221657778 | J123: 0.99159131 | K123: 0.8613647641 | L123: 0.8575084718 | M123: 0.8632718046 | N123: 0.8479537817 | O123: 1.024807935 | P123: 1.045263046 | Q123: 1.032237796 | R123: 1.303518929 | S123: 1.646388275 | T123: 1.847554327 | U123: 2.005882465 | V123: 2.209892012 | W123: 2.275230786 | X123: 2.492352087 | Y123: 2.618934618 | Z123: 2.613807232 | AA123: 2.578551933 | AB123: 2.431687167 | AC123: 2.300261374 | AD123: 2.326592493 | AE123: 1.903829614 | AF123: 1.59076605
A124: LRKPCRES | B124: 080119 | C124: 1 | D124: 2400 | E124: 60 | F124: 1 | G124: 1 | H124: KW | I124: 1.361902847 | J124: 1.277625178 | K124: 1.10009224 | L124: 1.054944749 | M124: 0.9857236095 | N124: 0.9842151405 | O124: 1.04218373 | P124: 1.111542729 | Q124: 1.128369372 | R124: 1.233473768 | S124: 1.496800189 | T124: 1.679209651 | U124: 2.036273301 | V124: 2.196559039 | W124: 2.381931169 | X124: 2.621879402 | Y124: 2.83257346 | Z124: 2.919790782 | AA124: 2.730479769 | AB124: 2.516900079 | AC124: 2.426637775 | AD124: 2.230636924 | AE124: 1.941000463 | AF124: 1.678679216
A125: LRKPCRES | B125: 080219 | C125: 1 | D125: 2400 | E125: 60 | F125: 1 | G125: 1 | H125: KW | I125: 1.38149064 | J125: 1.175432081 | K125: 0.9946300347 | L125: 0.9347587216 | M125: 0.9655997305 | N125: 0.8480681659 | O125: 0.9718981551 | P125: 1.12580898 | Q125: 1.063493876 | R125: 1.168953889 | S125: 1.404822795 | T125: 1.713819011 | U125: 2.109798811 | V125: 2.46592932 | W125: 2.625451335 | X125: 2.726013214 | Y125: 2.685439227 | Z125: 2.591688852 | AA125: 2.458769858 | AB125: 2.298903785 | AC125: 2.178735949 | AD125: 2.135360055 | AE125: 1.70958028 | AF125: 1.532182202
A126: LRKPCRES | B126: 080319 | C126: 1 | D126: 2400 | E126: 60 | F126: 1 | G126: 1 | H126: KW | I126: 1.258803581 | J126: 1.192779424 | K126: 1.013800804 | L126: 0.9581518171 | M126: 0.8884202305 | N126: 0.8676940991 | O126: 0.9100627272 | P126: 1.002065687 | Q126: 1.073869833 | R126: 1.50640806 | S126: 1.735597015 | T126: 2.003605935 | U126: 2.197210897 | V126: 2.357213194 | W126: 2.483945934 | X126: 2.541841759 | Y126: 2.686647878 | Z126: 2.666880566 | AA126: 2.684470574 | AB126: 2.517563332 | AC126: 2.181312266 | AD126: 2.233101349 | AE126: 1.915460975 | AF126: 1.573417848
A127: LRKPCRES | B127: 080419 | C127: 1 | D127: 2400 | E127: 60 | F127: 1 | G127: 1 | H127: KW | I127: 1.35767367 | J127: 1.155668804 | K127: 1.023138453 | L127: 0.9282542349 | M127: 0.8672715929 | N127: 0.9265889381 | O127: 0.9010734821 | P127: 0.9807703406 | Q127: 1.051773565 | R127: 1.410589041 | S127: 1.515841317 | T127: 1.678158328 | U127: 1.821382311 | V127: 2.271652137 | W127: 2.444620547 | X127: 2.636032707 | Y127: 2.693281713 | Z127: 2.800951893 | AA127: 2.531861751 | AB127: 2.558988161 | AC127: 2.262586302 | AD127: 2.122492132 | AE127: 1.857699156 | AF127: 1.465868763
A128: LRKPCRES | B128: 080519 | C128: 1 | D128: 2400 | E128: 60 | F128: 1 | G128: 1 | H128: KW | I128: 1.180249277 | J128: 1.04423803 | K128: 1.035010751 | L128: 0.8708387449 | M128: 0.8282342992 | N128: 0.8307437259 | O128: 0.8734350215 | P128: 0.986597697 | Q128: 1.08006916 | R128: 1.342723504 | S128: 1.679198608 | T128: 1.859489547 | U128: 2.241009005 | V128: 2.316091463 | W128: 2.549916149 | X128: 2.62447908 | Y128: 2.743485064 | Z128: 2.888560597 | AA128: 2.962943723 | AB128: 2.755256072 | AC128: 2.578642772 | AD128: 2.189192352 | AE128: 2.052784119 | AF128: 1.702983729
A129: LRKPCRES | B129: 080619 | C129: 1 | D129: 2400 | E129: 60 | F129: 1 | G129: 1 | H129: KW | I129: 1.465744024 | J129: 1.193532638 | K129: 1.033548584 | L129: 0.9636892873 | M129: 0.8994553098 | N129: 0.8699650832 | O129: 0.9668453881 | P129: 0.9965106103 | Q129: 1.140730971 | R129: 1.26553867 | S129: 1.490874409 | T129: 1.760882146 | U129: 2.014080886 | V129: 2.128003496 | W129: 2.273790898 | X129: 2.633808456 | Y129: 2.734913062 | Z129: 2.587986082 | AA129: 2.497918331 | AB129: 2.344391629 | AC129: 2.136550952 | AD129: 2.102820424 | AE129: 1.890362196 | AF129: 1.59916603
A130: LRKPCRES | B130: 080719 | C130: 1 | D130: 2400 | E130: 60 | F130: 1 | G130: 1 | H130: KW | I130: 1.272230077 | J130: 1.079207942 | K130: 1.005594529 | L130: 0.9720545487 | M130: 0.9480734561 | N130: 0.9525327887 | O130: 1.135993801 | P130: 1.04030297 | Q130: 1.104944798 | R130: 1.263017508 | S130: 1.395742026 | T130: 1.572848796 | U130: 1.593289183 | V130: 1.877724315 | W130: 2.047205749 | X130: 2.283909285 | Y130: 2.407932211 | Z130: 2.5269938 | AA130: 2.441101439 | AB130: 2.280764512 | AC130: 2.32145936 | AD130: 2.073508497 | AE130: 1.714751656 | AF130: 1.45599992
A131: LRKPCRES | B131: 080819 | C131: 1 | D131: 2400 | E131: 60 | F131: 1 | G131: 1 | H131: KW | I131: 1.287636962 | J131: 1.118617259 | K131: 0.9767102005 | L131: 0.9290588184 | M131: 0.8433623903 | N131: 0.915536295 | O131: 1.038446088 | P131: 1.125887698 | Q131: 1.002762285 | R131: 1.167872136 | S131: 1.410063749 | T131: 1.742474681 | U131: 1.933192903 | V131: 2.154349452 | W131: 2.265601173 | X131: 2.492335594 | Y131: 2.706251371 | Z131: 2.71270203 | AA131: 2.599726051 | AB131: 2.459002399 | AC131: 2.172217875 | AD131: 2.105571377 | AE131: 1.854440135 | AF131: 1.566555464
A132: LRKPCRES | B132: 080919 | C132: 1 | D132: 2400 | E132: 60 | F132: 1 | G132: 1 | H132: KW | I132: 1.32875099 | J132: 1.172521587 | K132: 1.089875697 | L132: 0.9798424891 | M132: 0.9589924903 | N132: 0.9214680869 | O132: 1.163979201 | P132: 1.282261808 | Q132: 1.124835135 | R132: 1.194973964 | S132: 1.359794853 | T132: 1.67233509 | U132: 1.943652642 | V132: 2.260216733 | W132: 2.471325517 | X132: 2.826275363 | Y132: 2.785758167 | Z132: 2.753162789 | AA132: 2.66959199 | AB132: 2.4462083 | AC132: 2.371847946 | AD132: 2.149735207 | AE132: 2.117067176 | AF132: 1.704841366
A133: LRKPCRES | B133: 081019 | C133: 1 | D133: 2400 | E133: 60 | F133: 1 | G133: 1 | H133: KW | I133: 1.465048717 | J133: 1.233408734 | K133: 1.078219271 | L133: 1.022953137 | M133: 0.9685227181 | N133: 0.9391498997 | O133: 0.9004191688 | P133: 1.094499802 | Q133: 1.207831578 | R133: 1.353766694 | S133: 1.586392564 | T133: 1.929737318 | U133: 2.157923846 | V133: 2.500517224 | W133: 2.630614839 | X133: 2.672564447 | Y133: 2.730609229 | Z133: 2.783875582 | AA133: 2.690493229 | AB133: 2.351912621 | AC133: 2.179149789 | AD133: 2.049921557 | AE133: 1.715494046 | AF133: 1.437671085
A134: LRKPCRES | B134: 081119 | C134: 1 | D134: 2400 | E134: 60 | F134: 1 | G134: 1 | H134: KW | I134: 1.150597858 | J134: 0.9237999734 | K134: 0.8455533659 | L134: 0.7383485344 | M134: 0.7667187859 | N134: 0.6889328826 | O134: 0.7163712311 | P134: 0.8984359692 | Q134: 1.148238 | R134: 1.328578693 | S134: 1.388303838 | T134: 1.649441737 | U134: 1.924369073 | V134: 2.244258043 | W134: 2.360565675 | X134: 2.630235695 | Y134: 2.607263813 | Z134: 2.619667832 | AA134: 2.365884172 | AB134: 2.441456453 | AC134: 2.282476481 | AD134: 2.01558148 | AE134: 1.607505394 | AF134: 1.527320845
A135: LRKPCRES | B135: 081219 | C135: 1 | D135: 2400 | E135: 60 | F135: 1 | G135: 1 | H135: KW | I135: 1.194537672 | J135: 0.9831814931 | K135: 0.866830612 | L135: 0.8283395802 | M135: 0.7277009709 | N135: 0.7945087004 | O135: 0.950604797 | P135: 0.9253466555 | Q135: 0.9435711068 | R135: 1.182198448 | S135: 1.435428087 | T135: 1.721218149 | U135: 2.011723259 | V135: 2.204792996 | W135: 2.446031047 | X135: 2.635792223 | Y135: 2.486309665 | Z135: 2.538095031 | AA135: 2.635549565 | AB135: 2.644573045 | AC135: 2.31454266 | AD135: 2.498261984 | AE135: 2.226185468 | AF135: 1.714133089
A136: LRKPCRES | B136: 081319 | C136: 1 | D136: 2400 | E136: 60 | F136: 1 | G136: 1 | H136: KW | I136: 1.393259311 | J136: 1.257261226 | K136: 1.185378593 | L136: 1.141605459 | M136: 1.128275006 | N136: 1.155080581 | O136: 1.33765734 | P136: 1.339855479 | Q136: 1.275568928 | R136: 1.400171445 | S136: 1.659933794 | T136: 1.62583534 | U136: 1.715214721 | V136: 1.878329185 | W136: 2.124283886 | X136: 2.32360051 | Y136: 2.536444588 | Z136: 2.511383786 | AA136: 2.560703042 | AB136: 2.644920993 | AC136: 2.690641473 | AD136: 2.344398163 | AE136: 2.132976585 | AF136: 1.740344021
A137: LRKPCRES | B137: 081419 | C137: 1 | D137: 2400 | E137: 60 | F137: 1 | G137: 1 | H137: KW | I137: 1.480618849 | J137: 1.28054264 | K137: 1.207233616 | L137: 1.129883397 | M137: 1.108368943 | N137: 1.136398741 | O137: 1.432223394 | P137: 1.29319195 | Q137: 1.145842199 | R137: 1.301980509 | S137: 1.520867761 | T137: 1.946227513 | U137: 2.053822785 | V137: 2.194117177 | W137: 2.329801026 | X137: 2.541789736 | Y137: 2.662106005 | Z137: 2.701427986 | AA137: 2.72056961 | AB137: 2.509091905 | AC137: 2.43761034 | AD137: 2.328133235 | AE137: 1.985568858 | AF137: 1.690868237
A138: LRKPCRES | B138: 081519 | C138: 1 | D138: 2400 | E138: 60 | F138: 1 | G138: 1 | H138: KW | I138: 1.480496652 | J138: 1.210733171 | K138: 1.063767386 | L138: 0.9974248635 | M138: 1.030701404 | N138: 1.000120881 | O138: 1.164676209 | P138: 1.052325765 | Q138: 1.160370977 | R138: 1.336188814 | S138: 1.695584622 | T138: 1.818072312 | U138: 2.084298718 | V138: 2.409605393 | W138: 2.553230822 | X138: 2.655571805 | Y138: 2.790193986 | Z138: 2.872538389 | AA138: 2.70180207 | AB138: 2.521509219 | AC138: 2.465580035 | AD138: 2.12899876 | AE138: 1.79153948 | AF138: 1.537480648
A139: LRKPCRES | B139: 081619 | C139: 1 | D139: 2400 | E139: 60 | F139: 1 | G139: 1 | H139: KW | I139: 1.180796283 | J139: 1.023331533 | K139: 0.9000024782 | L139: 0.8695956791 | M139: 0.9049296696 | N139: 0.8553430692 | O139: 1.049369826 | P139: 1.09422355 | Q139: 1.120955018 | R139: 1.217526747 | S139: 1.456959687 | T139: 1.586545176 | U139: 1.83270195 | V139: 2.116720343 | W139: 2.396031951 | X139: 2.621440079 | Y139: 2.690791456 | Z139: 2.730310707 | AA139: 2.41622994 | AB139: 2.306568797 | AC139: 2.253152591 | AD139: 2.23346943 | AE139: 1.872278654 | AF139: 1.710774834
A140: LRKPCRES | B140: 081719 | C140: 1 | D140: 2400 | E140: 60 | F140: 1 | G140: 1 | H140: KW | I140: 1.403061947 | J140: 1.134709653 | K140: 0.9863717814 | L140: 0.9626291979 | M140: 0.86641923 | N140: 0.8177127298 | O140: 0.8814961509 | P140: 0.8979517139 | Q140: 1.17099673 | R140: 1.438216462 | S140: 1.691376958 | T140: 2.132756213 | U140: 2.356404448 | V140: 2.647752082 | W140: 2.835882464 | X140: 2.912001887 | Y140: 3.041111306 | Z140: 2.852211843 | AA140: 2.653113982 | AB140: 2.4536614 | AC140: 2.371271181 | AD140: 2.517316173 | AE140: 2.254107095 | AF140: 1.865801003
A141: LRKPCRES | B141: 081819 | C141: 1 | D141: 2400 | E141: 60 | F141: 1 | G141: 1 | H141: KW | I141: 1.539431841 | J141: 1.285017266 | K141: 1.163351027 | L141: 1.055907265 | M141: 0.9871997622 | N141: 0.8846202594 | O141: 0.950993996 | P141: 1.033332192 | Q141: 1.299919772 | R141: 1.578777722 | S141: 1.774599311 | T141: 2.123504466 | U141: 2.553547328 | V141: 2.763850378 | W141: 3.013709204 | X141: 3.216236291 | Y141: 3.133395032 | Z141: 3.139532023 | AA141: 3.025746977 | AB141: 2.716067153 | AC141: 2.670668203 | AD141: 2.543423686 | AE141: 2.170833186 | AF141: 1.803626255
A142: LRKPCRES | B142: 081919 | C142: 1 | D142: 2400 | E142: 60 | F142: 1 | G142: 1 | H142: KW | I142: 1.58393755 | J142: 1.49884219 | K142: 1.33035747 | L142: 1.211211745 | M142: 1.108170209 | N142: 1.127411022 | O142: 1.323802268 | P142: 1.21983732 | Q142: 1.192578043 | R142: 1.35043581 | S142: 1.676787505 | T142: 1.956026912 | U142: 2.340029193 | V142: 2.486759582 | W142: 2.815478379 | X142: 2.947705177 | Y142: 3.031244028 | Z142: 3.034302744 | AA142: 2.882986696 | AB142: 2.765843041 | AC142: 2.758664115 | AD142: 2.568964913 | AE142: 2.178420807 | AF142: 1.849469561
A143: LRKPCRES | B143: 082019 | C143: 1 | D143: 2400 | E143: 60 | F143: 1 | G143: 1 | H143: KW | I143: 1.641990418 | J143: 1.46487499 | K143: 1.339329595 | L143: 1.252966226 | M143: 1.171997205 | N143: 1.202322514 | O143: 1.355648618 | P143: 1.220854895 | Q143: 1.269526969 | R143: 1.640639366 | S143: 2.086899959 | T143: 2.323060893 | U143: 2.504326634 | V143: 2.761124458 | W143: 2.923611313 | X143: 3.153874929 | Y143: 3.004424327 | Z143: 2.89405527 | AA143: 2.766157353 | AB143: 2.558608816 | AC143: 2.464045393 | AD143: 2.398050041 | AE143: 2.030613845 | AF143: 1.712873813
A144: LRKPCRES | B144: 082119 | C144: 1 | D144: 2400 | E144: 60 | F144: 1 | G144: 1 | H144: KW | I144: 1.436445928 | J144: 1.224512384 | K144: 1.11655274 | L144: 1.110028962 | M144: 0.9960732035 | N144: 1.019605989 | O144: 1.294321033 | P144: 1.215294548 | Q144: 1.266021684 | R144: 1.527993901 | S144: 1.858502756 | T144: 2.092460769 | U144: 2.195270931 | V144: 2.266154541 | W144: 2.603040914 | X144: 2.878190968 | Y144: 2.953088512 | Z144: 2.972045007 | AA144: 3.060734774 | AB144: 2.699586971 | AC144: 2.384396124 | AD144: 2.365901228 | AE144: 2.071801063 | AF144: 1.779326349
A145: LRKPCRES | B145: 082219 | C145: 1 | D145: 2400 | E145: 60 | F145: 1 | G145: 1 | H145: KW | I145: 1.57379685 | J145: 1.438456318 | K145: 1.360731292 | L145: 1.176407615 | M145: 1.065781693 | N145: 1.03378439 | O145: 1.22198435 | P145: 1.156580824 | Q145: 1.29374594 | R145: 1.340288492 | S145: 1.618248898 | T145: 1.684184684 | U145: 1.991856605 | V145: 2.292533292 | W145: 2.311681121 | X145: 2.274787075 | Y145: 2.561258175 | Z145: 2.616647886 | AA145: 2.369438664 | AB145: 2.4432172 | AC145: 2.297631273 | AD145: 2.274398135 | AE145: 1.851382613 | AF145: 1.596724441
A146: LRKPCRES | B146: 082319 | C146: 1 | D146: 2400 | E146: 60 | F146: 1 | G146: 1 | H146: KW | I146: 1.310375834 | J146: 1.169924509 | K146: 1.081290616 | L146: 1.072735166 | M146: 1.040565887 | N146: 1.086746948 | O146: 1.228100454 | P146: 1.285221979 | Q146: 1.089394472 | R146: 1.350521795 | S146: 1.323400575 | T146: 1.425153294 | U146: 1.401365251 | V146: 1.462481601 | W146: 1.630989259 | X146: 1.7232885 | Y146: 1.601829822 | Z146: 1.542041155 | AA146: 1.6633375 | AB146: 1.546828872 | AC146: 1.45789681 | AD146: 1.423923231 | AE146: 1.148117206 | AF146: 1.054460037
A147: LRKPCRES | B147: 082419 | C147: 1 | D147: 2400 | E147: 60 | F147: 1 | G147: 1 | H147: KW | I147: 0.9486878841 | J147: 0.8143089842 | K147: 0.7604020295 | L147: 0.7727025294 | M147: 0.710145195 | N147: 0.6660766877 | O147: 0.7490007931 | P147: 0.7765102706 | Q147: 0.8971166341 | R147: 1.118764243 | S147: 1.236939969 | T147: 1.43378972 | U147: 1.65895912 | V147: 1.720338394 | W147: 1.8460652 | X147: 1.907859303 | Y147: 2.297783751 | Z147: 2.171889032 | AA147: 1.95376178 | AB147: 1.754225122 | AC147: 1.630282675 | AD147: 1.532397849 | AE147: 1.349250411 | AF147: 1.172267686
A148: LRKPCRES | B148: 082519 | C148: 1 | D148: 2400 | E148: 60 | F148: 1 | G148: 1 | H148: KW | I148: 0.9108536067 | J148: 0.8272583251 | K148: 0.7283142537 | L148: 0.6621454049 | M148: 0.6154245446 | N148: 0.6245236001 | O148: 0.6556823706 | P148: 0.7719107307 | Q148: 0.8683807256 | R148: 1.219494503 | S148: 1.353790567 | T148: 1.540687762 | U148: 1.738855096 | V148: 1.957775626 | W148: 1.953945493 | X148: 2.190821993 | Y148: 2.372855093 | Z148: 2.332742132 | AA148: 2.0936065 | AB148: 2.095157822 | AC148: 1.985338959 | AD148: 1.758946765 | AE148: 1.398324064 | AF148: 1.191934707
A149: LRKPCRES | B149: 082619 | C149: 1 | D149: 2400 | E149: 60 | F149: 1 | G149: 1 | H149: KW | I149: 1.017047901 | J149: 0.8933950671 | K149: 0.7640765925 | L149: 0.7944588251 | M149: 0.7676147852 | N149: 0.7736134345 | O149: 1.035238558 | P149: 0.9967534712 | Q149: 0.9052135648 | R149: 1.131422716 | S149: 1.153482443 | T149: 1.15433212 | U149: 1.279305693 | V149: 1.292464243 | W149: 1.262411095 | X149: 1.296001105 | Y149: 1.607992566 | Z149: 1.645291642 | AA149: 1.541370831 | AB149: 1.541654934 | AC149: 1.621872041 | AD149: 1.483295935 | AE149: 1.231030844 | AF149: 0.964853593
A150: LRKPCRES | B150: 082719 | C150: 1 | D150: 2400 | E150: 60 | F150: 1 | G150: 1 | H150: KW | I150: 0.9486478865 | J150: 0.8162379952 | K150: 0.7544422584 | L150: 0.7505071507 | M150: 0.7570026201 | N150: 0.8024376107 | O150: 1.06619809 | P150: 0.9778890611 | Q150: 1.008018103 | R150: 1.039159163 | S150: 1.163246993 | T150: 1.167440465 | U150: 1.349869079 | V150: 1.489317985 | W150: 1.589277488 | X150: 1.66948665 | Y150: 2.030303961 | Z150: 2.204857098 | AA150: 2.238721625 | AB150: 2.18226112 | AC150: 2.159074793 | AD150: 1.980525066 | AE150: 1.646079753 | AF150: 1.412184033
A151: LRKPCRES | B151: 082819 | C151: 1 | D151: 2400 | E151: 60 | F151: 1 | G151: 1 | H151: KW | I151: 1.169765312 | J151: 1.012396948 | K151: 0.9504665081 | L151: 0.9765322309 | M151: 0.8830254752 | N151: 1.010258562 | O151: 1.190935748 | P151: 1.134403867 | Q151: 1.020312853 | R151: 1.324592901 | S151: 1.327806382 | T151: 1.534961168 | U151: 1.755249028 | V151: 1.823590305 | W151: 2.002948408 | X151: 2.159028398 | Y151: 2.301058686 | Z151: 2.398187979 | AA151: 2.213409484 | AB151: 1.948767993 | AC151: 1.867799909 | AD151: 1.736413165 | AE151: 1.538751268 | AF151: 1.075943455
A152: LRKPCRES | B152: 082919 | C152: 1 | D152: 2400 | E152: 60 | F152: 1 | G152: 1 | H152: KW | I152: 0.8830097311 | J152: 0.7371181029 | K152: 0.6913965798 | L152: 0.6639446197 | M152: 0.631920279 | N152: 0.7462959712 | O152: 0.9918388124 | P152: 0.8634508986 | Q152: 0.8307762571 | R152: 0.9748716405 | S152: 1.049196628 | T152: 1.178461548 | U152: 1.409256696 | V152: 1.550768774 | W152: 1.567711724 | X152: 1.79073347 | Y152: 1.874713267 | Z152: 1.877497335 | AA152: 1.984581222 | AB152: 1.751159543 | AC152: 1.830822358 | AD152: 1.637331316 | AE152: 1.39842149 | AF152: 1.1358536
A153: LRKPCRES | B153: 083019 | C153: 1 | D153: 2400 | E153: 60 | F153: 1 | G153: 1 | H153: KW | I153: 0.8355300235 | J153: 0.801361926 | K153: 0.7206022867 | L153: 0.6751077011 | M153: 0.6781798293 | N153: 0.7683916727 | O153: 0.8412597675 | P153: 0.920342557 | Q153: 0.8773602212 | R153: 0.9852720973 | S153: 1.082775468 | T153: 1.328332307 | U153: 1.539105333 | V153: 1.795253721 | W153: 1.952779569 | X153: 2.205317819 | Y153: 2.341432821 | Z153: 2.470555365 | AA153: 2.364165832 | AB153: 2.283269863 | AC153: 2.074036408 | AD153: 1.807656263 | AE153: 1.69467016 | AF153: 1.414590089
A154: LRKPCRES | B154: 083119 | C154: 1 | D154: 2400 | E154: 60 | F154: 1 | G154: 1 | H154: KW | I154: 1.18498666 | J154: 0.9859736999 | K154: 0.8713255358 | L154: 0.7925669536 | M154: 0.8086354677 | N154: 0.7197352299 | O154: 0.6939678944 | P154: 0.9422701942 | Q154: 1.163971639 | R154: 1.24652924 | S154: 1.421659852 | T154: 1.868975139 | U154: 2.075321263 | V154: 2.266457514 | W154: 2.54287622 | X154: 2.648945443 | Y154: 2.7076435 | Z154: 2.691741069 | AA154: 2.540676875 | AB154: 2.446371515 | AC154: 2.165831265 | AD154: 2.055870829 | AE154: 1.764084745 | AF154: 1.499532855
A155: LRKPCRES | B155: 090119 | C155: 1 | D155: 2400 | E155: 60 | F155: 1 | G155: 1 | H155: KW | I155: 1.284298811 | J155: 1.068653718 | K155: 0.9732878074 | L155: 0.9231155336 | M155: 0.8267398751 | N155: 0.8545877804 | O155: 0.7977110004 | P155: 0.8751962833 | Q155: 1.135811343 | R155: 1.421381048 | S155: 1.575153356 | T155: 1.773827974 | U155: 1.98382631 | V155: 2.099639615 | W155: 2.378169796 | X155: 2.521018866 | Y155: 2.613279801 | Z155: 2.683699986 | AA155: 2.543007707 | AB155: 2.300446537 | AC155: 2.249779393 | AD155: 1.971473774 | AE155: 1.667534979 | AF155: 1.458066871
A156: LRKPCRES | B156: 090219 | C156: 1 | D156: 2400 | E156: 60 | F156: 1 | G156: 1 | H156: KW | I156: 1.184992599 | J156: 1.038595899 | K156: 0.9792807388 | L156: 0.8896076702 | M156: 0.9135233822 | N156: 0.8886049614 | O156: 0.8891988984 | P156: 0.8900986608 | Q156: 0.9203706249 | R156: 1.483863126 | S156: 1.848345568 | T156: 1.882862324 | U156: 2.14455707 | V156: 2.215119595 | W156: 2.561786771 | X156: 2.492808297 | Y156: 2.624263874 | Z156: 2.561548145 | AA156: 2.649090043 | AB156: 2.538566426 | AC156: 2.464310364 | AD156: 2.088086173 | AE156: 1.800833264 | AF156: 1.426177496
A157: LRKPCRES | B157: 090319 | C157: 1 | D157: 2400 | E157: 60 | F157: 1 | G157: 1 | H157: KW | I157: 1.140505721 | J157: 0.9964069447 | K157: 0.9037998852 | L157: 0.8003547897 | M157: 0.7797249888 | N157: 0.85540486 | O157: 1.018707738 | P157: 1.003429702 | Q157: 0.9842969083 | R157: 1.283313151 | S157: 1.412235599 | T157: 1.605294184 | U157: 1.981517529 | V157: 2.195145899 | W157: 2.506889525 | X157: 2.581163617 | Y157: 2.858666125 | Z157: 2.753144296 | AA157: 2.607546956 | AB157: 2.402294026 | AC157: 2.284086651 | AD157: 2.07076637 | AE157: 1.671614957 | AF157: 1.403475688
A158: LRKPCRES | B158: 090419 | C158: 1 | D158: 2400 | E158: 60 | F158: 1 | G158: 1 | H158: KW | I158: 1.100543319 | J158: 1.010749699 | K158: 0.9270600755 | L158: 0.9514434822 | M158: 0.8345648031 | N158: 0.9306280493 | O158: 1.059393625 | P158: 0.9664206598 | Q158: 0.8825197614 | R158: 1.101630316 | S158: 1.326428412 | T158: 1.513132025 | U158: 1.819434945 | V158: 2.119279498 | W158: 2.593292733 | X158: 2.846468929 | Y158: 2.798974807 | Z158: 2.789621179 | AA158: 2.772789919 | AB158: 2.759292223 | AC158: 2.669702751 | AD158: 2.196531525 | AE158: 1.948320328 | AF158: 1.605432749
A159: LRKPCRES | B159: 090519 | C159: 1 | D159: 2400 | E159: 60 | F159: 1 | G159: 1 | H159: KW | I159: 1.240326178 | J159: 1.103303533 | K159: 0.951317489 | L159: 0.8553233647 | M159: 0.8600433837 | N159: 0.8979327868 | O159: 1.234045693 | P159: 1.003571555 | Q159: 0.9678122194 | R159: 1.006778804 | S159: 1.125264016 | T159: 1.245236505 | U159: 1.433019908 | V159: 1.532931591 | W159: 1.870393152 | X159: 1.932074617 | Y159: 1.930222717 | Z159: 2.087060872 | AA159: 2.105464223 | AB159: 1.81680868 | AC159: 1.975585726 | AD159: 1.903213447 | AE159: 1.633086937 | AF159: 1.251433849
A160: LRKPCRES | B160: 090619 | C160: 1 | D160: 2400 | E160: 60 | F160: 1 | G160: 1 | H160: KW | I160: 1.025225844 | J160: 0.8456547349 | K160: 0.7460393431 | L160: 0.7210599916 | M160: 0.673938915 | N160: 0.7438117024 | O160: 0.9704484733 | P160: 0.8808282077 | Q160: 0.7908161692 | R160: 0.8199472618 | S160: 0.9197542612 | T160: 1.108683533 | U160: 1.328279923 | V160: 1.51658766 | W160: 1.66904999 | X160: 1.910999401 | Y160: 2.08704535 | Z160: 2.143079839 | AA160: 1.995512145 | AB160: 1.720304063 | AC160: 1.740899511 | AD160: 1.799863631 | AE160: 1.481205734 | AF160: 1.150142618
A161: LRKPCRES | B161: 090719 | C161: 1 | D161: 2400 | E161: 60 | F161: 1 | G161: 1 | H161: KW | I161: 0.9811765978 | J161: 0.9666468806 | K161: 0.8446215967 | L161: 0.8578951992 | M161: 0.824021371 | N161: 0.7531859172 | O161: 0.7541631004 | P161: 0.9046712044 | Q161: 1.136336818 | R161: 1.131221327 | S161: 1.221086138 | T161: 1.510568688 | U161: 1.644742611 | V161: 1.728834187 | W161: 2.070114784 | X161: 2.204549059 | Y161: 2.177043415 | Z161: 2.269830206 | AA161: 2.063543646 | AB161: 1.853748563 | AC161: 1.870226766 | AD161: 1.68146697 | AE161: 1.544621469 | AF161: 1.171946112
A162: LRKPCRES | B162: 090819 | C162: 1 | D162: 2400 | E162: 60 | F162: 1 | G162: 1 | H162: KW | I162: 0.9231950669 | J162: 0.7758096617 | K162: 0.7068075956 | L162: 0.6878875144 | M162: 0.6368073484 | N162: 0.6796254026 | O162: 0.6958364088 | P162: 0.8204161484 | Q162: 1.019904991 | R162: 1.292004929 | S162: 1.292873581 | T162: 1.53538739 | U162: 1.841839847 | V162: 1.954163346 | W162: 2.143305406 | X162: 2.287882192 | Y162: 2.266172058 | Z162: 2.323891549 | AA162: 2.258709444 | AB162: 2.106063168 | AC162: 2.214406194 | AD162: 1.890377728 | AE162: 1.5554 | AF162: 1.163485581
A163: LRKPCRES | B163: 090919 | C163: 1 | D163: 2400 | E163: 60 | F163: 1 | G163: 1 | H163: KW | I163: 0.9184417564 | J163: 0.8360508071 | K163: 0.7414253018 | L163: 0.7018947179 | M163: 0.6994810719 | N163: 0.6818377899 | O163: 0.9176063929 | P163: 0.8883540904 | Q163: 0.8832957793 | R163: 0.9682949704 | S163: 1.165767497 | T163: 1.369285721 | U163: 1.612243728 | V163: 1.939266189 | W163: 2.169689711 | X163: 2.368581545 | Y163: 2.577961243 | Z163: 2.764339495 | AA163: 2.59341182 | AB163: 2.328909625 | AC163: 2.322516745 | AD163: 1.903319409 | AE163: 1.613539873 | AF163: 1.231503979
A164: LRKPCRES | B164: 091019 | C164: 1 | D164: 2400 | E164: 60 | F164: 1 | G164: 1 | H164: KW | I164: 1.02022284 | J164: 0.895368388 | K164: 0.8423082789 | L164: 0.7549152519 | M164: 0.663186227 | N164: 0.742349834 | O164: 1.020483354 | P164: 0.9366843585 | Q164: 0.8617069816 | R164: 1.065494133 | S164: 1.259307167 | T164: 1.465962933 | U164: 1.8935358 | V164: 2.148081984 | W164: 2.498339186 | X164: 2.77564323 | Y164: 2.917665155 | Z164: 2.843791801 | AA164: 2.811379145 | AB164: 2.758110293 | AC164: 2.465156581 | AD164: 2.260339757 | AE164: 1.942396036 | AF164: 1.609460624
A165: LRKPCRES | B165: 091119 | C165: 1 | D165: 2400 | E165: 60 | F165: 1 | G165: 1 | H165: KW | I165: 1.407764834 | J165: 1.257207841 | K165: 1.114923022 | L165: 0.9750116426 | M165: 0.8980105875 | N165: 1.005860706 | O165: 1.137656278 | P165: 1.162119245 | Q165: 1.002842905 | R165: 1.129230104 | S165: 1.248753127 | T165: 1.61138981 | U165: 2.001451131 | V165: 2.405257393 | W165: 2.578426874 | X165: 2.821373562 | Y165: 2.815904223 | Z165: 2.958744681 | AA165: 2.839433231 | AB165: 2.63439385 | AC165: 2.648957236 | AD165: 2.237308823 | AE165: 2.034874222 | AF165: 1.680663804
A166: LRKPCRES | B166: 091219 | C166: 1 | D166: 2400 | E166: 60 | F166: 1 | G166: 1 | H166: KW | I166: 1.426592868 | J166: 1.189164189 | K166: 1.158410163 | L166: 1.063812707 | M166: 1.016642049 | N166: 1.029466015 | O166: 1.307151097 | P166: 1.267547792 | Q166: 1.093361126 | R166: 1.271468829 | S166: 1.636595549 | T166: 1.950360152 | U166: 2.248922171 | V166: 2.497567336 | W166: 2.735022758 | X166: 2.822035996 | Y166: 2.953259984 | Z166: 2.860710676 | AA166: 2.782520456 | AB166: 2.65863105 | AC166: 2.510053269 | AD166: 2.372121028 | AE166: 2.077572343 | AF166: 1.772618944
A167: LRKPCRES | B167: 091319 | C167: 1 | D167: 2400 | E167: 60 | F167: 1 | G167: 1 | H167: KW | I167: 1.373089341 | J167: 1.240557533 | K167: 1.105523549 | L167: 1.060423648 | M167: 1.019086407 | N167: 1.038047312 | O167: 1.227703091 | P167: 0.9924373428 | Q167: 1.041959505 | R167: 1.207722756 | S167: 1.508016598 | T167: 1.988617258 | U167: 2.28556458 | V167: 2.586294988 | W167: 2.899248998 | X167: 3.059063842 | Y167: 3.007065225 | Z167: 2.786476627 | AA167: 2.834783546 | AB167: 2.366042125 | AC167: 2.287558487 | AD167: 2.201740103 | AE167: 1.991496346 | AF167: 1.785055349
A168: LRKPCRES | B168: 091419 | C168: 1 | D168: 2400 | E168: 60 | F168: 1 | G168: 1 | H168: KW | I168: 1.646461122 | J168: 1.538027893 | K168: 1.317081884 | L168: 1.23290596 | M168: 1.154351328 | N168: 1.154121065 | O168: 1.075492482 | P168: 1.138738226 | Q168: 1.130909782 | R168: 1.472139184 | S168: 1.769131361 | T168: 2.222728935 | U168: 2.393338518 | V168: 2.56862635 | W168: 2.586954232 | X168: 2.497234408 | Y168: 2.460411555 | Z168: 2.684496501 | AA168: 2.262154983 | AB168: 2.1963284 | AC168: 1.885664814 | AD168: 1.683311673 | AE168: 1.619991522 | AF168: 1.270045885
A169: LRKPCRES | B169: 091519 | C169: 1 | D169: 2400 | E169: 60 | F169: 1 | G169: 1 | H169: KW | I169: 0.9868231739 | J169: 0.8508971864 | K169: 0.7181254051 | L169: 0.628084222 | M169: 0.5831842228 | N169: 0.6097085377 | O169: 0.6596055185 | P169: 0.7513212055 | Q169: 0.9190436801 | R169: 1.041488801 | S169: 1.149397628 | T169: 1.457009739 | U169: 1.648140473 | V169: 1.847150742 | W169: 2.180034096 | X169: 2.421709267 | Y169: 2.429325591 | Z169: 2.447371406 | AA169: 2.263461234 | AB169: 2.008972923 | AC169: 1.956743539 | AD169: 1.741563886 | AE169: 1.393282503 | AF169: 1.113769535
A170: LRKPCRES | B170: 091619 | C170: 1 | D170: 2400 | E170: 60 | F170: 1 | G170: 1 | H170: KW | I170: 0.933200163 | J170: 0.7945852953 | K170: 0.6660810562 | L170: 0.6439654424 | M170: 0.6325100748 | N170: 0.7494474217 | O170: 0.9180686289 | P170: 0.7124387373 | Q170: 0.6830222491 | R170: 0.8639768149 | S170: 1.013797104 | T170: 1.117162875 | U170: 1.373008181 | V170: 1.855426019 | W170: 2.11996995 | X170: 2.283844101 | Y170: 2.527492601 | Z170: 2.590139315 | AA170: 2.577811037 | AB170: 2.44329209 | AC170: 2.30807217 | AD170: 2.255797921 | AE170: 1.952231669 | AF170: 1.449110769
A171: LRKPCRES | B171: 091719 | C171: 1 | D171: 2400 | E171: 60 | F171: 1 | G171: 1 | H171: KW | I171: 1.209985413 | J171: 1.077325194 | K171: 0.9791131701 | L171: 0.8680589473 | M171: 0.8645341851 | N171: 0.9074661502 | O171: 1.076147822 | P171: 0.9182937896 | Q171: 0.9455059991 | R171: 1.116904856 | S171: 1.308292119 | T171: 1.557708599 | U171: 1.692226651 | V171: 2.01973855 | W171: 2.183080681 | X171: 2.463356158 | Y171: 2.499460537 | Z171: 2.507715935 | AA171: 2.285790496 | AB171: 2.221792436 | AC171: 2.151642569 | AD171: 1.924936274 | AE171: 1.593673025 | AF171: 1.21937952
A172: LRKPCRES | B172: 091819 | C172: 1 | D172: 2400 | E172: 60 | F172: 1 | G172: 1 | H172: KW | I172: 1.054894731 | J172: 0.8956260502 | K172: 0.8297482403 | L172: 0.8046485869 | M172: 0.7592806782 | N172: 0.8449359947 | O172: 0.9762378447 | P172: 0.9104444738 | Q172: 0.8453581561 | R172: 0.9036559146 | S172: 1.088813724 | T172: 1.316993209 | U172: 1.706834899 | V172: 1.863710778 | W172: 2.340143317 | X172: 2.432129052 | Y172: 2.510952606 | Z172: 2.468329957 | AA172: 2.61099363 | AB172: 2.369806232 | AC172: 2.250292512 | AD172: 1.979478862 | AE172: 1.631223216 | AF172: 1.342874637
A173: LRKPCRES | B173: 091919 | C173: 1 | D173: 2400 | E173: 60 | F173: 1 | G173: 1 | H173: KW | I173: 1.051963617 | J173: 0.8637506687 | K173: 0.7653458583 | L173: 0.6718594218 | M173: 0.7152552984 | N173: 0.7866247094 | O173: 1.014131244 | P173: 1.025723996 | Q173: 0.9397083964 | R173: 0.9803786709 | S173: 1.064571403 | T173: 1.168996995 | U173: 1.289032916 | V173: 1.389917929 | W173: 1.555493142 | X173: 1.630518811 | Y173: 1.878118251 | Z173: 1.977220294 | AA173: 1.836129205 | AB173: 1.719379612 | AC173: 1.645260571 | AD173: 1.642593595 | AE173: 1.524076007 | AF173: 1.203076948
A174: LRKPCRES | B174: 092019 | C174: 1 | D174: 2400 | E174: 60 | F174: 1 | G174: 1 | H174: KW | I174: 0.9916990402 | J174: 0.8353800308 | K174: 0.830793601 | L174: 0.7571482295 | M174: 0.7344132843 | N174: 0.8092305452 | O174: 0.9654408298 | P174: 0.8916941057 | Q174: 0.8410538708 | R174: 0.9852658383 | S174: 1.140273172 | T174: 1.342338964 | U174: 1.618667432 | V174: 1.867428424 | W174: 2.041402102 | X174: 2.203998104 | Y174: 2.484429611 | Z174: 2.436492909 | AA174: 2.143032938 | AB174: 1.959851039 | AC174: 1.771708032 | AD174: 1.734528351 | AE174: 1.434804281 | AF174: 1.374397412
A175: LRKPCRES | B175: 092119 | C175: 1 | D175: 2400 | E175: 60 | F175: 1 | G175: 1 | H175: KW | I175: 1.219502356 | J175: 1.011219569 | K175: 0.8682198742 | L175: 0.811551396 | M175: 0.7707933738 | N175: 0.732642781 | O175: 0.7899719773 | P175: 0.9260972625 | Q175: 1.001857861 | R175: 1.255043673 | S175: 1.581608192 | T175: 1.807629191 | U175: 2.083293042 | V175: 2.343122033 | W175: 2.480896935 | X175: 2.567237389 | Y175: 2.61732103 | Z175: 2.522197104 | AA175: 2.317430124 | AB175: 2.10015117 | AC175: 2.060193022 | AD175: 1.850328946 | AE175: 1.641923546 | AF175: 1.366835022
A176: LRKPCRES | B176: 092219 | C176: 1 | D176: 2400 | E176: 60 | F176: 1 | G176: 1 | H176: KW | I176: 1.096084052 | J176: 0.915520484 | K176: 0.7972012117 | L176: 0.6931830027 | M176: 0.6967351507 | N176: 0.6852110512 | O176: 0.7026966723 | P176: 0.7409483986 | Q176: 1.007819693 | R176: 1.215977289 | S176: 1.352697196 | T176: 1.435120632 | U176: 1.750144804 | V176: 2.145493359 | W176: 2.336238056 | X176: 2.647461678 | Y176: 2.700682753 | Z176: 2.621598313 | AA176: 2.576546218 | AB176: 2.381985498 | AC176: 2.128986429 | AD176: 1.852630733 | AE176: 1.565241892 | AF176: 1.326163259
A177: LRKPCRES | B177: 092319 | C177: 1 | D177: 2400 | E177: 60 | F177: 1 | G177: 1 | H177: KW | I177: 1.047201675 | J177: 0.826346896 | K177: 0.7287346388 | L177: 0.6881748203 | M177: 0.6941536261 | N177: 0.7781003772 | O177: 1.037250211 | P177: 1.047704646 | Q177: 0.9290258386 | R177: 0.9559094612 | S177: 0.9481200652 | T177: 1.024478993 | U177: 1.213813737 | V177: 1.165677934 | W177: 1.353238492 | X177: 1.445759656 | Y177: 1.618953374 | Z177: 1.845945996 | AA177: 1.599634965 | AB177: 1.77985684 | AC177: 1.692221668 | AD177: 1.441015378 | AE177: 1.271991252 | AF177: 1.032565256
A178: LRKPCRES | B178: 092419 | C178: 1 | D178: 2400 | E178: 60 | F178: 1 | G178: 1 | H178: KW | I178: 0.8771442441 | J178: 0.7628483623 | K178: 0.7221887092 | L178: 0.6862509052 | M178: 0.6343542287 | N178: 0.7905882742 | O178: 1.09889184 | P178: 0.8050253915 | Q178: 0.7929363813 | R178: 0.8304038344 | S178: 0.9179194287 | T178: 1.074640406 | U178: 1.119802294 | V178: 1.233048063 | W178: 1.33869065 | X178: 1.42487058 | Y178: 1.64663495 | Z178: 1.656243907 | AA178: 1.510600466 | AB178: 1.439949121 | AC178: 1.517812846 | AD178: 1.33134612 | AE178: 1.129747004 | AF178: 0.907172574
A179: LRKPCRES | B179: 092519 | C179: 1 | D179: 2400 | E179: 60 | F179: 1 | G179: 1 | H179: KW | I179: 0.7265877013 | J179: 0.6437834246 | K179: 0.5970473671 | L179: 0.6257120018 | M179: 0.6987833153 | N179: 0.7370586613 | O179: 0.976693251 | P179: 0.91807468 | Q179: 0.8971876763 | R179: 0.8856024383 | S179: 0.8624323581 | T179: 0.959684677 | U179: 1.075806765 | V179: 1.28508214 | W179: 1.528414156 | X179: 1.733876792 | Y179: 1.88599779 | Z179: 2.106759303 | AA179: 2.00559631 | AB179: 1.689940809 | AC179: 1.619149176 | AD179: 1.566292929 | AE179: 1.322444074 | AF179: 0.9336194872
A180: LRKPCRES | B180: 092619 | C180: 1 | D180: 2400 | E180: 60 | F180: 1 | G180: 1 | H180: KW | I180: 0.8075769939 | J180: 0.7586680081 | K180: 0.6747619869 | L180: 0.6529821828 | M180: 0.7323556497 | N180: 0.7983994255 | O180: 1.027108914 | P180: 0.8055000119 | Q180: 0.7356444359 | R180: 0.7866051093 | S180: 0.9642226538 | T180: 1.044189757 | U180: 1.112248185 | V180: 1.314361329 | W180: 1.518222636 | X180: 1.610873764 | Y180: 1.613048536 | Z180: 1.722632962 | AA180: 1.756231298 | AB180: 1.58511236 | AC180: 1.679518332 | AD180: 1.614732083 | AE180: 1.37801396 | AF180: 1.022155254
A181: LRKPCRES | B181: 092719 | C181: 1 | D181: 2400 | E181: 60 | F181: 1 | G181: 1 | H181: KW | I181: 0.7625503203 | J181: 0.7269018182 | K181: 0.7874855391 | L181: 0.6563116099 | M181: 0.6123236632 | N181: 0.7347765839 | O181: 1.075344446 | P181: 0.9132999573 | Q181: 0.7953066434 | R181: 0.9697833682 | S181: 0.9562771831 | T181: 1.039935859 | U181: 1.13263195 | V181: 1.511826848 | W181: 1.715479091 | X181: 2.104835182 | Y181: 2.370649059 | Z181: 2.346691457 | AA181: 2.436652218 | AB181: 2.205091205 | AC181: 1.950018685 | AD181: 1.608926101 | AE181: 1.635041839 | AF181: 1.468596574
A182: LRKPCRES | B182: 092819 | C182: 1 | D182: 2400 | E182: 60 | F182: 1 | G182: 1 | H182: KW | I182: 1.279373339 | J182: 0.9772118973 | K182: 0.9135138107 | L182: 0.8769570906 | M182: 0.82062794 | N182: 0.8124459102 | O182: 0.839349108 | P182: 1.110328617 | Q182: 1.108454109 | R182: 1.060616685 | S182: 1.368330154 | T182: 1.662942487 | U182: 1.981874502 | V182: 2.084034045 | W182: 2.436925283 | X182: 2.557101865 | Y182: 2.594575964 | Z182: 2.678497853 | AA182: 2.562246683 | AB182: 2.420475814 | AC182: 2.204073208 | AD182: 1.981309698 | AE182: 1.727989876 | AF182: 1.545142635
A183: LRKPCRES | B183: 092919 | C183: 1 | D183: 2400 | E183: 60 | F183: 1 | G183: 1 | H183: KW | I183: 1.424948522 | J183: 1.145942988 | K183: 0.9466407224 | L183: 0.9397849597 | M183: 0.8402714091 | N183: 0.8295642571 | O183: 0.8594533963 | P183: 1.000708874 | Q183: 1.12784472 | R183: 1.244480807 | S183: 1.524395793 | T183: 1.783026528 | U183: 2.229930928 | V183: 2.371850044 | W183: 2.667123014 | X183: 2.791176962 | Y183: 2.871007185 | Z183: 2.777157085 | AA183: 2.662576324 | AB183: 2.55795249 | AC183: 2.357322652 | AD183: 1.957764202 | AE183: 1.65722885 | AF183: 1.414868694
A184: LRKPCRES | B184: 093019 | C184: 1 | D184: 2400 | E184: 60 | F184: 1 | G184: 1 | H184: KW | I184: 1.171238095 | J184: 0.9919154016 | K184: 0.9043058161 | L184: 0.8009178659 | M184: 0.8455251028 | N184: 0.902524286 | O184: 1.175986853 | P184: 0.9358960497 | Q184: 0.986548437 | R184: 1.125917995 | S184: 1.36891094 | T184: 1.537831472 | U184: 2.002831033 | V184: 2.262427582 | W184: 2.595537994 | X184: 2.663569302 | Y184: 2.747138204 | Z184: 2.740907751 | AA184: 2.697138848 | AB184: 2.609587189 | AC184: 2.504873213 | AD184: 2.197854751 | AE184: 1.833545967 | AF184: 1.584168855
A185: LRKPCRES | B185: 100119 | C185: 1 | D185: 2400 | E185: 60 | F185: 1 | G185: 1 | H185: KW | I185: 1.252663044 | J185: 1.08626424 | K185: 0.9455300981 | L185: 0.9032273181 | M185: 0.9421379721 | N185: 1.008771506 | O185: 1.258545801 | P185: 1.046300263 | Q185: 0.9321478323 | R185: 1.106708034 | S185: 1.409414164 | T185: 1.751613451 | U185: 2.146327802 | V185: 2.326650299 | W185: 2.544801695 | X185: 2.715009564 | Y185: 2.773189155 | Z185: 2.720758562 | AA185: 2.673774831 | AB185: 2.603993471 | AC185: 2.400023676 | AD185: 2.118429378 | AE185: 1.788388261 | AF185: 1.567552944
A186: LRKPCRES | B186: 100219 | C186: 1 | D186: 2400 | E186: 60 | F186: 1 | G186: 1 | H186: KW | I186: 1.382963272 | J186: 1.041623649 | K186: 0.9494857601 | L186: 0.8910018277 | M186: 0.9235376957 | N186: 0.8164580684 | O186: 1.1189917 | P186: 1.037084089 | Q186: 1.02574788 | R186: 1.179837623 | S186: 1.267667965 | T186: 1.657822156 | U186: 1.787450312 | V186: 2.027424476 | W186: 2.321911121 | X186: 2.63006761 | Y186: 2.699702735 | Z186: 2.710845365 | AA186: 2.641612742 | AB186: 2.41870051 | AC186: 2.253191906 | AD186: 2.061064323 | AE186: 1.654418525 | AF186: 1.357517549
A187: LRKPCRES | B187: 100319 | C187: 1 | D187: 2400 | E187: 60 | F187: 1 | G187: 1 | H187: KW | I187: 1.117073657 | J187: 0.975644552 | K187: 0.9001530627 | L187: 0.7913339587 | M187: 0.8297565443 | N187: 0.9382465412 | O187: 1.104589238 | P187: 1.04287821 | Q187: 0.9030026556 | R187: 1.230510162 | S187: 1.264680893 | T187: 1.51597201 | U187: 1.885548208 | V187: 2.091516159 | W187: 2.402889123 | X187: 2.724355739 | Y187: 2.697668117 | Z187: 2.78695921 | AA187: 2.563189966 | AB187: 2.364236954 | AC187: 2.332366133 | AD187: 2.101028856 | AE187: 1.891291867 | AF187: 1.498767837
A188: LRKPCRES | B188: 100419 | C188: 1 | D188: 2400 | E188: 60 | F188: 1 | G188: 1 | H188: KW | I188: 1.370004086 | J188: 1.179541508 | K188: 1.044132076 | L188: 0.8991933221 | M188: 0.8740508551 | N188: 0.8676857684 | O188: 1.021453405 | P188: 0.9842109974 | Q188: 0.9233580426 | R188: 1.039148234 | S188: 1.046785389 | T188: 1.126839972 | U188: 1.231045581 | V188: 1.456475382 | W188: 1.75326528 | X188: 1.807837106 | Y188: 1.83780961 | Z188: 1.771324175 | AA188: 1.501138758 | AB188: 1.281334577 | AC188: 1.37845007 | AD188: 1.200798644 | AE188: 0.9943486282 | AF188: 0.8467143474
A189: LRKPCRES | B189: 100519 | C189: 1 | D189: 2400 | E189: 60 | F189: 1 | G189: 1 | H189: KW | I189: 0.7190244476 | J189: 0.6900300945 | K189: 0.6204793837 | L189: 0.5641244562 | M189: 0.6293179698 | N189: 0.6135429052 | O189: 0.598112451 | P189: 0.8962291546 | Q189: 0.9996735885 | R189: 0.9198827138 | S189: 1.052708405 | T189: 0.9596097979 | U189: 1.064706515 | V189: 1.174829439 | W189: 1.440454853 | X189: 1.703863943 | Y189: 1.894673383 | Z189: 1.82987815 | AA189: 1.674223996 | AB189: 1.724527586 | AC189: 1.719125631 | AD189: 1.406495514 | AE189: 1.230106478 | AF189: 1.093566571
A190: LRKPCRES | B190: 100619 | C190: 1 | D190: 2400 | E190: 60 | F190: 1 | G190: 1 | H190: KW | I190: 0.9018485488 | J190: 0.765714091 | K190: 0.675746115 | L190: 0.6687667141 | M190: 0.6092317676 | N190: 0.7248770344 | O190: 0.6776416709 | P190: 0.7590466705 | Q190: 0.9572515323 | R190: 1.13538714 | S190: 1.012211132 | T190: 1.013782798 | U190: 1.182561396 | V190: 1.448346796 | W190: 1.480156573 | X190: 1.604804474 | Y190: 1.514070658 | Z190: 1.447976833 | AA190: 1.497486874 | AB190: 1.636423498 | AC190: 1.650248101 | AD190: 1.519948655 | AE190: 1.266895616 | AF190: 0.998185822
A191: LRKPCRES | B191: 100719 | C191: 1 | D191: 2400 | E191: 60 | F191: 1 | G191: 1 | H191: KW | I191: 0.8841847757 | J191: 0.7342988389 | K191: 0.649935303 | L191: 0.6679717702 | M191: 0.6131792186 | N191: 0.7297821826 | O191: 0.9658181994 | P191: 0.8362157667 | Q191: 0.8297636168 | R191: 0.916058052 | S191: 0.8499191573 | T191: 0.9314726148 | U191: 0.886519293 | V191: 0.921594032 | W191: 0.8760092867 | X191: 0.9885732314 | Y191: 0.9093583567 | Z191: 1.101339878 | AA191: 1.013316801 | AB191: 1.173699656 | AC191: 1.194596399 | AD191: 1.104530998 | AE191: 1.011829112 | AF191: 0.8338938769
A192: LRKPCRES | B192: 100819 | C192: 1 | D192: 2400 | E192: 60 | F192: 1 | G192: 1 | H192: KW | I192: 0.7510774073 | J192: 0.6622500732 | K192: 0.6182450213 | L192: 0.6425799187 | M192: 0.6555928187 | N192: 0.6938370423 | O192: 0.9383430015 | P192: 0.8289731293 | Q192: 0.8209790752 | R192: 0.9070327728 | S192: 0.9249491123 | T192: 0.8887233459 | U192: 0.8805368763 | V192: 0.8968287717 | W192: 0.9650439782 | X192: 1.129271006 | Y192: 1.15073844 | Z192: 1.136670798 | AA192: 1.287033594 | AB192: 1.339344151 | AC192: 1.273710202 | AD192: 1.155119166 | AE192: 1.018303541 | AF192: 0.7851353917
A193: LRKPCRES | B193: 100919 | C193: 1 | D193: 2400 | E193: 60 | F193: 1 | G193: 1 | H193: KW | I193: 0.7680495507 | J193: 0.6818743078 | K193: 0.629330564 | L193: 0.647213802 | M193: 0.6355367407 | N193: 0.6748971974 | O193: 0.9520069354 | P193: 0.8351807292 | Q193: 0.7298710598 | R193: 0.8287984049 | S193: 0.8850414572 | T193: 0.8339222812 | U193: 0.8368060988 | V193: 0.9782063778 | W193: 1.146618168 | X193: 1.403767243 | Y193: 1.493276125 | Z193: 1.413205962 | AA193: 1.288874847 | AB193: 1.323515941 | AC193: 1.407044388 | AD193: 1.204723422 | AE193: 1.014093828 | AF193: 0.8261834905
A194: LRKPCRES | B194: 101019 | C194: 1 | D194: 2400 | E194: 60 | F194: 1 | G194: 1 | H194: KW | I194: 0.7243521025 | J194: 0.631090044 | K194: 0.6162668122 | L194: 0.6690010993 | M194: 0.6648437298 | N194: 0.7260617229 | O194: 0.8912765174 | P194: 0.8295217732 | Q194: 0.6977994058 | R194: 0.7466849172 | S194: 0.8000582886 | T194: 1.029399031 | U194: 1.031099223 | V194: 1.233600031 | W194: 1.325449628 | X194: 1.451324672 | Y194: 1.690861739 | Z194: 1.608674415 | AA194: 1.482168057 | AB194: 1.490702012 | AC194: 1.424036309 | AD194: 1.361201317 | AE194: 1.091797193 | AF194: 0.8385660089
A195: LRKPCRES | B195: 101119 | C195: 1 | D195: 2400 | E195: 60 | F195: 1 | G195: 1 | H195: KW | I195: 0.7599432167 | J195: 0.6496725704 | K195: 0.619055921 | L195: 0.589153336 | M195: 0.6580997053 | N195: 0.7269663021 | O195: 0.9743523212 | P195: 0.8201725573 | Q195: 0.8163922105 | R195: 0.8890493214 | S195: 0.8494189556 | T195: 0.9246504153 | U195: 0.969299582 | V195: 1.174650526 | W195: 1.362281758 | X195: 1.530487751 | Y195: 1.549145899 | Z195: 1.594170797 | AA195: 1.552200538 | AB195: 1.241855828 | AC195: 1.192367833 | AD195: 1.115356625 | AE195: 1.032826903 | AF195: 0.9076238718
A196: LRKPCRES | B196: 101219 | C196: 1 | D196: 2400 | E196: 60 | F196: 1 | G196: 1 | H196: KW | I196: 0.7430382243 | J196: 0.7495422488 | K196: 0.6698958734 | L196: 0.6068691155 | M196: 0.580738071 | N196: 0.6485484184 | O196: 0.6594205224 | P196: 0.7100946938 | Q196: 0.9328768964 | R196: 0.9726874717 | S196: 1.136651439 | T196: 1.139088159 | U196: 1.044998543 | V196: 1.307817764 | W196: 1.255038975 | X196: 1.149899524 | Y196: 1.131607657 | Z196: 1.148835917 | AA196: 1.206872079 | AB196: 1.307243795 | AC196: 1.268101217 | AD196: 1.251172722 | AE196: 1.330195853 | AF196: 1.431701055
A197: LRKPCRES | B197: 101319 | C197: 1 | D197: 2400 | E197: 60 | F197: 1 | G197: 1 | H197: KW | I197: 1.176132708 | J197: 1.020316539 | K197: 1.210263724 | L197: 1.145346714 | M197: 1.112878906 | N197: 1.197341423 | O197: 1.211919581 | P197: 1.446795563 | Q197: 1.514061493 | R197: 1.848577982 | S197: 1.589660463 | T197: 1.393827897 | U197: 1.343142424 | V197: 1.276171979 | W197: 1.194035492 | X197: 1.02127465 | Y197: 1.138028911 | Z197: 1.294400443 | AA197: 1.388108979 | AB197: 1.527072433 | AC197: 1.330868659 | AD197: 1.377710806 | AE197: 1.228347145 | AF197: 1.055554647
A198: LRKPCRES | B198: 101419 | C198: 1 | D198: 2400 | E198: 60 | F198: 1 | G198: 1 | H198: KW | I198: 0.9558531659 | J198: 0.9529232568 | K198: 1.051120469 | L198: 1.09363629 | M198: 1.186659026 | N198: 1.324750628 | O198: 1.640623866 | P198: 1.590795299 | Q198: 1.448416414 | R198: 1.392566169 | S198: 1.232020844 | T198: 1.065249401 | U198: 0.9713059765 | V198: 0.8088467283 | W198: 0.8851818817 | X198: 0.9997603881 | Y198: 0.9077240741 | Z198: 1.058720405 | AA198: 1.242240551 | AB198: 1.190571522 | AC198: 1.569087223 | AD198: 1.274330064 | AE198: 1.157901168 | AF198: 0.9884441731
A199: LRKPCRES | B199: 101519 | C199: 1 | D199: 2400 | E199: 60 | F199: 1 | G199: 1 | H199: KW | I199: 0.9889382146 | J199: 0.9585481248 | K199: 0.9133138354 | L199: 1.017332921 | M199: 1.066675331 | N199: 1.28714077 | O199: 1.641193776 | P199: 1.545408363 | Q199: 1.450715466 | R199: 1.242600142 | S199: 1.123355956 | T199: 0.9945207731 | U199: 0.8940492478 | V199: 0.9099811356 | W199: 0.9992456095 | X199: 1.148975409 | Y199: 1.025432633 | Z199: 1.031026164 | AA199: 1.195503026 | AB199: 1.177010814 | AC199: 1.299361668 | AD199: 1.405131401 | AE199: 0.9785810467 | AF199: 0.8688453726
A200: LRKPCRES | B200: 101619 | C200: 1 | D200: 2400 | E200: 60 | F200: 1 | G200: 1 | H200: KW | I200: 0.7519387786 | J200: 0.6410475696 | K200: 0.5968251841 | L200: 0.6366455378 | M200: 0.6565097531 | N200: 0.7759687269 | O200: 1.148735471 | P200: 0.9692689474 | Q200: 0.9350050927 | R200: 0.9616496523 | S200: 0.8715839052 | T200: 0.9379220053 | U200: 0.9694384149 | V200: 1.080425286 | W200: 1.024735719 | X200: 1.11489086 | Y200: 1.239401509 | Z200: 1.276951922 | AA200: 1.3837997 | AB200: 1.400236013 | AC200: 1.668066314 | AD200: 1.623393085 | AE200: 1.259628427 | AF200: 1.096542913
... 167 more rows

Sheet Expanded kW
A1: Month | B1: Holiday? | C1: On or Off Peak | D1: Date/Time | E1: Class | F1: Demand | G1: Monthly Weight | H1: Expanded | J1: Load shape in local time.
A2: =MONTH(D2) -> 4 | B2: =IF(ISNA(VLOOKUP(DATE(YEAR(D2),MONTH(D2),DAY(D2)),Holidays,1,FALSE)),FALSE,TRUE) -> FALSE | C2: =IF(OR(HOUR(D2)<PkStart,HOUR(D2)>OPkStart-1,WEEKDAY(D2,2)>5,B2)=TRUE,"OFF","ON") -> OFF | D2: =TYBegin -> 2019-04-01 | E2: ='LR 8760 Loads'!A2 -> LRKPCRES | F2: 2.358043432 | G2: =IF(SUMIF($A$2:$A$8785,A2,$F$2:$F$8785)=0,0,F2/SUMIF($A$2:$A$8785,A2,$F$2:$F$8785)) -> 0.002731818091 | H2: =G2*SUMIF('Manual Inputs'!$B$11:$B$22,'Expanded kW'!A2,'Manual Inputs'!$C$11:$C$22) -> 404796.3519
A3: 4 | B3: FALSE | C3: OFF | D3: =+D2+1/24 -> 2019-04-01T01:00:00 | E3: =+E2 -> LRKPCRES | F3: 2.268426895 | G3: 0.002627996392 | H3: =G3*SUMIF('Manual Inputs'!$B$11:$B$22,'Expanded kW'!A3,'Manual Inputs'!$C$11:$C$22) -> 389412.2217
A4: 4 | B4: FALSE | C4: OFF | D4: =+D3+1/24 -> 2019-04-01T02:00:00 | E4: =+E3 -> LRKPCRES | F4: 2.244035482 | G4: 0.002599738684 | H4: =G4*SUMIF('Manual Inputs'!$B$11:$B$22,'Expanded kW'!A4,'Manual Inputs'!$C$11:$C$22) -> 385225.0406
A5: 4 | B5: FALSE | C5: OFF | D5: 2019-04-01T03:00:00 | E5: LRKPCRES | F5: 2.348240614 | G5: 0.002720461423 | H5: =G5*SUMIF('Manual Inputs'!$B$11:$B$22,'Expanded kW'!A5,'Manual Inputs'!$C$11:$C$22) -> 403113.5394
A6: 4 | B6: FALSE | C6: OFF | D6: 2019-04-01T04:00:00 | E6: LRKPCRES | F6: 2.641812086 | G6: 0.003060567058 | H6: =G6*SUMIF('Manual Inputs'!$B$11:$B$22,'Expanded kW'!A6,'Manual Inputs'!$C$11:$C$22) -> 453509.838
A7: 4 | B7: FALSE | C7: OFF | D7: 2019-04-01T05:00:00 | E7: LRKPCRES | F7: 2.839060783 | G7: 0.003289081747 | H7: =G7*SUMIF('Manual Inputs'!$B$11:$B$22,'Expanded kW'!A7,'Manual Inputs'!$C$11:$C$22) -> 487370.772
A8: 4 | B8: FALSE | C8: OFF | D8: 2019-04-01T06:00:00 | E8: LRKPCRES | F8: 3.032763004 | G8: 0.003513487805 | H8: =G8*SUMIF('Manual Inputs'!$B$11:$B$22,'Expanded kW'!A8,'Manual Inputs'!$C$11:$C$22) -> 520622.8959
A9: 4 | B9: FALSE | C9: ON | D9: 2019-04-01T07:00:00 | E9: LRKPCRES | F9: 3.068367243 | G9: 0.003554735689 | H9: =G9*SUMIF('Manual Inputs'!$B$11:$B$22,'Expanded kW'!A9,'Manual Inputs'!$C$11:$C$22) -> 526734.9402
A10: 4 | B10: FALSE | C10: ON | D10: 2019-04-01T08:00:00 | E10: LRKPCRES | F10: 3.124508858 | G10: 0.00361977634 | H10: =G10*SUMIF('Manual Inputs'!$B$11:$B$22,'Expanded kW'!A10,'Manual Inputs'!$C$11:$C$22) -> 536372.5578
A11: 4 | B11: FALSE | C11: ON | D11: 2019-04-01T09:00:00 | E11: LRKPCRES | F11: 2.662080765 | G11: 0.003084048536 | H11: =G11*SUMIF('Manual Inputs'!$B$11:$B$22,'Expanded kW'!A11,'Manual Inputs'!$C$11:$C$22) -> 456989.285
A12: 4 | B12: FALSE | C12: ON | D12: 2019-04-01T10:00:00 | E12: LRKPCRES | F12: 2.23892951 | G12: 0.002593823361 | H12: =G12*SUMIF('Manual Inputs'!$B$11:$B$22,'Expanded kW'!A12,'Manual Inputs'!$C$11:$C$22) -> 384348.5177
A13: 4 | B13: FALSE | C13: ON | D13: 2019-04-01T11:00:00 | E13: LRKPCRES | F13: 1.951532364 | G13: 0.002260870748 | H13: =G13*SUMIF('Manual Inputs'!$B$11:$B$22,'Expanded kW'!A13,'Manual Inputs'!$C$11:$C$22) -> 335012.1422
A14: 4 | B14: FALSE | C14: ON | D14: 2019-04-01T12:00:00 | E14: LRKPCRES | F14: 1.889753938 | G14: 0.002189299792 | H14: =G14*SUMIF('Manual Inputs'!$B$11:$B$22,'Expanded kW'!A14,'Manual Inputs'!$C$11:$C$22) -> 324406.8746
A15: 4 | B15: FALSE | C15: ON | D15: 2019-04-01T13:00:00 | E15: LRKPCRES | F15: 1.594798803 | G15: 0.00184759117 | H15: =G15*SUMIF('Manual Inputs'!$B$11:$B$22,'Expanded kW'!A15,'Manual Inputs'!$C$11:$C$22) -> 273773.0479
A16: 4 | B16: FALSE | C16: ON | D16: 2019-04-01T14:00:00 | E16: LRKPCRES | F16: 1.478728056 | G16: 0.001713121989 | H16: =G16*SUMIF('Manual Inputs'!$B$11:$B$22,'Expanded kW'!A16,'Manual Inputs'!$C$11:$C$22) -> 253847.624
A17: 4 | B17: FALSE | C17: ON | D17: 2019-04-01T15:00:00 | E17: LRKPCRES | F17: 1.44104445 | G17: 0.001669465136 | H17: =G17*SUMIF('Manual Inputs'!$B$11:$B$22,'Expanded kW'!A17,'Manual Inputs'!$C$11:$C$22) -> 247378.6226
A18: 4 | B18: FALSE | C18: ON | D18: 2019-04-01T16:00:00 | E18: LRKPCRES | F18: 1.397861242 | G18: 0.001619436936 | H18: =G18*SUMIF('Manual Inputs'!$B$11:$B$22,'Expanded kW'!A18,'Manual Inputs'!$C$11:$C$22) -> 239965.5255
A19: 4 | B19: FALSE | C19: ON | D19: 2019-04-01T17:00:00 | E19: LRKPCRES | F19: 1.542960167 | G19: 0.001787535565 | H19: =G19*SUMIF('Manual Inputs'!$B$11:$B$22,'Expanded kW'!A19,'Manual Inputs'!$C$11:$C$22) -> 264874.1063
A20: 4 | B20: FALSE | C20: ON | D20: 2019-04-01T18:00:00 | E20: LRKPCRES | F20: 1.410286665 | G20: 0.001633831919 | H20: =G20*SUMIF('Manual Inputs'!$B$11:$B$22,'Expanded kW'!A20,'Manual Inputs'!$C$11:$C$22) -> 242098.5506
A21: 4 | B21: FALSE | C21: ON | D21: 2019-04-01T19:00:00 | E21: LRKPCRES | F21: 1.788308501 | G21: 0.002071774188 | H21: =G21*SUMIF('Manual Inputs'!$B$11:$B$22,'Expanded kW'!A21,'Manual Inputs'!$C$11:$C$22) -> 306992.1222
A22: 4 | B22: FALSE | C22: ON | D22: 2019-04-01T20:00:00 | E22: LRKPCRES | F22: 1.892124891 | G22: 0.002192046566 | H22: =G22*SUMIF('Manual Inputs'!$B$11:$B$22,'Expanded kW'!A22,'Manual Inputs'!$C$11:$C$22) -> 324813.8872
A23: 4 | B23: FALSE | C23: OFF | D23: 2019-04-01T21:00:00 | E23: LRKPCRES | F23: 1.934858322 | G23: 0.002241553695 | H23: =G23*SUMIF('Manual Inputs'!$B$11:$B$22,'Expanded kW'!A23,'Manual Inputs'!$C$11:$C$22) -> 332149.7728
A24: 4 | B24: FALSE | C24: OFF | D24: 2019-04-01T22:00:00 | E24: LRKPCRES | F24: 1.905781388 | G24: 0.002207867762 | H24: =G24*SUMIF('Manual Inputs'!$B$11:$B$22,'Expanded kW'!A24,'Manual Inputs'!$C$11:$C$22) -> 327158.2461
A25: 4 | B25: FALSE | C25: OFF | D25: 2019-04-01T23:00:00 | E25: LRKPCRES | F25: 1.962080717 | G25: 0.002273091126 | H25: =G25*SUMIF('Manual Inputs'!$B$11:$B$22,'Expanded kW'!A25,'Manual Inputs'!$C$11:$C$22) -> 336822.9379
A26: 4 | B26: FALSE | C26: OFF | D26: 2019-04-02 | E26: LRKPCRES | F26: 1.889514327 | G26: 0.0021890222 | H26: =G26*SUMIF('Manual Inputs'!$B$11:$B$22,'Expanded kW'!A26,'Manual Inputs'!$C$11:$C$22) -> 324365.7415
A27: 4 | B27: FALSE | C27: OFF | D27: 2019-04-02T01:00:00 | E27: LRKPCRES | F27: 2.101668835 | G27: 0.002434805427 | H27: =G27*SUMIF('Manual Inputs'!$B$11:$B$22,'Expanded kW'!A27,'Manual Inputs'!$C$11:$C$22) -> 360785.4994
A28: 4 | B28: FALSE | C28: OFF | D28: 2019-04-02T02:00:00 | E28: LRKPCRES | F28: 2.223298311 | G28: 0.002575714453 | H28: =G28*SUMIF('Manual Inputs'!$B$11:$B$22,'Expanded kW'!A28,'Manual Inputs'!$C$11:$C$22) -> 381665.1692
A29: 4 | B29: FALSE | C29: OFF | D29: 2019-04-02T03:00:00 | E29: LRKPCRES | F29: 2.101973534 | G29: 0.002435158423 | H29: =G29*SUMIF('Manual Inputs'!$B$11:$B$22,'Expanded kW'!A29,'Manual Inputs'!$C$11:$C$22) -> 360837.8059
A30: 4 | B30: FALSE | C30: OFF | D30: 2019-04-02T04:00:00 | E30: LRKPCRES | F30: 2.274575233 | G30: 0.002635119306 | H30: =G30*SUMIF('Manual Inputs'!$B$11:$B$22,'Expanded kW'!A30,'Manual Inputs'!$C$11:$C$22) -> 390467.6835
A31: 4 | B31: FALSE | C31: OFF | D31: 2019-04-02T05:00:00 | E31: LRKPCRES | F31: 2.438153982 | G31: 0.002824627005 | H31: =G31*SUMIF('Manual Inputs'!$B$11:$B$22,'Expanded kW'!A31,'Manual Inputs'!$C$11:$C$22) -> 418548.6255
A32: 4 | B32: FALSE | C32: OFF | D32: 2019-04-02T06:00:00 | E32: LRKPCRES | F32: 2.714575291 | G32: 0.003144863995 | H32: =G32*SUMIF('Manual Inputs'!$B$11:$B$22,'Expanded kW'!A32,'Manual Inputs'!$C$11:$C$22) -> 466000.8207
A33: 4 | B33: FALSE | C33: ON | D33: 2019-04-02T07:00:00 | E33: LRKPCRES | F33: 2.61144352 | G33: 0.003025384755 | H33: =G33*SUMIF('Manual Inputs'!$B$11:$B$22,'Expanded kW'!A33,'Manual Inputs'!$C$11:$C$22) -> 448296.5816
A34: 4 | B34: FALSE | C34: ON | D34: 2019-04-02T08:00:00 | E34: LRKPCRES | F34: 2.560061693 | G34: 0.002965858369 | H34: =G34*SUMIF('Manual Inputs'!$B$11:$B$22,'Expanded kW'!A34,'Manual Inputs'!$C$11:$C$22) -> 439476.0588
A35: 4 | B35: FALSE | C35: ON | D35: 2019-04-02T09:00:00 | E35: LRKPCRES | F35: 2.247350931 | G35: 0.002603579666 | H35: =G35*SUMIF('Manual Inputs'!$B$11:$B$22,'Expanded kW'!A35,'Manual Inputs'!$C$11:$C$22) -> 385794.1911
A36: 4 | B36: FALSE | C36: ON | D36: 2019-04-02T10:00:00 | E36: LRKPCRES | F36: 1.785339713 | G36: 0.002068334816 | H36: =G36*SUMIF('Manual Inputs'!$B$11:$B$22,'Expanded kW'!A36,'Manual Inputs'!$C$11:$C$22) -> 306482.4816
A37: 4 | B37: FALSE | C37: ON | D37: 2019-04-02T11:00:00 | E37: LRKPCRES | F37: 1.66583252 | G37: 0.001929884476 | H37: =G37*SUMIF('Manual Inputs'!$B$11:$B$22,'Expanded kW'!A37,'Manual Inputs'!$C$11:$C$22) -> 285967.136
A38: 4 | B38: FALSE | C38: ON | D38: 2019-04-02T12:00:00 | E38: LRKPCRES | F38: 1.511494875 | G38: 0.001751082693 | H38: =G38*SUMIF('Manual Inputs'!$B$11:$B$22,'Expanded kW'!A38,'Manual Inputs'!$C$11:$C$22) -> 259472.5792
A39: 4 | B39: FALSE | C39: ON | D39: 2019-04-02T13:00:00 | E39: LRKPCRES | F39: 1.67710948 | G39: 0.001942948953 | H39: =G39*SUMIF('Manual Inputs'!$B$11:$B$22,'Expanded kW'!A39,'Manual Inputs'!$C$11:$C$22) -> 287903.0089
A40: 4 | B40: FALSE | C40: ON | D40: 2019-04-02T14:00:00 | E40: LRKPCRES | F40: 1.287744641 | G40: 0.001491865697 | H40: =G40*SUMIF('Manual Inputs'!$B$11:$B$22,'Expanded kW'!A40,'Manual Inputs'!$C$11:$C$22) -> 221062.2272
A41: 4 | B41: FALSE | C41: ON | D41: 2019-04-02T15:00:00 | E41: LRKPCRES | F41: 1.296754718 | G41: 0.001502303965 | H41: =G41*SUMIF('Manual Inputs'!$B$11:$B$22,'Expanded kW'!A41,'Manual Inputs'!$C$11:$C$22) -> 222608.9528
A42: 4 | B42: FALSE | C42: ON | D42: 2019-04-02T16:00:00 | E42: LRKPCRES | F42: 1.451915979 | G42: 0.001682059917 | H42: =G42*SUMIF('Manual Inputs'!$B$11:$B$22,'Expanded kW'!A42,'Manual Inputs'!$C$11:$C$22) -> 249244.8967
A43: 4 | B43: FALSE | C43: ON | D43: 2019-04-02T17:00:00 | E43: LRKPCRES | F43: 1.286670923 | G43: 0.001490621783 | H43: =G43*SUMIF('Manual Inputs'!$B$11:$B$22,'Expanded kW'!A43,'Manual Inputs'!$C$11:$C$22) -> 220877.9061
A44: 4 | B44: FALSE | C44: ON | D44: 2019-04-02T18:00:00 | E44: LRKPCRES | F44: 1.350639462 | G44: 0.001564730008 | H44: =G44*SUMIF('Manual Inputs'!$B$11:$B$22,'Expanded kW'!A44,'Manual Inputs'!$C$11:$C$22) -> 231859.1421
A45: 4 | B45: FALSE | C45: ON | D45: 2019-04-02T19:00:00 | E45: LRKPCRES | F45: 1.394256711 | G45: 0.001615261049 | H45: =G45*SUMIF('Manual Inputs'!$B$11:$B$22,'Expanded kW'!A45,'Manual Inputs'!$C$11:$C$22) -> 239346.7493
A46: 4 | B46: FALSE | C46: ON | D46: 2019-04-02T20:00:00 | E46: LRKPCRES | F46: 1.904146433 | G46: 0.002205973649 | H46: =G46*SUMIF('Manual Inputs'!$B$11:$B$22,'Expanded kW'!A46,'Manual Inputs'!$C$11:$C$22) -> 326877.5795
A47: 4 | B47: FALSE | C47: OFF | D47: 2019-04-02T21:00:00 | E47: LRKPCRES | F47: 1.783086181 | G47: 0.002065724075 | H47: =G47*SUMIF('Manual Inputs'!$B$11:$B$22,'Expanded kW'!A47,'Manual Inputs'!$C$11:$C$22) -> 306095.6262
A48: 4 | B48: FALSE | C48: OFF | D48: 2019-04-02T22:00:00 | E48: LRKPCRES | F48: 1.687130094 | G48: 0.00195455794 | H48: =G48*SUMIF('Manual Inputs'!$B$11:$B$22,'Expanded kW'!A48,'Manual Inputs'!$C$11:$C$22) -> 289623.2095
A49: 4 | B49: FALSE | C49: OFF | D49: 2019-04-02T23:00:00 | E49: LRKPCRES | F49: 1.723532677 | G49: 0.001996730715 | H49: =G49*SUMIF('Manual Inputs'!$B$11:$B$22,'Expanded kW'!A49,'Manual Inputs'!$C$11:$C$22) -> 295872.3026
A50: 4 | B50: FALSE | C50: OFF | D50: 2019-04-03 | E50: LRKPCRES | F50: 1.584360361 | G50: 0.001835498125 | H50: =G50*SUMIF('Manual Inputs'!$B$11:$B$22,'Expanded kW'!A50,'Manual Inputs'!$C$11:$C$22) -> 271981.1202
A51: 4 | B51: FALSE | C51: OFF | D51: 2019-04-03T01:00:00 | E51: LRKPCRES | F51: 1.802561164 | G51: 0.002088286047 | H51: =G51*SUMIF('Manual Inputs'!$B$11:$B$22,'Expanded kW'!A51,'Manual Inputs'!$C$11:$C$22) -> 309438.8226
A52: 4 | B52: FALSE | C52: OFF | D52: 2019-04-03T02:00:00 | E52: LRKPCRES | F52: 2.007974386 | G52: 0.002326259424 | H52: =G52*SUMIF('Manual Inputs'!$B$11:$B$22,'Expanded kW'!A52,'Manual Inputs'!$C$11:$C$22) -> 344701.3296
A53: 4 | B53: FALSE | C53: OFF | D53: 2019-04-03T03:00:00 | E53: LRKPCRES | F53: 2.07031846 | G53: 0.002398485689 | H53: =G53*SUMIF('Manual Inputs'!$B$11:$B$22,'Expanded kW'!A53,'Manual Inputs'!$C$11:$C$22) -> 355403.6998
A54: 4 | B54: FALSE | C54: OFF | D54: 2019-04-03T04:00:00 | E54: LRKPCRES | F54: 2.255881548 | G54: 0.002613462475 | H54: =G54*SUMIF('Manual Inputs'!$B$11:$B$22,'Expanded kW'!A54,'Manual Inputs'!$C$11:$C$22) -> 387258.6096
A55: 4 | B55: FALSE | C55: OFF | D55: 2019-04-03T05:00:00 | E55: LRKPCRES | F55: 2.234744787 | G55: 0.002588975316 | H55: =G55*SUMIF('Manual Inputs'!$B$11:$B$22,'Expanded kW'!A55,'Manual Inputs'!$C$11:$C$22) -> 383630.1422
A56: 4 | B56: FALSE | C56: OFF | D56: 2019-04-03T06:00:00 | E56: LRKPCRES | F56: 2.452165604 | G56: 0.002840859616 | H56: =G56*SUMIF('Manual Inputs'!$B$11:$B$22,'Expanded kW'!A56,'Manual Inputs'!$C$11:$C$22) -> 420953.9473
A57: 4 | B57: FALSE | C57: ON | D57: 2019-04-03T07:00:00 | E57: LRKPCRES | F57: 2.570186615 | G57: 0.002977588198 | H57: =G57*SUMIF('Manual Inputs'!$B$11:$B$22,'Expanded kW'!A57,'Manual Inputs'!$C$11:$C$22) -> 441214.1656
A58: 4 | B58: FALSE | C58: ON | D58: 2019-04-03T08:00:00 | E58: LRKPCRES | F58: 2.6861763 | G58: 0.003111963466 | H58: =G58*SUMIF('Manual Inputs'!$B$11:$B$22,'Expanded kW'!A58,'Manual Inputs'!$C$11:$C$22) -> 461125.6739
A59: 4 | B59: FALSE | C59: ON | D59: 2019-04-03T09:00:00 | E59: LRKPCRES | F59: 2.225594997 | G59: 0.002578375188 | H59: =G59*SUMIF('Manual Inputs'!$B$11:$B$22,'Expanded kW'!A59,'Manual Inputs'!$C$11:$C$22) -> 382059.4326
A60: 4 | B60: FALSE | C60: ON | D60: 2019-04-03T10:00:00 | E60: LRKPCRES | F60: 1.561046362 | G60: 0.001808488612 | H60: =G60*SUMIF('Manual Inputs'!$B$11:$B$22,'Expanded kW'!A60,'Manual Inputs'!$C$11:$C$22) -> 267978.8946
A61: 4 | B61: FALSE | C61: ON | D61: 2019-04-03T11:00:00 | E61: LRKPCRES | F61: 1.283753753 | G61: 0.00148724221 | H61: =G61*SUMIF('Manual Inputs'!$B$11:$B$22,'Expanded kW'!A61,'Manual Inputs'!$C$11:$C$22) -> 220377.1265
A62: 4 | B62: FALSE | C62: ON | D62: 2019-04-03T12:00:00 | E62: LRKPCRES | F62: 1.061318398 | G62: 0.001229548514 | H62: =G62*SUMIF('Manual Inputs'!$B$11:$B$22,'Expanded kW'!A62,'Manual Inputs'!$C$11:$C$22) -> 182192.4947
A63: 4 | B63: FALSE | C63: ON | D63: 2019-04-03T13:00:00 | E63: LRKPCRES | F63: 1.028495669 | G63: 0.001191523039 | H63: =G63*SUMIF('Manual Inputs'!$B$11:$B$22,'Expanded kW'!A63,'Manual Inputs'!$C$11:$C$22) -> 176557.9417
A64: 4 | B64: FALSE | C64: ON | D64: 2019-04-03T14:00:00 | E64: LRKPCRES | F64: 0.9819737673 | G64: 0.001137626927 | H64: =G64*SUMIF('Manual Inputs'!$B$11:$B$22,'Expanded kW'!A64,'Manual Inputs'!$C$11:$C$22) -> 168571.7037
A65: 4 | B65: FALSE | C65: ON | D65: 2019-04-03T15:00:00 | E65: LRKPCRES | F65: 1.134054184 | G65: 0.001313813687 | H65: =G65*SUMIF('Manual Inputs'!$B$11:$B$22,'Expanded kW'!A65,'Manual Inputs'!$C$11:$C$22) -> 194678.7707
A66: =MONTH(D66) -> 4 | B66: =IF(ISNA(VLOOKUP(DATE(YEAR(D66),MONTH(D66),DAY(D66)),Holidays,1,FALSE)),FALSE,TRUE) -> FALSE | C66: =IF(OR(HOUR(D66)<PkStart,HOUR(D66)>OPkStart-1,WEEKDAY(D66,2)>5,B66)=TRUE,"OFF","ON") -> ON | D66: 2019-04-03T16:00:00 | E66: LRKPCRES | F66: 1.095379233 | G66: =IF(SUMIF($A$2:$A$8785,A66,$F$2:$F$8785)=0,0,F66/SUMIF($A$2:$A$8785,A66,$F$2:$F$8785)) -> 0.001269008351 | H66: =G66*SUMIF('Manual Inputs'!$B$11:$B$22,'Expanded kW'!A66,'Manual Inputs'!$C$11:$C$22) -> 188039.5889
A67: 4 | B67: FALSE | C67: ON | D67: 2019-04-03T17:00:00 | E67: LRKPCRES | F67: 1.14041996 | G67: 0.001321188506 | H67: =G67*SUMIF('Manual Inputs'!$B$11:$B$22,'Expanded kW'!A67,'Manual Inputs'!$C$11:$C$22) -> 195771.5592
A68: 4 | B68: FALSE | C68: ON | D68: =+D67+1/24 -> 2019-04-03T18:00:00 | E68: =+E67 -> LRKPCRES | F68: 1.081423163 | G68: 0.001252840097 | H68: =G68*SUMIF('Manual Inputs'!$B$11:$B$22,'Expanded kW'!A68,'Manual Inputs'!$C$11:$C$22) -> 185643.8034
A69: 4 | B69: FALSE | C69: ON | D69: 2019-04-03T19:00:00 | E69: LRKPCRES | F69: 1.074066639 | G69: 0.001244317486 | H69: =G69*SUMIF('Manual Inputs'!$B$11:$B$22,'Expanded kW'!A69,'Manual Inputs'!$C$11:$C$22) -> 184380.9368
A70: 4 | B70: FALSE | C70: ON | D70: 2019-04-03T20:00:00 | E70: LRKPCRES | F70: 1.318821549 | G70: 0.001527868621 | H70: =G70*SUMIF('Manual Inputs'!$B$11:$B$22,'Expanded kW'!A70,'Manual Inputs'!$C$11:$C$22) -> 226397.0819
A71: 4 | B71: FALSE | C71: OFF | D71: 2019-04-03T21:00:00 | E71: LRKPCRES | F71: 1.321048617 | G71: 0.001530448703 | H71: =G71*SUMIF('Manual Inputs'!$B$11:$B$22,'Expanded kW'!A71,'Manual Inputs'!$C$11:$C$22) -> 226779.3942
A72: 4 | B72: FALSE | C72: OFF | D72: 2019-04-03T22:00:00 | E72: LRKPCRES | F72: 1.161216617 | G72: 0.001345281651 | H72: =G72*SUMIF('Manual Inputs'!$B$11:$B$22,'Expanded kW'!A72,'Manual Inputs'!$C$11:$C$22) -> 199341.6422
A73: 4 | B73: FALSE | C73: OFF | D73: 2019-04-03T23:00:00 | E73: LRKPCRES | F73: 1.144726396 | G73: 0.001326177557 | H73: =G73*SUMIF('Manual Inputs'!$B$11:$B$22,'Expanded kW'!A73,'Manual Inputs'!$C$11:$C$22) -> 196510.8287
A74: 4 | B74: FALSE | C74: OFF | D74: 2019-04-04 | E74: LRKPCRES | F74: 1.096030116 | G74: 0.001269762405 | H74: =G74*SUMIF('Manual Inputs'!$B$11:$B$22,'Expanded kW'!A74,'Manual Inputs'!$C$11:$C$22) -> 188151.3235
A75: 4 | B75: FALSE | C75: OFF | D75: 2019-04-04T01:00:00 | E75: LRKPCRES | F75: 1.169363022 | G75: 0.001354719347 | H75: =G75*SUMIF('Manual Inputs'!$B$11:$B$22,'Expanded kW'!A75,'Manual Inputs'!$C$11:$C$22) -> 200740.1046
A76: 4 | B76: FALSE | C76: OFF | D76: 2019-04-04T02:00:00 | E76: LRKPCRES | F76: 1.251678467 | G76: 0.001450082655 | H76: =G76*SUMIF('Manual Inputs'!$B$11:$B$22,'Expanded kW'!A76,'Manual Inputs'!$C$11:$C$22) -> 214870.8841
A77: 4 | B77: FALSE | C77: OFF | D77: 2019-04-04T03:00:00 | E77: LRKPCRES | F77: 1.292505145 | G77: 0.00149738079 | H77: =G77*SUMIF('Manual Inputs'!$B$11:$B$22,'Expanded kW'!A77,'Manual Inputs'!$C$11:$C$22) -> 221879.4448
A78: 4 | B78: FALSE | C78: OFF | D78: 2019-04-04T04:00:00 | E78: LRKPCRES | F78: 1.285463452 | G78: 0.001489222915 | H78: =G78*SUMIF('Manual Inputs'!$B$11:$B$22,'Expanded kW'!A78,'Manual Inputs'!$C$11:$C$22) -> 220670.6242
A79: 4 | B79: FALSE | C79: OFF | D79: 2019-04-04T05:00:00 | E79: LRKPCRES | F79: 1.475323319 | G79: 0.001709177566 | H79: =G79*SUMIF('Manual Inputs'!$B$11:$B$22,'Expanded kW'!A79,'Manual Inputs'!$C$11:$C$22) -> 253263.1458
A80: 4 | B80: FALSE | C80: OFF | D80: 2019-04-04T06:00:00 | E80: LRKPCRES | F80: 1.848888874 | G80: 0.002141957186 | H80: =G80*SUMIF('Manual Inputs'!$B$11:$B$22,'Expanded kW'!A80,'Manual Inputs'!$C$11:$C$22) -> 317391.7245
A81: 4 | B81: FALSE | C81: ON | D81: 2019-04-04T07:00:00 | E81: LRKPCRES | F81: 1.961750388 | G81: 0.002272708436 | H81: =G81*SUMIF('Manual Inputs'!$B$11:$B$22,'Expanded kW'!A81,'Manual Inputs'!$C$11:$C$22) -> 336766.2315
A82: 4 | B82: FALSE | C82: ON | D82: 2019-04-04T08:00:00 | E82: LRKPCRES | F82: 1.758379698 | G82: 0.002037101355 | H82: =G82*SUMIF('Manual Inputs'!$B$11:$B$22,'Expanded kW'!A82,'Manual Inputs'!$C$11:$C$22) -> 301854.3582
A83: 4 | B83: FALSE | C83: ON | D83: 2019-04-04T09:00:00 | E83: LRKPCRES | F83: 1.442433238 | G83: 0.001671074061 | H83: =G83*SUMIF('Manual Inputs'!$B$11:$B$22,'Expanded kW'!A83,'Manual Inputs'!$C$11:$C$22) -> 247617.0306
A84: 4 | B84: FALSE | C84: ON | D84: 2019-04-04T10:00:00 | E84: LRKPCRES | F84: 1.213986754 | G84: 0.00140641641 | H84: =G84*SUMIF('Manual Inputs'!$B$11:$B$22,'Expanded kW'!A84,'Manual Inputs'!$C$11:$C$22) -> 208400.4912
A85: 4 | B85: FALSE | C85: ON | D85: 2019-04-04T11:00:00 | E85: LRKPCRES | F85: 1.07907474 | G85: 0.001250119424 | H85: =G85*SUMIF('Manual Inputs'!$B$11:$B$22,'Expanded kW'!A85,'Manual Inputs'!$C$11:$C$22) -> 185240.6586
A86: 4 | B86: FALSE | C86: ON | D86: 2019-04-04T12:00:00 | E86: LRKPCRES | F86: 0.933028996 | G86: 0.001080923895 | H86: =G86*SUMIF('Manual Inputs'!$B$11:$B$22,'Expanded kW'!A86,'Manual Inputs'!$C$11:$C$22) -> 160169.5408
A87: 4 | B87: FALSE | C87: ON | D87: 2019-04-04T13:00:00 | E87: LRKPCRES | F87: 0.7940387726 | G87: 0.0009199022607 | H87: =G87*SUMIF('Manual Inputs'!$B$11:$B$22,'Expanded kW'!A87,'Manual Inputs'!$C$11:$C$22) -> 136309.6176
A88: 4 | B88: FALSE | C88: ON | D88: 2019-04-04T14:00:00 | E88: LRKPCRES | F88: 0.8396090865 | G88: 0.0009726959482 | H88: =G88*SUMIF('Manual Inputs'!$B$11:$B$22,'Expanded kW'!A88,'Manual Inputs'!$C$11:$C$22) -> 144132.5001
A89: 4 | B89: FALSE | C89: ON | D89: 2019-04-04T15:00:00 | E89: LRKPCRES | F89: 0.9733414054 | G89: 0.001127626245 | H89: =G89*SUMIF('Manual Inputs'!$B$11:$B$22,'Expanded kW'!A89,'Manual Inputs'!$C$11:$C$22) -> 167089.8189
A90: 4 | B90: FALSE | C90: ON | D90: 2019-04-04T16:00:00 | E90: LRKPCRES | F90: 0.8665679693 | G90: 0.001003928097 | H90: =G90*SUMIF('Manual Inputs'!$B$11:$B$22,'Expanded kW'!A90,'Manual Inputs'!$C$11:$C$22) -> 148760.429
A91: 4 | B91: FALSE | C91: ON | D91: 2019-04-04T17:00:00 | E91: LRKPCRES | F91: 1.084885716 | G91: 0.001256851501 | H91: =G91*SUMIF('Manual Inputs'!$B$11:$B$22,'Expanded kW'!A91,'Manual Inputs'!$C$11:$C$22) -> 186238.2068
A92: 4 | B92: FALSE | C92: ON | D92: 2019-04-04T18:00:00 | E92: LRKPCRES | F92: 1.239282966 | G92: 0.001435722336 | H92: =G92*SUMIF('Manual Inputs'!$B$11:$B$22,'Expanded kW'!A92,'Manual Inputs'!$C$11:$C$22) -> 212742.9956
A93: 4 | B93: FALSE | C93: ON | D93: 2019-04-04T19:00:00 | E93: LRKPCRES | F93: 1.076158762 | G93: 0.001246741233 | H93: =G93*SUMIF('Manual Inputs'!$B$11:$B$22,'Expanded kW'!A93,'Manual Inputs'!$C$11:$C$22) -> 184740.0837
A94: 4 | B94: FALSE | C94: ON | D94: 2019-04-04T20:00:00 | E94: LRKPCRES | F94: 1.158621669 | G94: 0.001342275377 | H94: =G94*SUMIF('Manual Inputs'!$B$11:$B$22,'Expanded kW'!A94,'Manual Inputs'!$C$11:$C$22) -> 198896.1774
A95: 4 | B95: FALSE | C95: OFF | D95: 2019-04-04T21:00:00 | E95: LRKPCRES | F95: 1.279111981 | G95: 0.00148186467 | H95: =G95*SUMIF('Manual Inputs'!$B$11:$B$22,'Expanded kW'!A95,'Manual Inputs'!$C$11:$C$22) -> 219580.2913
A96: 4 | B96: FALSE | C96: OFF | D96: 2019-04-04T22:00:00 | E96: LRKPCRES | F96: 1.225807786 | G96: 0.001420111199 | H96: =G96*SUMIF('Manual Inputs'!$B$11:$B$22,'Expanded kW'!A96,'Manual Inputs'!$C$11:$C$22) -> 210429.7627
A97: 4 | B97: FALSE | C97: OFF | D97: 2019-04-04T23:00:00 | E97: LRKPCRES | F97: 0.9383488297 | G97: 0.001087086978 | H97: =G97*SUMIF('Manual Inputs'!$B$11:$B$22,'Expanded kW'!A97,'Manual Inputs'!$C$11:$C$22) -> 161082.7765
A98: 4 | B98: FALSE | C98: OFF | D98: 2019-04-05 | E98: LRKPCRES | F98: 0.7338298559 | G98: 0.0008501495982 | H98: =G98*SUMIF('Manual Inputs'!$B$11:$B$22,'Expanded kW'!A98,'Manual Inputs'!$C$11:$C$22) -> 125973.7817
A99: 4 | B99: FALSE | C99: OFF | D99: 2019-04-05T01:00:00 | E99: LRKPCRES | F99: 0.7146434784 | G99: 0.0008279219782 | H99: =G99*SUMIF('Manual Inputs'!$B$11:$B$22,'Expanded kW'!A99,'Manual Inputs'!$C$11:$C$22) -> 122680.1292
A100: 4 | B100: FALSE | C100: OFF | D100: 2019-04-05T02:00:00 | E100: LRKPCRES | F100: 0.5981439352 | G100: 0.0006929560334 | H100: =G100*SUMIF('Manual Inputs'!$B$11:$B$22,'Expanded kW'!A100,'Manual Inputs'!$C$11:$C$22) -> 102681.0955
A101: 4 | B101: FALSE | C101: OFF | D101: 2019-04-05T03:00:00 | E101: LRKPCRES | F101: 0.6090277433 | G101: 0.0007055650395 | H101: =G101*SUMIF('Manual Inputs'!$B$11:$B$22,'Expanded kW'!A101,'Manual Inputs'!$C$11:$C$22) -> 104549.4775
A102: 4 | B102: FALSE | C102: OFF | D102: 2019-04-05T04:00:00 | E102: LRKPCRES | F102: 0.711214304 | G102: 0.0008239492436 | H102: =G102*SUMIF('Manual Inputs'!$B$11:$B$22,'Expanded kW'!A102,'Manual Inputs'!$C$11:$C$22) -> 122091.4559
A103: 4 | B103: FALSE | C103: OFF | D103: 2019-04-05T05:00:00 | E103: LRKPCRES | F103: 0.7703011036 | G103: 0.0008924019218 | H103: =G103*SUMIF('Manual Inputs'!$B$11:$B$22,'Expanded kW'!A103,'Manual Inputs'!$C$11:$C$22) -> 132234.6622
A104: 4 | B104: FALSE | C104: OFF | D104: 2019-04-05T06:00:00 | E104: LRKPCRES | F104: 1.023822427 | G104: 0.001186109038 | H104: =G104*SUMIF('Manual Inputs'!$B$11:$B$22,'Expanded kW'!A104,'Manual Inputs'!$C$11:$C$22) -> 175755.7039
A105: 4 | B105: FALSE | C105: ON | D105: 2019-04-05T07:00:00 | E105: LRKPCRES | F105: 1.149321675 | G105: 0.001331501236 | H105: =G105*SUMIF('Manual Inputs'!$B$11:$B$22,'Expanded kW'!A105,'Manual Inputs'!$C$11:$C$22) -> 197299.6829
A106: 4 | B106: FALSE | C106: ON | D106: 2019-04-05T08:00:00 | E106: LRKPCRES | F106: 1.170684338 | G106: 0.001356250105 | H106: =G106*SUMIF('Manual Inputs'!$B$11:$B$22,'Expanded kW'!A106,'Manual Inputs'!$C$11:$C$22) -> 200966.9299
A107: 4 | B107: FALSE | C107: ON | D107: 2019-04-05T09:00:00 | E107: LRKPCRES | F107: 0.9573115706 | G107: 0.001109055513 | H107: =G107*SUMIF('Manual Inputs'!$B$11:$B$22,'Expanded kW'!A107,'Manual Inputs'!$C$11:$C$22) -> 164338.0381
A108: 4 | B108: FALSE | C108: ON | D108: 2019-04-05T10:00:00 | E108: LRKPCRES | F108: 1.012601256 | G108: 0.001173109195 | H108: =G108*SUMIF('Manual Inputs'!$B$11:$B$22,'Expanded kW'!A108,'Manual Inputs'!$C$11:$C$22) -> 173829.4083
A109: 4 | B109: FALSE | C109: ON | D109: 2019-04-05T11:00:00 | E109: LRKPCRES | F109: 0.8760412931 | G109: 0.001014903042 | H109: =G109*SUMIF('Manual Inputs'!$B$11:$B$22,'Expanded kW'!A109,'Manual Inputs'!$C$11:$C$22) -> 150386.6785
A110: 4 | B110: FALSE | C110: ON | D110: 2019-04-05T12:00:00 | E110: LRKPCRES | F110: 0.8276247382 | G110: 0.0009588119548 | H110: =G110*SUMIF('Manual Inputs'!$B$11:$B$22,'Expanded kW'!A110,'Manual Inputs'!$C$11:$C$22) -> 142075.1926
A111: 4 | B111: FALSE | C111: ON | D111: 2019-04-05T13:00:00 | E111: LRKPCRES | F111: 0.8690340519 | G111: 0.00100678508 | H111: =G111*SUMIF('Manual Inputs'!$B$11:$B$22,'Expanded kW'!A111,'Manual Inputs'!$C$11:$C$22) -> 149183.7721
A112: 4 | B112: FALSE | C112: ON | D112: 2019-04-05T14:00:00 | E112: LRKPCRES | F112: 0.8789033294 | G112: 0.001018218741 | H112: =G112*SUMIF('Manual Inputs'!$B$11:$B$22,'Expanded kW'!A112,'Manual Inputs'!$C$11:$C$22) -> 150877.9934
A113: 4 | B113: FALSE | C113: ON | D113: 2019-04-05T15:00:00 | E113: LRKPCRES | F113: 0.9220984578 | G113: 0.001068260752 | H113: =G113*SUMIF('Manual Inputs'!$B$11:$B$22,'Expanded kW'!A113,'Manual Inputs'!$C$11:$C$22) -> 158293.1369
A114: 4 | B114: FALSE | C114: ON | D114: 2019-04-05T16:00:00 | E114: LRKPCRES | F114: 0.8763080239 | G114: 0.001015212053 | H114: =G114*SUMIF('Manual Inputs'!$B$11:$B$22,'Expanded kW'!A114,'Manual Inputs'!$C$11:$C$22) -> 150432.4672
A115: 4 | B115: FALSE | C115: ON | D115: 2019-04-05T17:00:00 | E115: LRKPCRES | F115: 1.023484111 | G115: 0.001185717096 | H115: =G115*SUMIF('Manual Inputs'!$B$11:$B$22,'Expanded kW'!A115,'Manual Inputs'!$C$11:$C$22) -> 175697.6265
A116: 4 | B116: FALSE | C116: ON | D116: 2019-04-05T18:00:00 | E116: LRKPCRES | F116: 0.9844450951 | G116: 0.001140489986 | H116: =G116*SUMIF('Manual Inputs'!$B$11:$B$22,'Expanded kW'!A116,'Manual Inputs'!$C$11:$C$22) -> 168995.9471
A117: 4 | B117: FALSE | C117: ON | D117: 2019-04-05T19:00:00 | E117: LRKPCRES | F117: 0.9771232605 | G117: 0.001132007564 | H117: =G117*SUMIF('Manual Inputs'!$B$11:$B$22,'Expanded kW'!A117,'Manual Inputs'!$C$11:$C$22) -> 167739.0356
A118: 4 | B118: FALSE | C118: ON | D118: 2019-04-05T20:00:00 | E118: LRKPCRES | F118: 1.216430306 | G118: 0.001409247291 | H118: =G118*SUMIF('Manual Inputs'!$B$11:$B$22,'Expanded kW'!A118,'Manual Inputs'!$C$11:$C$22) -> 208819.9664
A119: 4 | B119: FALSE | C119: OFF | D119: 2019-04-05T21:00:00 | E119: LRKPCRES | F119: 1.350928783 | G119: 0.001565065189 | H119: =G119*SUMIF('Manual Inputs'!$B$11:$B$22,'Expanded kW'!A119,'Manual Inputs'!$C$11:$C$22) -> 231908.8087
A120: 4 | B120: FALSE | C120: OFF | D120: 2019-04-05T22:00:00 | E120: LRKPCRES | F120: 1.188493609 | G120: 0.001376882334 | H120: =G120*SUMIF('Manual Inputs'!$B$11:$B$22,'Expanded kW'!A120,'Manual Inputs'!$C$11:$C$22) -> 204024.1799
A121: 4 | B121: FALSE | C121: OFF | D121: 2019-04-05T23:00:00 | E121: LRKPCRES | F121: 1.060853124 | G121: 0.00122900949 | H121: =G121*SUMIF('Manual Inputs'!$B$11:$B$22,'Expanded kW'!A121,'Manual Inputs'!$C$11:$C$22) -> 182112.6229
A122: 4 | B122: FALSE | C122: OFF | D122: 2019-04-06 | E122: LRKPCRES | F122: 0.9320944548 | G122: 0.001079841219 | H122: =G122*SUMIF('Manual Inputs'!$B$11:$B$22,'Expanded kW'!A122,'Manual Inputs'!$C$11:$C$22) -> 160009.1117
A123: 4 | B123: FALSE | C123: OFF | D123: 2019-04-06T01:00:00 | E123: LRKPCRES | F123: 0.800814569 | G123: 0.0009277520921 | H123: =G123*SUMIF('Manual Inputs'!$B$11:$B$22,'Expanded kW'!A123,'Manual Inputs'!$C$11:$C$22) -> 137472.7928
A124: 4 | B124: FALSE | C124: OFF | D124: 2019-04-06T02:00:00 | E124: LRKPCRES | F124: 0.8043738008 | G124: 0.0009318754995 | H124: =G124*SUMIF('Manual Inputs'!$B$11:$B$22,'Expanded kW'!A124,'Manual Inputs'!$C$11:$C$22) -> 138083.7926
A125: 4 | B125: FALSE | C125: OFF | D125: 2019-04-06T03:00:00 | E125: LRKPCRES | F125: 0.7295858264 | G125: 0.0008452328454 | H125: =G125*SUMIF('Manual Inputs'!$B$11:$B$22,'Expanded kW'!A125,'Manual Inputs'!$C$11:$C$22) -> 125245.2253
A126: 4 | B126: FALSE | C126: OFF | D126: 2019-04-06T04:00:00 | E126: LRKPCRES | F126: 0.7381398082 | G126: 0.0008551427232 | H126: =G126*SUMIF('Manual Inputs'!$B$11:$B$22,'Expanded kW'!A126,'Manual Inputs'!$C$11:$C$22) -> 126713.6548
A127: 4 | B127: FALSE | C127: OFF | D127: 2019-04-06T05:00:00 | E127: LRKPCRES | F127: 0.7988496423 | G127: 0.0009254757038 | H127: =G127*SUMIF('Manual Inputs'!$B$11:$B$22,'Expanded kW'!A127,'Manual Inputs'!$C$11:$C$22) -> 137135.4813
A128: 4 | B128: FALSE | C128: OFF | D128: 2019-04-06T06:00:00 | E128: LRKPCRES | F128: 0.8731656075 | G128: 0.00101157153 | H128: =G128*SUMIF('Manual Inputs'!$B$11:$B$22,'Expanded kW'!A128,'Manual Inputs'!$C$11:$C$22) -> 149893.0205
A129: 4 | B129: FALSE | C129: OFF | D129: 2019-04-06T07:00:00 | E129: LRKPCRES | F129: 0.8965281844 | G129: 0.001038637321 | H129: =G129*SUMIF('Manual Inputs'!$B$11:$B$22,'Expanded kW'!A129,'Manual Inputs'!$C$11:$C$22) -> 153903.5853
A130: =MONTH(D130) -> 4 | B130: =IF(ISNA(VLOOKUP(DATE(YEAR(D130),MONTH(D130),DAY(D130)),Holidays,1,FALSE)),FALSE,TRUE) -> FALSE | C130: =IF(OR(HOUR(D130)<PkStart,HOUR(D130)>OPkStart-1,WEEKDAY(D130,2)>5,B130)=TRUE,"OFF","ON") -> OFF | D130: 2019-04-06T08:00:00 | E130: LRKPCRES | F130: 1.058827758 | G130: =IF(SUMIF($A$2:$A$8785,A130,$F$2:$F$8785)=0,0,F130/SUMIF($A$2:$A$8785,A130,$F$2:$F$8785)) -> 0.001226663082 | H130: =G130*SUMIF('Manual Inputs'!$B$11:$B$22,'Expanded kW'!A130,'Manual Inputs'!$C$11:$C$22) -> 181764.9361
A131: 4 | B131: FALSE | C131: OFF | D131: 2019-04-06T09:00:00 | E131: LRKPCRES | F131: 1.323208809 | G131: 0.001532951308 | H131: =G131*SUMIF('Manual Inputs'!$B$11:$B$22,'Expanded kW'!A131,'Manual Inputs'!$C$11:$C$22) -> 227150.226
A132: 4 | B132: FALSE | C132: OFF | D132: =+D131+1/24 -> 2019-04-06T10:00:00 | E132: =+E131 -> LRKPCRES | F132: 1.098052382 | G132: 0.001272105222 | H132: =G132*SUMIF('Manual Inputs'!$B$11:$B$22,'Expanded kW'!A132,'Manual Inputs'!$C$11:$C$22) -> 188498.4783
A133: 4 | B133: FALSE | C133: OFF | D133: 2019-04-06T11:00:00 | E133: LRKPCRES | F133: 1.009276628 | G133: 0.001169257578 | H133: =G133*SUMIF('Manual Inputs'!$B$11:$B$22,'Expanded kW'!A133,'Manual Inputs'!$C$11:$C$22) -> 173258.6821
A134: 4 | B134: FALSE | C134: OFF | D134: 2019-04-06T12:00:00 | E134: LRKPCRES | F134: 1.09138751 | G134: 0.001264383898 | H134: =G134*SUMIF('Manual Inputs'!$B$11:$B$22,'Expanded kW'!A134,'Manual Inputs'!$C$11:$C$22) -> 187354.345
A135: 4 | B135: FALSE | C135: OFF | D135: 2019-04-06T13:00:00 | E135: LRKPCRES | F135: 1.136865139 | G135: 0.001317070208 | H135: =G135*SUMIF('Manual Inputs'!$B$11:$B$22,'Expanded kW'!A135,'Manual Inputs'!$C$11:$C$22) -> 195161.3166
A136: 4 | B136: FALSE | C136: OFF | D136: 2019-04-06T14:00:00 | E136: LRKPCRES | F136: 1.193679214 | G136: 0.00138288991 | H136: =G136*SUMIF('Manual Inputs'!$B$11:$B$22,'Expanded kW'!A136,'Manual Inputs'!$C$11:$C$22) -> 204914.3728
A137: 4 | B137: FALSE | C137: OFF | D137: 2019-04-06T15:00:00 | E137: LRKPCRES | F137: 1.180501223 | G137: 0.00136762307 | H137: =G137*SUMIF('Manual Inputs'!$B$11:$B$22,'Expanded kW'!A137,'Manual Inputs'!$C$11:$C$22) -> 202652.1572
A138: 4 | B138: FALSE | C138: OFF | D138: 2019-04-06T16:00:00 | E138: LRKPCRES | F138: 1.255446196 | G138: 0.001454447608 | H138: =G138*SUMIF('Manual Inputs'!$B$11:$B$22,'Expanded kW'!A138,'Manual Inputs'!$C$11:$C$22) -> 215517.6758
A139: 4 | B139: FALSE | C139: OFF | D139: 2019-04-06T17:00:00 | E139: LRKPCRES | F139: 1.258655906 | G139: 0.001458166091 | H139: =G139*SUMIF('Manual Inputs'!$B$11:$B$22,'Expanded kW'!A139,'Manual Inputs'!$C$11:$C$22) -> 216068.6746
A140: 4 | B140: FALSE | C140: OFF | D140: 2019-04-06T18:00:00 | E140: LRKPCRES | F140: 1.088997006 | G140: 0.001261614474 | H140: =G140*SUMIF('Manual Inputs'!$B$11:$B$22,'Expanded kW'!A140,'Manual Inputs'!$C$11:$C$22) -> 186943.9763
A141: 4 | B141: FALSE | C141: OFF | D141: 2019-04-06T19:00:00 | E141: LRKPCRES | F141: 1.214445949 | G141: 0.001406948391 | H141: =G141*SUMIF('Manual Inputs'!$B$11:$B$22,'Expanded kW'!A141,'Manual Inputs'!$C$11:$C$22) -> 208479.3193
A142: 4 | B142: FALSE | C142: OFF | D142: 2019-04-06T20:00:00 | E142: LRKPCRES | F142: 1.102059841 | G142: 0.001276747905 | H142: =G142*SUMIF('Manual Inputs'!$B$11:$B$22,'Expanded kW'!A142,'Manual Inputs'!$C$11:$C$22) -> 189186.4235
A143: 4 | B143: FALSE | C143: OFF | D143: 2019-04-06T21:00:00 | E143: LRKPCRES | F143: 1.310454369 | G143: 0.001518175155 | H143: =G143*SUMIF('Manual Inputs'!$B$11:$B$22,'Expanded kW'!A143,'Manual Inputs'!$C$11:$C$22) -> 224960.7198
A144: 4 | B144: FALSE | C144: OFF | D144: 2019-04-06T22:00:00 | E144: LRKPCRES | F144: 1.210661173 | G144: 0.001402563689 | H144: =G144*SUMIF('Manual Inputs'!$B$11:$B$22,'Expanded kW'!A144,'Manual Inputs'!$C$11:$C$22) -> 207829.6012
A145: 4 | B145: FALSE | C145: OFF | D145: 2019-04-06T23:00:00 | E145: LRKPCRES | F145: 1.018290877 | G145: 0.00117970068 | H145: =G145*SUMIF('Manual Inputs'!$B$11:$B$22,'Expanded kW'!A145,'Manual Inputs'!$C$11:$C$22) -> 174806.1239
A146: 4 | B146: FALSE | C146: OFF | D146: 2019-04-07 | E146: LRKPCRES | F146: 0.8742281795 | G146: 0.001012802531 | H146: =G146*SUMIF('Manual Inputs'!$B$11:$B$22,'Expanded kW'!A146,'Manual Inputs'!$C$11:$C$22) -> 150075.4282
A147: 4 | B147: FALSE | C147: OFF | D147: 2019-04-07T01:00:00 | E147: LRKPCRES | F147: 0.734320879 | G147: 0.0008507184536 | H147: =G147*SUMIF('Manual Inputs'!$B$11:$B$22,'Expanded kW'!A147,'Manual Inputs'!$C$11:$C$22) -> 126058.0738
A148: 4 | B148: FALSE | C148: OFF | D148: 2019-04-07T02:00:00 | E148: LRKPCRES | F148: 0.8120956421 | G148: 0.0009408213338 | H148: =G148*SUMIF('Manual Inputs'!$B$11:$B$22,'Expanded kW'!A148,'Manual Inputs'!$C$11:$C$22) -> 139409.3717
A149: 4 | B149: FALSE | C149: OFF | D149: 2019-04-07T03:00:00 | E149: LRKPCRES | F149: 0.8438211083 | G149: 0.0009775756198 | H149: =G149*SUMIF('Manual Inputs'!$B$11:$B$22,'Expanded kW'!A149,'Manual Inputs'!$C$11:$C$22) -> 144855.5619
A150: 4 | B150: FALSE | C150: OFF | D150: 2019-04-07T04:00:00 | E150: LRKPCRES | F150: 0.8455640078 | G150: 0.000979594787 | H150: =G150*SUMIF('Manual Inputs'!$B$11:$B$22,'Expanded kW'!A150,'Manual Inputs'!$C$11:$C$22) -> 145154.7588
A151: 4 | B151: FALSE | C151: OFF | D151: 2019-04-07T05:00:00 | E151: LRKPCRES | F151: 0.9662692547 | G151: 0.001119433084 | H151: =G151*SUMIF('Manual Inputs'!$B$11:$B$22,'Expanded kW'!A151,'Manual Inputs'!$C$11:$C$22) -> 165875.7697
A152: 4 | B152: FALSE | C152: OFF | D152: 2019-04-07T06:00:00 | E152: LRKPCRES | F152: 0.9852895141 | G152: 0.001141468254 | H152: =G152*SUMIF('Manual Inputs'!$B$11:$B$22,'Expanded kW'!A152,'Manual Inputs'!$C$11:$C$22) -> 169140.9053
A153: 4 | B153: FALSE | C153: OFF | D153: 2019-04-07T07:00:00 | E153: LRKPCRES | F153: 1.072038412 | G153: 0.001241967764 | H153: =G153*SUMIF('Manual Inputs'!$B$11:$B$22,'Expanded kW'!A153,'Manual Inputs'!$C$11:$C$22) -> 184032.7589
A154: 4 | B154: FALSE | C154: OFF | D154: 2019-04-07T08:00:00 | E154: LRKPCRES | F154: 1.284856677 | G154: 0.00148851996 | H154: =G154*SUMIF('Manual Inputs'!$B$11:$B$22,'Expanded kW'!A154,'Manual Inputs'!$C$11:$C$22) -> 220566.4614
A155: 4 | B155: FALSE | C155: OFF | D155: 2019-04-07T09:00:00 | E155: LRKPCRES | F155: 1.425353289 | G155: 0.001651286761 | H155: =G155*SUMIF('Manual Inputs'!$B$11:$B$22,'Expanded kW'!A155,'Manual Inputs'!$C$11:$C$22) -> 244684.9806
A156: 4 | B156: FALSE | C156: OFF | D156: 2019-04-07T10:00:00 | E156: LRKPCRES | F156: 1.312060952 | G156: 0.001520036398 | H156: =G156*SUMIF('Manual Inputs'!$B$11:$B$22,'Expanded kW'!A156,'Manual Inputs'!$C$11:$C$22) -> 225236.5159
A157: 4 | B157: FALSE | C157: OFF | D157: 2019-04-07T11:00:00 | E157: LRKPCRES | F157: 1.133580804 | G157: 0.001313265271 | H157: =G157*SUMIF('Manual Inputs'!$B$11:$B$22,'Expanded kW'!A157,'Manual Inputs'!$C$11:$C$22) -> 194597.5073
A158: 4 | B158: FALSE | C158: OFF | D158: 2019-04-07T12:00:00 | E158: LRKPCRES | F158: 0.9436671138 | G158: 0.001093248266 | H158: =G158*SUMIF('Manual Inputs'!$B$11:$B$22,'Expanded kW'!A158,'Manual Inputs'!$C$11:$C$22) -> 161995.7461
A159: 4 | B159: FALSE | C159: OFF | D159: 2019-04-07T13:00:00 | E159: LRKPCRES | F159: 0.9622763395 | G159: 0.00111480725 | H159: =G159*SUMIF('Manual Inputs'!$B$11:$B$22,'Expanded kW'!A159,'Manual Inputs'!$C$11:$C$22) -> 165190.3211
A160: 4 | B160: FALSE | C160: OFF | D160: 2019-04-07T14:00:00 | E160: LRKPCRES | F160: 1.186667442 | G160: 0.0013747667 | H160: =G160*SUMIF('Manual Inputs'!$B$11:$B$22,'Expanded kW'!A160,'Manual Inputs'!$C$11:$C$22) -> 203710.6887
A161: 4 | B161: FALSE | C161: OFF | D161: 2019-04-07T15:00:00 | E161: LRKPCRES | F161: 1.105088472 | G161: 0.001280256606 | H161: =G161*SUMIF('Manual Inputs'!$B$11:$B$22,'Expanded kW'!A161,'Manual Inputs'!$C$11:$C$22) -> 189706.3371
A162: 4 | B162: FALSE | C162: OFF | D162: 2019-04-07T16:00:00 | E162: LRKPCRES | F162: 1.022250295 | G162: 0.001184287707 | H162: =G162*SUMIF('Manual Inputs'!$B$11:$B$22,'Expanded kW'!A162,'Manual Inputs'!$C$11:$C$22) -> 175485.822
A163: 4 | B163: FALSE | C163: OFF | D163: 2019-04-07T17:00:00 | E163: LRKPCRES | F163: 1.154134989 | G163: 0.001337077511 | H163: =G163*SUMIF('Manual Inputs'!$B$11:$B$22,'Expanded kW'!A163,'Manual Inputs'!$C$11:$C$22) -> 198125.9661
A164: 4 | B164: FALSE | C164: OFF | D164: 2019-04-07T18:00:00 | E164: LRKPCRES | F164: 1.24969089 | G164: 0.001447780027 | H164: =G164*SUMIF('Manual Inputs'!$B$11:$B$22,'Expanded kW'!A164,'Manual Inputs'!$C$11:$C$22) -> 214529.6844
A165: 4 | B165: FALSE | C165: OFF | D165: 2019-04-07T19:00:00 | E165: LRKPCRES | F165: 1.169174314 | G165: 0.001354500726 | H165: =G165*SUMIF('Manual Inputs'!$B$11:$B$22,'Expanded kW'!A165,'Manual Inputs'!$C$11:$C$22) -> 200707.7098
A166: 4 | B166: FALSE | C166: OFF | D166: 2019-04-07T20:00:00 | E166: LRKPCRES | F166: 1.200312734 | G166: 0.001390574913 | H166: =G166*SUMIF('Manual Inputs'!$B$11:$B$22,'Expanded kW'!A166,'Manual Inputs'!$C$11:$C$22) -> 206053.124
A167: 4 | B167: FALSE | C167: OFF | D167: 2019-04-07T21:00:00 | E167: LRKPCRES | F167: 1.090013981 | G167: 0.001262792649 | H167: =G167*SUMIF('Manual Inputs'!$B$11:$B$22,'Expanded kW'!A167,'Manual Inputs'!$C$11:$C$22) -> 187118.5564
A168: 4 | B168: FALSE | C168: OFF | D168: 2019-04-07T22:00:00 | E168: LRKPCRES | F168: 1.018143296 | G168: 0.001179529706 | H168: =G168*SUMIF('Manual Inputs'!$B$11:$B$22,'Expanded kW'!A168,'Manual Inputs'!$C$11:$C$22) -> 174780.7892
A169: 4 | B169: FALSE | C169: OFF | D169: 2019-04-07T23:00:00 | E169: LRKPCRES | F169: 0.7592825294 | G169: 0.0008796367878 | H169: =G169*SUMIF('Manual Inputs'!$B$11:$B$22,'Expanded kW'!A169,'Manual Inputs'!$C$11:$C$22) -> 130343.1454
A170: 4 | B170: FALSE | C170: OFF | D170: 2019-04-08 | E170: LRKPCRES | F170: 0.6844844222 | G170: 0.0007929823948 | H170: =G170*SUMIF('Manual Inputs'!$B$11:$B$22,'Expanded kW'!A170,'Manual Inputs'!$C$11:$C$22) -> 117502.8387
A171: 4 | B171: FALSE | C171: OFF | D171: 2019-04-08T01:00:00 | E171: LRKPCRES | F171: 0.6631331444 | G171: 0.0007682467151 | H171: =G171*SUMIF('Manual Inputs'!$B$11:$B$22,'Expanded kW'!A171,'Manual Inputs'!$C$11:$C$22) -> 113837.546
A172: 4 | B172: FALSE | C172: OFF | D172: 2019-04-08T02:00:00 | E172: LRKPCRES | F172: 0.6819542646 | G172: 0.0007900511807 | H172: =G172*SUMIF('Manual Inputs'!$B$11:$B$22,'Expanded kW'!A172,'Manual Inputs'!$C$11:$C$22) -> 117068.4962
A173: 4 | B173: FALSE | C173: OFF | D173: 2019-04-08T03:00:00 | E173: LRKPCRES | F173: 0.6808065772 | G173: 0.0007887215727 | H173: =G173*SUMIF('Manual Inputs'!$B$11:$B$22,'Expanded kW'!A173,'Manual Inputs'!$C$11:$C$22) -> 116871.477
A174: 4 | B174: FALSE | C174: OFF | D174: 2019-04-08T04:00:00 | E174: LRKPCRES | F174: 0.6798250079 | G174: 0.0007875844144 | H174: =G174*SUMIF('Manual Inputs'!$B$11:$B$22,'Expanded kW'!A174,'Manual Inputs'!$C$11:$C$22) -> 116702.9748
A175: 4 | B175: FALSE | C175: OFF | D175: 2019-04-08T05:00:00 | E175: LRKPCRES | F175: 0.7306124568 | G175: 0.0008464222075 | H175: =G175*SUMIF('Manual Inputs'!$B$11:$B$22,'Expanded kW'!A175,'Manual Inputs'!$C$11:$C$22) -> 125421.463
A176: 4 | B176: FALSE | C176: OFF | D176: 2019-04-08T06:00:00 | E176: LRKPCRES | F176: 0.9394257665 | G176: 0.001088334621 | H176: =G176*SUMIF('Manual Inputs'!$B$11:$B$22,'Expanded kW'!A176,'Manual Inputs'!$C$11:$C$22) -> 161267.6501
A177: 4 | B177: FALSE | C177: ON | D177: 2019-04-08T07:00:00 | E177: LRKPCRES | F177: 0.97989434 | G177: 0.001135217888 | H177: =G177*SUMIF('Manual Inputs'!$B$11:$B$22,'Expanded kW'!A177,'Manual Inputs'!$C$11:$C$22) -> 168214.7363
A178: 4 | B178: FALSE | C178: ON | D178: 2019-04-08T08:00:00 | E178: LRKPCRES | F178: 1.032302737 | G178: 0.001195933567 | H178: =G178*SUMIF('Manual Inputs'!$B$11:$B$22,'Expanded kW'!A178,'Manual Inputs'!$C$11:$C$22) -> 177211.4866
A179: 4 | B179: FALSE | C179: ON | D179: 2019-04-08T09:00:00 | E179: LRKPCRES | F179: 1.007653117 | G179: 0.001167376723 | H179: =G179*SUMIF('Manual Inputs'!$B$11:$B$22,'Expanded kW'!A179,'Manual Inputs'!$C$11:$C$22) -> 172979.98
A180: 4 | B180: FALSE | C180: ON | D180: 2019-04-08T10:00:00 | E180: LRKPCRES | F180: 0.9450657964 | G180: 0.001094868655 | H180: =G180*SUMIF('Manual Inputs'!$B$11:$B$22,'Expanded kW'!A180,'Manual Inputs'!$C$11:$C$22) -> 162235.8526
A181: 4 | B181: FALSE | C181: ON | D181: 2019-04-08T11:00:00 | E181: LRKPCRES | F181: 1.170075774 | G181: 0.001355545078 | H181: =G181*SUMIF('Manual Inputs'!$B$11:$B$22,'Expanded kW'!A181,'Manual Inputs'!$C$11:$C$22) -> 200862.4601
A182: 4 | B182: FALSE | C182: ON | D182: 2019-04-08T12:00:00 | E182: LRKPCRES | F182: 1.121034503 | G182: 0.00129873025 | H182: =G182*SUMIF('Manual Inputs'!$B$11:$B$22,'Expanded kW'!A182,'Manual Inputs'!$C$11:$C$22) -> 192443.7315
A183: 4 | B183: FALSE | C183: ON | D183: 2019-04-08T13:00:00 | E183: LRKPCRES | F183: 1.077804089 | G183: 0.001248647361 | H183: =G183*SUMIF('Manual Inputs'!$B$11:$B$22,'Expanded kW'!A183,'Manual Inputs'!$C$11:$C$22) -> 185022.5306
A184: 4 | B184: FALSE | C184: ON | D184: 2019-04-08T14:00:00 | E184: LRKPCRES | F184: 0.9530448914 | G184: 0.00110411252 | H184: =G184*SUMIF('Manual Inputs'!$B$11:$B$22,'Expanded kW'!A184,'Manual Inputs'!$C$11:$C$22) -> 163605.5935
A185: 4 | B185: FALSE | C185: ON | D185: 2019-04-08T15:00:00 | E185: LRKPCRES | F185: 1.013203144 | G185: 0.001173806488 | H185: =G185*SUMIF('Manual Inputs'!$B$11:$B$22,'Expanded kW'!A185,'Manual Inputs'!$C$11:$C$22) -> 173932.7321
A186: 4 | B186: FALSE | C186: ON | D186: 2019-04-08T16:00:00 | E186: LRKPCRES | F186: 0.9925165772 | G186: 0.001149840883 | H186: =G186*SUMIF('Manual Inputs'!$B$11:$B$22,'Expanded kW'!A186,'Manual Inputs'!$C$11:$C$22) -> 170381.5478
A187: 4 | B187: FALSE | C187: ON | D187: 2019-04-08T17:00:00 | E187: LRKPCRES | F187: 1.108623624 | G187: 0.001284352116 | H187: =G187*SUMIF('Manual Inputs'!$B$11:$B$22,'Expanded kW'!A187,'Manual Inputs'!$C$11:$C$22) -> 190313.2031
A188: 4 | B188: FALSE | C188: ON | D188: 2019-04-08T18:00:00 | E188: LRKPCRES | F188: 1.171033263 | G188: 0.001356654339 | H188: =G188*SUMIF('Manual Inputs'!$B$11:$B$22,'Expanded kW'!A188,'Manual Inputs'!$C$11:$C$22) -> 201026.8286
A189: 4 | B189: FALSE | C189: ON | D189: 2019-04-08T19:00:00 | E189: LRKPCRES | F189: 1.06567347 | G189: 0.001234593912 | H189: =G189*SUMIF('Manual Inputs'!$B$11:$B$22,'Expanded kW'!A189,'Manual Inputs'!$C$11:$C$22) -> 182940.1135
A190: 4 | B190: FALSE | C190: ON | D190: 2019-04-08T20:00:00 | E190: LRKPCRES | F190: 1.239254713 | G190: 0.001435689606 | H190: =G190*SUMIF('Manual Inputs'!$B$11:$B$22,'Expanded kW'!A190,'Manual Inputs'!$C$11:$C$22) -> 212738.1456
A191: 4 | B191: FALSE | C191: OFF | D191: 2019-04-08T21:00:00 | E191: LRKPCRES | F191: 1.254849076 | G191: 0.001453755839 | H191: =G191*SUMIF('Manual Inputs'!$B$11:$B$22,'Expanded kW'!A191,'Manual Inputs'!$C$11:$C$22) -> 215415.1706
A192: 4 | B192: FALSE | C192: OFF | D192: 2019-04-08T22:00:00 | E192: LRKPCRES | F192: 1.021144271 | G192: 0.001183006367 | H192: =G192*SUMIF('Manual Inputs'!$B$11:$B$22,'Expanded kW'!A192,'Manual Inputs'!$C$11:$C$22) -> 175295.9551
A193: 4 | B193: FALSE | C193: OFF | D193: 2019-04-08T23:00:00 | E193: LRKPCRES | F193: 0.8488300443 | G193: 0.0009833785247 | H193: =G193*SUMIF('Manual Inputs'!$B$11:$B$22,'Expanded kW'!A193,'Manual Inputs'!$C$11:$C$22) -> 145715.4269
A194: =MONTH(D194) -> 4 | B194: =IF(ISNA(VLOOKUP(DATE(YEAR(D194),MONTH(D194),DAY(D194)),Holidays,1,FALSE)),FALSE,TRUE) -> FALSE | C194: =IF(OR(HOUR(D194)<PkStart,HOUR(D194)>OPkStart-1,WEEKDAY(D194,2)>5,B194)=TRUE,"OFF","ON") -> OFF | D194: 2019-04-09 | E194: LRKPCRES | F194: 0.677953124 | G194: =IF(SUMIF($A$2:$A$8785,A194,$F$2:$F$8785)=0,0,F194/SUMIF($A$2:$A$8785,A194,$F$2:$F$8785)) -> 0.0007854158172 | H194: =G194*SUMIF('Manual Inputs'!$B$11:$B$22,'Expanded kW'!A194,'Manual Inputs'!$C$11:$C$22) -> 116381.6356
A195: 4 | B195: FALSE | C195: OFF | D195: 2019-04-09T01:00:00 | E195: LRKPCRES | F195: 0.7312933803 | G195: 0.0008472110645 | H195: =G195*SUMIF('Manual Inputs'!$B$11:$B$22,'Expanded kW'!A195,'Manual Inputs'!$C$11:$C$22) -> 125538.3546
A196: 4 | B196: FALSE | C196: OFF | D196: =+D195+1/24 -> 2019-04-09T02:00:00 | E196: =+E195 -> LRKPCRES | F196: 0.7346642017 | G196: 0.0008511161966 | H196: =G196*SUMIF('Manual Inputs'!$B$11:$B$22,'Expanded kW'!A196,'Manual Inputs'!$C$11:$C$22) -> 126117.0107
A197: 4 | B197: FALSE | C197: OFF | D197: 2019-04-09T03:00:00 | E197: LRKPCRES | F197: 0.6750046015 | G197: 0.0007819999229 | H197: =G197*SUMIF('Manual Inputs'!$B$11:$B$22,'Expanded kW'!A197,'Manual Inputs'!$C$11:$C$22) -> 115875.4739
A198: 4 | B198: FALSE | C198: OFF | D198: 2019-04-09T04:00:00 | E198: LRKPCRES | F198: 0.7557257414 | G198: 0.0008755162116 | H198: =G198*SUMIF('Manual Inputs'!$B$11:$B$22,'Expanded kW'!A198,'Manual Inputs'!$C$11:$C$22) -> 129732.5651
A199: 4 | B199: FALSE | C199: OFF | D199: 2019-04-09T05:00:00 | E199: LRKPCRES | F199: 0.8378356695 | G199: 0.000970641426 | H199: =G199*SUMIF('Manual Inputs'!$B$11:$B$22,'Expanded kW'!A199,'Manual Inputs'!$C$11:$C$22) -> 143828.0644
A200: 4 | B200: FALSE | C200: OFF | D200: 2019-04-09T06:00:00 | E200: LRKPCRES | F200: 1.11519134 | G200: 0.001291960885 | H200: =G200*SUMIF('Manual Inputs'!$B$11:$B$22,'Expanded kW'!A200,'Manual Inputs'!$C$11:$C$22) -> 191440.658
... 8585 more rows

Sheet Monthly Data
A1: ='Manual Inputs'!D1 -> Kentucky Power Co.
A2: =+'Manual Inputs'!D2 -> Kentucky
A3: Monthly Summary of Sample Data
A4: =CustClass & " Customers" -> Residential Customers
A5: ="For the Test Year Ended " & TEXT(+DATE(YEAR(ReportYr)+1,MONTH(ReportYr),DAY(ReportYr))-1,"Mmmm d, yyyy") -> For the Test Year Ended March 31, 2020
A6: ="Based on Sample Period Ended " & TEXT(+DATE(YEAR(TYBegin)+1,MONTH(TYBegin),DAY(TYBegin))-1,"Mmmm d, yyyy") -> Based on Sample Period Ended March 31, 2020
C8: ON | E8: OFF
C9: NCP | H9: SNCP | N9: Energy
A10: Year | B10: Month | C10: On-Peak | D10: LF | E10: Off-Peak | F10: LF | H10: On-Peak | I10: LF | J10: Off-Peak | K10: LF | M10: CP | N10: On-Peak | O10: Off-Peak | P10: Total
A11: =+'Manual Inputs'!A11 -> 2019 | B11: =+'Manual Inputs'!B11 -> 4 | C11: =MAX(IF('Expanded kW'!$A$2:$A$8785=$B11,IF('Expanded kW'!$C$2:$C$8785=C$8,'Expanded kW'!$F$2:$F$8785,0),0)) -> 3.124508858 | D11: =IF(C11=0,0,$P11/C11/COUNTIF('Expanded kW'!$A$2:$A$8785,'Monthly Data'!$B11)) -> 0.3836946702 | E11: =MAX(IF('Expanded kW'!$A$2:$A$8785=$B11,IF('Expanded kW'!$C$2:$C$8785=E$8,'Expanded kW'!$F$2:$F$8785,0),0)) -> 3.032763004 | F11: =IF(E11=0,0,$P11/E11/COUNTIF('Expanded kW'!$A$2:$A$8785,'Monthly Data'!$B11)) -> 0.3953020378 | H11: =+'LR Monthly'!G2 -> 6.031913965 | I11: =IF(H11=0,0,$P11/H11/COUNTIF('Expanded kW'!$A$2:$A$8785,'Monthly Data'!$B11)) -> 0.1987524031 | J11: =+'LR Monthly'!H2 -> 5.91895602 | K11: =IF(J11=0,0,$P11/J11/COUNTIF('Expanded kW'!$A$2:$A$8785,'Monthly Data'!$B11)) -> 0.2025454137 | M11: =VLOOKUP('Manual Inputs'!E27,'Expanded kW'!$D$2:$F$8785,3) -> 3.032763004 | N11: =SUMIFS('Expanded kW'!$F$2:$F$8785,'Expanded kW'!$A$2:$A$8785,$B11,'Expanded kW'!$C$2:$C$8785,C$8) -> 389.5451645 | O11: =SUMIFS('Expanded kW'!$F$2:$F$8785,'Expanded kW'!$A$2:$A$8785,$B11,'Expanded kW'!$C$2:$C$8785,E$8) -> 473.6321604 | P11: =SUM(N11:O11) -> 863.1773249
A12: =+'Manual Inputs'!A12 -> 2019 | B12: =+'Manual Inputs'!B12 -> 5 | C12: =MAX(IF('Expanded kW'!$A$2:$A$8785=$B12,IF('Expanded kW'!$C$2:$C$8785=C$8,'Expanded kW'!$F$2:$F$8785,0),0)) -> 2.932718515 | D12: =IF(C12=0,0,$P12/C12/COUNTIF('Expanded kW'!$A$2:$A$8785,'Monthly Data'!$B12)) -> 0.4386891999 | E12: =MAX(IF('Expanded kW'!$A$2:$A$8785=$B12,IF('Expanded kW'!$C$2:$C$8785=E$8,'Expanded kW'!$F$2:$F$8785,0),0)) -> 2.912454844 | F12: =IF(E12=0,0,$P12/E12/COUNTIF('Expanded kW'!$A$2:$A$8785,'Monthly Data'!$B12)) -> 0.4417414203 | H12: =+'LR Monthly'!G3 -> 5.982179647 | I12: =IF(H12=0,0,$P12/H12/COUNTIF('Expanded kW'!$A$2:$A$8785,'Monthly Data'!$B12)) -> 0.2150640761 | J12: =+'LR Monthly'!H3 -> 5.774002347 | K12: =IF(J12=0,0,$P12/J12/COUNTIF('Expanded kW'!$A$2:$A$8785,'Monthly Data'!$B12)) -> 0.2228180492 | M12: =VLOOKUP('Manual Inputs'!E28,'Expanded kW'!$D$2:$F$8785,3) -> 2.672248125 | N12: =SUMIFS('Expanded kW'!$F$2:$F$8785,'Expanded kW'!$A$2:$A$8785,$B12,'Expanded kW'!$C$2:$C$8785,C$8) -> 471.9106207 | O12: =SUMIFS('Expanded kW'!$F$2:$F$8785,'Expanded kW'!$A$2:$A$8785,$B12,'Expanded kW'!$C$2:$C$8785,E$8) -> 485.2840219 | P12: =SUM(N12:O12) -> 957.1946427
A13: =+'Manual Inputs'!A13 -> 2019 | B13: =+'Manual Inputs'!B13 -> 6 | C13: =MAX(IF('Expanded kW'!$A$2:$A$8785=$B13,IF('Expanded kW'!$C$2:$C$8785=C$8,'Expanded kW'!$F$2:$F$8785,0),0)) -> 2.988554478 | D13: =IF(C13=0,0,$P13/C13/COUNTIF('Expanded kW'!$A$2:$A$8785,'Monthly Data'!$B13)) -> 0.4804474287 | E13: =MAX(IF('Expanded kW'!$A$2:$A$8785=$B13,IF('Expanded kW'!$C$2:$C$8785=E$8,'Expanded kW'!$F$2:$F$8785,0),0)) -> 3.015956879 | F13: =IF(E13=0,0,$P13/E13/COUNTIF('Expanded kW'!$A$2:$A$8785,'Monthly Data'!$B13)) -> 0.4760821763 | H13: =+'LR Monthly'!G4 -> 5.664097082 | I13: =IF(H13=0,0,$P13/H13/COUNTIF('Expanded kW'!$A$2:$A$8785,'Monthly Data'!$B13)) -> 0.253499065 | J13: =+'LR Monthly'!H4 -> 5.771973738 | K13: =IF(J13=0,0,$P13/J13/COUNTIF('Expanded kW'!$A$2:$A$8785,'Monthly Data'!$B13)) -> 0.2487612348 | M13: =VLOOKUP('Manual Inputs'!E29,'Expanded kW'!$D$2:$F$8785,3) -> 2.946583748 | N13: =SUMIFS('Expanded kW'!$F$2:$F$8785,'Expanded kW'!$A$2:$A$8785,$B13,'Expanded kW'!$C$2:$C$8785,C$8) -> 453.9793195 | O13: =SUMIFS('Expanded kW'!$F$2:$F$8785,'Expanded kW'!$A$2:$A$8785,$B13,'Expanded kW'!$C$2:$C$8785,E$8) -> 579.8278669 | P13: 1033.807186
A14: =+'Manual Inputs'!A14 -> 2019 | B14: =+'Manual Inputs'!B14 -> 7 | C14: =MAX(IF('Expanded kW'!$A$2:$A$8785=$B14,IF('Expanded kW'!$C$2:$C$8785=C$8,'Expanded kW'!$F$2:$F$8785,0),0)) -> 3.328023911 | D14: =IF(C14=0,0,$P14/C14/COUNTIF('Expanded kW'!$A$2:$A$8785,'Monthly Data'!$B14)) -> 0.5589949107 | E14: =MAX(IF('Expanded kW'!$A$2:$A$8785=$B14,IF('Expanded kW'!$C$2:$C$8785=E$8,'Expanded kW'!$F$2:$F$8785,0),0)) -> 3.374598265 | F14: =IF(E14=0,0,$P14/E14/COUNTIF('Expanded kW'!$A$2:$A$8785,'Monthly Data'!$B14)) -> 0.5512799696 | H14: =+'LR Monthly'!G5 -> 6.155835228 | I14: =IF(H14=0,0,$P14/H14/COUNTIF('Expanded kW'!$A$2:$A$8785,'Monthly Data'!$B14)) -> 0.3022089383 | J14: =+'LR Monthly'!H5 -> 6.036321511 | K14: =IF(J14=0,0,$P14/J14/COUNTIF('Expanded kW'!$A$2:$A$8785,'Monthly Data'!$B14)) -> 0.3081924025 | M14: =VLOOKUP('Manual Inputs'!E30,'Expanded kW'!$D$2:$F$8785,3) -> 3.21821022 | N14: =SUMIFS('Expanded kW'!$F$2:$F$8785,'Expanded kW'!$A$2:$A$8785,$B14,'Expanded kW'!$C$2:$C$8785,C$8) -> 683.67336 | O14: =SUMIFS('Expanded kW'!$F$2:$F$8785,'Expanded kW'!$A$2:$A$8785,$B14,'Expanded kW'!$C$2:$C$8785,E$8) -> 700.425871 | P14: 1384.099231
A15: =+'Manual Inputs'!A15 -> 2019 | B15: =+'Manual Inputs'!B15 -> 8 | C15: =MAX(IF('Expanded kW'!$A$2:$A$8785=$B15,IF('Expanded kW'!$C$2:$C$8785=C$8,'Expanded kW'!$F$2:$F$8785,0),0)) -> 3.153874874 | D15: =IF(C15=0,0,$P15/C15/COUNTIF('Expanded kW'!$A$2:$A$8785,'Monthly Data'!$B15)) -> 0.531979778 | E15: =MAX(IF('Expanded kW'!$A$2:$A$8785=$B15,IF('Expanded kW'!$C$2:$C$8785=E$8,'Expanded kW'!$F$2:$F$8785,0),0)) -> 3.216236353 | F15: =IF(E15=0,0,$P15/E15/COUNTIF('Expanded kW'!$A$2:$A$8785,'Monthly Data'!$B15)) -> 0.5216649124 | H15: =+'LR Monthly'!G6 -> 5.806046381 | I15: =IF(H15=0,0,$P15/H15/COUNTIF('Expanded kW'!$A$2:$A$8785,'Monthly Data'!$B15)) -> 0.2889742081 | J15: =+'LR Monthly'!H6 -> 5.726543516 | K15: =IF(J15=0,0,$P15/J15/COUNTIF('Expanded kW'!$A$2:$A$8785,'Monthly Data'!$B15)) -> 0.2929861007 | M15: =VLOOKUP('Manual Inputs'!E31,'Expanded kW'!$D$2:$F$8785,3) -> 2.947705269 | N15: =SUMIFS('Expanded kW'!$F$2:$F$8785,'Expanded kW'!$A$2:$A$8785,$B15,'Expanded kW'!$C$2:$C$8785,C$8) -> 600.5590779 | O15: =SUMIFS('Expanded kW'!$F$2:$F$8785,'Expanded kW'!$A$2:$A$8785,$B15,'Expanded kW'!$C$2:$C$8785,E$8) -> 647.7223777 | P15: 1248.281456
A16: =+'Manual Inputs'!A16 -> 2019 | B16: =+'Manual Inputs'!B16 -> 9 | C16: =MAX(IF('Expanded kW'!$A$2:$A$8785=$B16,IF('Expanded kW'!$C$2:$C$8785=C$8,'Expanded kW'!$F$2:$F$8785,0),0)) -> 3.059063911 | D16: =IF(C16=0,0,$P16/C16/COUNTIF('Expanded kW'!$A$2:$A$8785,'Monthly Data'!$B16)) -> 0.4997530788 | E16: =MAX(IF('Expanded kW'!$A$2:$A$8785=$B16,IF('Expanded kW'!$C$2:$C$8785=E$8,'Expanded kW'!$F$2:$F$8785,0),0)) -> 2.871007204 | F16: =IF(E16=0,0,$P16/E16/COUNTIF('Expanded kW'!$A$2:$A$8785,'Monthly Data'!$B16)) -> 0.5324879039 | H16: =+'LR Monthly'!G7 -> 5.922749201 | I16: =IF(H16=0,0,$P16/H16/COUNTIF('Expanded kW'!$A$2:$A$8785,'Monthly Data'!$B16)) -> 0.2581194233 | J16: =+'LR Monthly'!H7 -> 5.711877365 | K16: =IF(J16=0,0,$P16/J16/COUNTIF('Expanded kW'!$A$2:$A$8785,'Monthly Data'!$B16)) -> 0.2676487099 | M16: =VLOOKUP('Manual Inputs'!E32,'Expanded kW'!$D$2:$F$8785,3) -> 2.821373463 | N16: =SUMIFS('Expanded kW'!$F$2:$F$8785,'Expanded kW'!$A$2:$A$8785,$B16,'Expanded kW'!$C$2:$C$8785,C$8) -> 520.6556179 | O16: =SUMIFS('Expanded kW'!$F$2:$F$8785,'Expanded kW'!$A$2:$A$8785,$B16,'Expanded kW'!$C$2:$C$8785,E$8) -> 580.0635399 | P16: 1100.719158
A17: =+'Manual Inputs'!A17 -> 2019 | B17: =+'Manual Inputs'!B17 -> 10 | C17: =MAX(IF('Expanded kW'!$A$2:$A$8785=$B17,IF('Expanded kW'!$C$2:$C$8785=C$8,'Expanded kW'!$F$2:$F$8785,0),0)) -> 2.786959171 | D17: =IF(C17=0,0,$P17/C17/COUNTIF('Expanded kW'!$A$2:$A$8785,'Monthly Data'!$B17)) -> 0.4187847719 | E17: =MAX(IF('Expanded kW'!$A$2:$A$8785=$B17,IF('Expanded kW'!$C$2:$C$8785=E$8,'Expanded kW'!$F$2:$F$8785,0),0)) -> 2.118429422 | F17: =IF(E17=0,0,$P17/E17/COUNTIF('Expanded kW'!$A$2:$A$8785,'Monthly Data'!$B17)) -> 0.5509440383 | H17: =+'LR Monthly'!G8 -> 5.977931224 | I17: =IF(H17=0,0,$P17/H17/COUNTIF('Expanded kW'!$A$2:$A$8785,'Monthly Data'!$B17)) -> 0.1952407977 | J17: =+'LR Monthly'!H8 -> 5.581272178 | K17: =IF(J17=0,0,$P17/J17/COUNTIF('Expanded kW'!$A$2:$A$8785,'Monthly Data'!$B17)) -> 0.2091164924 | M17: =VLOOKUP('Manual Inputs'!E33,'Expanded kW'!$D$2:$F$8785,3) -> 2.715009451 | N17: =SUMIFS('Expanded kW'!$F$2:$F$8785,'Expanded kW'!$A$2:$A$8785,$B17,'Expanded kW'!$C$2:$C$8785,C$8) -> 409.5873148 | O17: =SUMIFS('Expanded kW'!$F$2:$F$8785,'Expanded kW'!$A$2:$A$8785,$B17,'Expanded kW'!$C$2:$C$8785,E$8) -> 458.7619144 | P17: 868.3492292
A18: =+'Manual Inputs'!A18 -> 2019 | B18: =+'Manual Inputs'!B18 -> 11 | C18: =MAX(IF('Expanded kW'!$A$2:$A$8785=$B18,IF('Expanded kW'!$C$2:$C$8785=C$8,'Expanded kW'!$F$2:$F$8785,0),0)) -> 4.198302746 | D18: =IF(C18=0,0,$P18/C18/COUNTIF('Expanded kW'!$A$2:$A$8785,'Monthly Data'!$B18)) -> 0.4677633552 | E18: =MAX(IF('Expanded kW'!$A$2:$A$8785=$B18,IF('Expanded kW'!$C$2:$C$8785=E$8,'Expanded kW'!$F$2:$F$8785,0),0)) -> 4.061247826 | F18: =IF(E18=0,0,$P18/E18/COUNTIF('Expanded kW'!$A$2:$A$8785,'Monthly Data'!$B18)) -> 0.4835489639 | H18: =+'LR Monthly'!G9 -> 6.923363525 | I18: =IF(H18=0,0,$P18/H18/COUNTIF('Expanded kW'!$A$2:$A$8785,'Monthly Data'!$B18)) -> 0.2836500165 | J18: =+'LR Monthly'!H9 -> 6.829466727 | K18: =IF(J18=0,0,$P18/J18/COUNTIF('Expanded kW'!$A$2:$A$8785,'Monthly Data'!$B18)) -> 0.2875498566 | M18: =VLOOKUP('Manual Inputs'!E34,'Expanded kW'!$D$2:$F$8785,3) -> 4.198302746 | N18: =SUMIFS('Expanded kW'!$F$2:$F$8785,'Expanded kW'!$A$2:$A$8785,$B18,'Expanded kW'!$C$2:$C$8785,C$8) -> 546.9511881 | O18: =SUMIFS('Expanded kW'!$F$2:$F$8785,'Expanded kW'!$A$2:$A$8785,$B18,'Expanded kW'!$C$2:$C$8785,E$8) -> 866.9935803 | P18: 1413.944768
A19: =+'Manual Inputs'!A19 -> 2019 | B19: =+'Manual Inputs'!B19 -> 12 | C19: =MAX(IF('Expanded kW'!$A$2:$A$8785=$B19,IF('Expanded kW'!$C$2:$C$8785=C$8,'Expanded kW'!$F$2:$F$8785,0),0)) -> 3.784521818 | D19: =IF(C19=0,0,$P19/C19/COUNTIF('Expanded kW'!$A$2:$A$8785,'Monthly Data'!$B19)) -> 0.5318314918 | E19: =MAX(IF('Expanded kW'!$A$2:$A$8785=$B19,IF('Expanded kW'!$C$2:$C$8785=E$8,'Expanded kW'!$F$2:$F$8785,0),0)) -> 3.553704262 | F19: =IF(E19=0,0,$P19/E19/COUNTIF('Expanded kW'!$A$2:$A$8785,'Monthly Data'!$B19)) -> 0.5663746153 | H19: =+'LR Monthly'!G10 -> 6.957268903 | I19: =IF(H19=0,0,$P19/H19/COUNTIF('Expanded kW'!$A$2:$A$8785,'Monthly Data'!$B19)) -> 0.2892985613 | J19: =+'LR Monthly'!H10 -> 6.523608128 | K19: =IF(J19=0,0,$P19/J19/COUNTIF('Expanded kW'!$A$2:$A$8785,'Monthly Data'!$B19)) -> 0.3085298572 | M19: =VLOOKUP('Manual Inputs'!E35,'Expanded kW'!$D$2:$F$8785,3) -> 3.664116621 | N19: =SUMIFS('Expanded kW'!$F$2:$F$8785,'Expanded kW'!$A$2:$A$8785,$B19,'Expanded kW'!$C$2:$C$8785,C$8) -> 639.9663732 | O19: =SUMIFS('Expanded kW'!$F$2:$F$8785,'Expanded kW'!$A$2:$A$8785,$B19,'Expanded kW'!$C$2:$C$8785,E$8) -> 857.5031726 | P19: 1497.469546
A20: =+'Manual Inputs'!A20 -> 2020 | B20: =+'Manual Inputs'!B20 -> 1 | C20: =MAX(IF('Expanded kW'!$A$2:$A$8785=$B20,IF('Expanded kW'!$C$2:$C$8785=C$8,'Expanded kW'!$F$2:$F$8785,0),0)) -> 4.312503815 | D20: =IF(C20=0,0,$P20/C20/COUNTIF('Expanded kW'!$A$2:$A$8785,'Monthly Data'!$B20)) -> 0.4744447507 | E20: =MAX(IF('Expanded kW'!$A$2:$A$8785=$B20,IF('Expanded kW'!$C$2:$C$8785=E$8,'Expanded kW'!$F$2:$F$8785,0),0)) -> 4.345616341 | F20: =IF(E20=0,0,$P20/E20/COUNTIF('Expanded kW'!$A$2:$A$8785,'Monthly Data'!$B20)) -> 0.4708295986 | H20: =+'LR Monthly'!G11 -> 7.035901577 | I20: =IF(H20=0,0,$P20/H20/COUNTIF('Expanded kW'!$A$2:$A$8785,'Monthly Data'!$B20)) -> 0.2908006564 | J20: =+'LR Monthly'!H11 -> 7.028381722 | K20: =IF(J20=0,0,$P20/J20/COUNTIF('Expanded kW'!$A$2:$A$8785,'Monthly Data'!$B20)) -> 0.2911117919 | M20: =VLOOKUP('Manual Inputs'!E36,'Expanded kW'!$D$2:$F$8785,3) -> 4.159337521 | N20: =SUMIFS('Expanded kW'!$F$2:$F$8785,'Expanded kW'!$A$2:$A$8785,$B20,'Expanded kW'!$C$2:$C$8785,C$8) -> 660.6032481 | O20: =SUMIFS('Expanded kW'!$F$2:$F$8785,'Expanded kW'!$A$2:$A$8785,$B20,'Expanded kW'!$C$2:$C$8785,E$8) -> 861.654081 | P20: 1522.257329
A21: =+'Manual Inputs'!A21 -> 2020 | B21: =+'Manual Inputs'!B21 -> 2 | C21: =MAX(IF('Expanded kW'!$A$2:$A$8785=$B21,IF('Expanded kW'!$C$2:$C$8785=C$8,'Expanded kW'!$F$2:$F$8785,0),0)) -> 3.694233656 | D21: =IF(C21=0,0,$P21/C21/COUNTIF('Expanded kW'!$A$2:$A$8785,'Monthly Data'!$B21)) -> 0.5807331406 | E21: =MAX(IF('Expanded kW'!$A$2:$A$8785=$B21,IF('Expanded kW'!$C$2:$C$8785=E$8,'Expanded kW'!$F$2:$F$8785,0),0)) -> 4.180345058 | F21: =IF(E21=0,0,$P21/E21/COUNTIF('Expanded kW'!$A$2:$A$8785,'Monthly Data'!$B21)) -> 0.5132025905 | H21: =+'LR Monthly'!G12 -> 6.839362042 | I21: =IF(H21=0,0,$P21/H21/COUNTIF('Expanded kW'!$A$2:$A$8785,'Monthly Data'!$B21)) -> 0.3136789513 | J21: =+'LR Monthly'!H12 -> 7.31828855 | K21: =IF(J21=0,0,$P21/J21/COUNTIF('Expanded kW'!$A$2:$A$8785,'Monthly Data'!$B21)) -> 0.2931510419 | M21: =VLOOKUP('Manual Inputs'!E37,'Expanded kW'!$D$2:$F$8785,3) -> 4.076425076 | N21: =SUMIFS('Expanded kW'!$F$2:$F$8785,'Expanded kW'!$A$2:$A$8785,$B21,'Expanded kW'!$C$2:$C$8785,C$8) -> 572.6064681 | O21: =SUMIFS('Expanded kW'!$F$2:$F$8785,'Expanded kW'!$A$2:$A$8785,$B21,'Expanded kW'!$C$2:$C$8785,E$8) -> 920.5668154 | P21: 1493.173283
A22: =+'Manual Inputs'!A22 -> 2020 | B22: =+'Manual Inputs'!B22 -> 3 | C22: =MAX(IF('Expanded kW'!$A$2:$A$8785=$B22,IF('Expanded kW'!$C$2:$C$8785=C$8,'Expanded kW'!$F$2:$F$8785,0),0)) -> 2.681379318 | D22: =IF(C22=0,0,$P22/C22/COUNTIF('Expanded kW'!$A$2:$A$8785,'Monthly Data'!$B22)) -> 0.5750396109 | E22: =MAX(IF('Expanded kW'!$A$2:$A$8785=$B22,IF('Expanded kW'!$C$2:$C$8785=E$8,'Expanded kW'!$F$2:$F$8785,0),0)) -> 3.724029779 | F22: =IF(E22=0,0,$P22/E22/COUNTIF('Expanded kW'!$A$2:$A$8785,'Monthly Data'!$B22)) -> 0.4140405451 | H22: =+'LR Monthly'!G13 -> 6.148410811 | I22: =IF(H22=0,0,$P22/H22/COUNTIF('Expanded kW'!$A$2:$A$8785,'Monthly Data'!$B22)) -> 0.2507801393 | J22: =+'LR Monthly'!H13 -> 6.842398706 | K22: =IF(J22=0,0,$P22/J22/COUNTIF('Expanded kW'!$A$2:$A$8785,'Monthly Data'!$B22)) -> 0.2253448514 | M22: =VLOOKUP('Manual Inputs'!E38,'Expanded kW'!$D$2:$F$8785,3) -> 3.452924728 | N22: =SUMIFS('Expanded kW'!$F$2:$F$8785,'Expanded kW'!$A$2:$A$8785,$B22,'Expanded kW'!$C$2:$C$8785,C$8) -> 441.6354725 | O22: =SUMIFS('Expanded kW'!$F$2:$F$8785,'Expanded kW'!$A$2:$A$8785,$B22,'Expanded kW'!$C$2:$C$8785,E$8) -> 705.5376214 | P22: 1147.173094
A24: NOTE: The data above is not expanded but instead is the output from Load Research data.

Sheet Summary
A1: ='Manual Inputs'!D1 -> Kentucky Power Co.
A2: =+'Manual Inputs'!D2 -> Kentucky
A3: Annual Summary of Sample Data
A4: =CustClass & " Customers" -> Residential Customers
A5: =+'Monthly Data'!A5 -> For the Test Year Ended March 31, 2020
A6: =+'Monthly Data'!A6 -> Based on Sample Period Ended March 31, 2020
A8: On-Peak SNCP | B8: =+'Manual Inputs'!H11 -> 8.822269332
A9: Off-Peak SNCP | B9: =+'Manual Inputs'!I11 -> 8.801286996
A10: Total SNCP | B10: =+'Manual Inputs'!G11 -> 9.283026726
A12: On-Peak Energy | B12: =SUMIF('Expanded kW'!C2:C8785,"ON",'Expanded kW'!F2:F8785) -> 6391.673225 | C12: =+B12/$B$14 -> 0.4399056327 | E12: Off-Peak SNCP LF | F12: =+B$14/B8/(TYDays*24) -> 0.1874918531
A13: Off-Peak Energy | B13: =SUMIF('Expanded kW'!C2:C8785,"OFF",'Expanded kW'!F2:F8785) -> 8137.973023 | C13: =+B13/$B$14 -> 0.5600943673 | E13: On-Peak SNCP LF | F13: =+B$14/B9/(TYDays*24) -> 0.1879388351
A14: Total Energy | B14: =SUM('Expanded kW'!F2:F8785) -> 14529.64625 | E14: Total SNCP LF | F14: =+B$14/B10/(TYDays*24) -> 0.1781858088
A16: NOTE: The data above is not expanded but instead is the output from Load Research data.

Sheet Peaks
A1: ='Manual Inputs'!D1 -> Kentucky Power Co.
A2: =+'Manual Inputs'!D2 -> Kentucky
A3: Peak and Off-Peak Statistics (kW)
A4: =CustClass & " Customers" -> Residential Customers
A5: =+'Monthly Data'!A5 -> For the Test Year Ended March 31, 2020
A6: =+'Monthly Data'!A6 -> Based on Sample Period Ended March 31, 2020
A9: Year | B9: Month | C9: Total Sample | D9: Total Expanded | F9: Customers | G9: Coincident Peak | H9: NCP Peak | I9: NCP Off-Peak | J9: NCP Total | K9: SNCP Peak | L9: SNCP Off-Peak | M9: SNCP Total
A10: =+'Manual Inputs'!A11 -> 2019 | B10: =+'Manual Inputs'!B11 -> 4 | C10: =SUMIF('Expanded kW'!$A$2:$A$8785,B10,'Expanded kW'!$F$2:$F$8785) -> 863.1773249 | D10: =SUMIF('Expanded kW'!$A$2:$A$8785,B10,'Expanded kW'!$H$2:$H$8785) -> 148178370 | F10: =+'Manual Inputs'!D11 -> 133754 | G10: =ROUND(VLOOKUP('Manual Inputs'!E27,'Expanded kW'!$D$2:$H$8785,5),0) -> 520623 | H10: =IF(C10=0,0,ROUND(+$D10/C10*'Monthly Data'!C11,0)) -> 536373 | I10: =IF(C10=0,0,ROUND(+$D10/C10*'Monthly Data'!E11,0)) -> 520623 | J10: =MAX(H10:I10) -> 536373 | K10: =IF($C10=0,0,+$D10/$C10*'LR Monthly'!G2) -> 1035475.74 | L10: =IF($C10=0,0,+$D10/$C10*'LR Monthly'!H2) -> 1016084.679 | M10: =IF($C10=0,0,+$D10/$C10*'LR Monthly'!F2) -> 1138663.352
A11: =+'Manual Inputs'!A12 -> 2019 | B11: =+'Manual Inputs'!B12 -> 5 | C11: =SUMIF('Expanded kW'!$A$2:$A$8785,B11,'Expanded kW'!$F$2:$F$8785) -> 957.1946427 | D11: =SUMIF('Expanded kW'!$A$2:$A$8785,B11,'Expanded kW'!$H$2:$H$8785) -> 117073247.7 | F11: =+'Manual Inputs'!D12 -> 133754 | G11: =ROUND(VLOOKUP('Manual Inputs'!E28,'Expanded kW'!$D$2:$H$8785,5),0) -> 326839 | H11: =IF(C11=0,0,ROUND(+$D11/C11*'Monthly Data'!C12,0)) -> 358697 | I11: =IF(C11=0,0,ROUND(+$D11/C11*'Monthly Data'!E12,0)) -> 356219 | J11: =MAX(H11:I11) -> 358697 | K11: =IF($C11=0,0,+$D11/$C11*'LR Monthly'!G3) -> 731672.7116 | L11: =IF($C11=0,0,+$D11/$C11*'LR Monthly'!H3) -> 706210.8134 | M11: =IF($C11=0,0,+$D11/$C11*'LR Monthly'!F3) -> 775229.1949
A12: =+'Manual Inputs'!A13 -> 2019 | B12: =+'Manual Inputs'!B13 -> 6 | C12: =SUMIF('Expanded kW'!$A$2:$A$8785,B12,'Expanded kW'!$F$2:$F$8785) -> 1033.807186 | D12: =SUMIF('Expanded kW'!$A$2:$A$8785,B12,'Expanded kW'!$H$2:$H$8785) -> 127459635.9 | F12: =+'Manual Inputs'!D13 -> 133754 | G12: =ROUND(VLOOKUP('Manual Inputs'!E29,'Expanded kW'!$D$2:$H$8785,5),0) -> 363289 | H12: =IF(C12=0,0,ROUND(+$D12/C12*'Monthly Data'!C13,0)) -> 368463 | I12: =IF(C12=0,0,ROUND(+$D12/C12*'Monthly Data'!E13,0)) -> 371842 | J12: 371842 | K12: =IF($C12=0,0,+$D12/$C12*'LR Monthly'!G4) -> 698335.0097 | L12: =IF($C12=0,0,+$D12/$C12*'LR Monthly'!H4) -> 711635.284 | M12: =IF($C12=0,0,+$D12/$C12*'LR Monthly'!F4) -> 758737.3712
A13: =+'Manual Inputs'!A14 -> 2019 | B13: =+'Manual Inputs'!B14 -> 7 | C13: =SUMIF('Expanded kW'!$A$2:$A$8785,B13,'Expanded kW'!$F$2:$F$8785) -> 1384.099231 | D13: =SUMIF('Expanded kW'!$A$2:$A$8785,B13,'Expanded kW'!$H$2:$H$8785) -> 156863468.3 | F13: =+'Manual Inputs'!D14 -> 133754 | G13: =ROUND(VLOOKUP('Manual Inputs'!E30,'Expanded kW'!$D$2:$H$8785,5),0) -> 364728 | H13: =IF(C13=0,0,ROUND(+$D13/C13*'Monthly Data'!C14,0)) -> 377173 | I13: =IF(C13=0,0,ROUND(+$D13/C13*'Monthly Data'!E14,0)) -> 382452 | J13: 382452 | K13: =IF($C13=0,0,+$D13/$C13*'LR Monthly'!G5) -> 697656.3838 | L13: =IF($C13=0,0,+$D13/$C13*'LR Monthly'!H5) -> 684111.5918 | M13: =IF($C13=0,0,+$D13/$C13*'LR Monthly'!F5) -> 737064.4816
A14: =+'Manual Inputs'!A15 -> 2019 | B14: =+'Manual Inputs'!B15 -> 8 | C14: =SUMIF('Expanded kW'!$A$2:$A$8785,B14,'Expanded kW'!$F$2:$F$8785) -> 1248.281456 | D14: =SUMIF('Expanded kW'!$A$2:$A$8785,B14,'Expanded kW'!$H$2:$H$8785) -> 163408561.8 | F14: =+'Manual Inputs'!D15 -> 133754 | G14: =ROUND(VLOOKUP('Manual Inputs'!E31,'Expanded kW'!$D$2:$H$8785,5),0) -> 385875 | H14: =IF(C14=0,0,ROUND(+$D14/C14*'Monthly Data'!C15,0)) -> 412864 | I14: =IF(C14=0,0,ROUND(+$D14/C14*'Monthly Data'!E15,0)) -> 421027 | J14: 421027 | K14: =IF($C14=0,0,+$D14/$C14*'LR Monthly'!G6) -> 760051.0964 | L14: =IF($C14=0,0,+$D14/$C14*'LR Monthly'!H6) -> 749643.6287 | M14: =IF($C14=0,0,+$D14/$C14*'LR Monthly'!F6) -> 803794.9875
A15: =+'Manual Inputs'!A16 -> 2019 | B15: =+'Manual Inputs'!B16 -> 9 | C15: =SUMIF('Expanded kW'!$A$2:$A$8785,B15,'Expanded kW'!$F$2:$F$8785) -> 1100.719158 | D15: =SUMIF('Expanded kW'!$A$2:$A$8785,B15,'Expanded kW'!$H$2:$H$8785) -> 151010592.5 | F15: =+'Manual Inputs'!D16 -> 133754 | G15: =ROUND(VLOOKUP('Manual Inputs'!E32,'Expanded kW'!$D$2:$H$8785,5),0) -> 387072 | H15: =IF(C15=0,0,ROUND(+$D15/C15*'Monthly Data'!C16,0)) -> 419681 | I15: =IF(C15=0,0,ROUND(+$D15/C15*'Monthly Data'!E16,0)) -> 393881 | J15: 419681 | K15: =IF($C15=0,0,+$D15/$C15*'LR Monthly'!G7) -> 812557.7353 | L15: =IF($C15=0,0,+$D15/$C15*'LR Monthly'!H7) -> 783627.6666 | M15: =IF($C15=0,0,+$D15/$C15*'LR Monthly'!F7) -> 872008.1864
A16: =+'Manual Inputs'!A17 -> 2019 | B16: =+'Manual Inputs'!B17 -> 10 | C16: =SUMIF('Expanded kW'!$A$2:$A$8785,B16,'Expanded kW'!$F$2:$F$8785) -> 868.3492292 | D16: =SUMIF('Expanded kW'!$A$2:$A$8785,B16,'Expanded kW'!$H$2:$H$8785) -> 110132323.7 | F16: =+'Manual Inputs'!D17 -> 133754 | G16: =ROUND(VLOOKUP('Manual Inputs'!E33,'Expanded kW'!$D$2:$H$8785,5),0) -> 344343 | H16: =IF(C16=0,0,ROUND(+$D16/C16*'Monthly Data'!C17,0)) -> 353469 | I16: =IF(C16=0,0,ROUND(+$D16/C16*'Monthly Data'!E17,0)) -> 268679 | J16: 353469 | K16: =IF($C16=0,0,+$D16/$C16*'LR Monthly'!G8) -> 758178.2009 | L16: =IF($C16=0,0,+$D16/$C16*'LR Monthly'!H8) -> 707870.1209 | M16: =IF($C16=0,0,+$D16/$C16*'LR Monthly'!F8) -> 819796.1968
A17: =+'Manual Inputs'!A18 -> 2019 | B17: =+'Manual Inputs'!B18 -> 11 | C17: =SUMIF('Expanded kW'!$A$2:$A$8785,B17,'Expanded kW'!$F$2:$F$8785) -> 1413.944768 | D17: =SUMIF('Expanded kW'!$A$2:$A$8785,B17,'Expanded kW'!$H$2:$H$8785) -> 126686260.1 | F17: =+'Manual Inputs'!D18 -> 133754 | G17: =ROUND(VLOOKUP('Manual Inputs'!E34,'Expanded kW'!$D$2:$H$8785,5),0) -> 376158 | H17: =IF(C17=0,0,ROUND(+$D17/C17*'Monthly Data'!C18,0)) -> 376158 | I17: =IF(C17=0,0,ROUND(+$D17/C17*'Monthly Data'!E18,0)) -> 363879 | J17: 376158 | K17: =IF($C17=0,0,+$D17/$C17*'LR Monthly'!G9) -> 620317.7463 | L17: =IF($C17=0,0,+$D17/$C17*'LR Monthly'!H9) -> 611904.8051 | M17: =IF($C17=0,0,+$D17/$C17*'LR Monthly'!F9) -> 670665.6085
A18: =+'Manual Inputs'!A19 -> 2019 | B18: =+'Manual Inputs'!B19 -> 12 | C18: =SUMIF('Expanded kW'!$A$2:$A$8785,B18,'Expanded kW'!$F$2:$F$8785) -> 1497.469546 | D18: =SUMIF('Expanded kW'!$A$2:$A$8785,B18,'Expanded kW'!$H$2:$H$8785) -> 196513334.3 | F18: =+'Manual Inputs'!D19 -> 133754 | G18: =ROUND(VLOOKUP('Manual Inputs'!E35,'Expanded kW'!$D$2:$H$8785,5),0) -> 480843 | H18: =IF(C18=0,0,ROUND(+$D18/C18*'Monthly Data'!C19,0)) -> 496644 | I18: =IF(C18=0,0,ROUND(+$D18/C18*'Monthly Data'!E19,0)) -> 466354 | J18: 496644 | K18: =IF($C18=0,0,+$D18/$C18*'LR Monthly'!G10) -> 913004.2835 | L18: =IF($C18=0,0,+$D18/$C18*'LR Monthly'!H10) -> 856094.8626 | M18: =IF($C18=0,0,+$D18/$C18*'LR Monthly'!F10) -> 958342.6679
A19: =+'Manual Inputs'!A20 -> 2020 | B19: =+'Manual Inputs'!B20 -> 1 | C19: =SUMIF('Expanded kW'!$A$2:$A$8785,B19,'Expanded kW'!$F$2:$F$8785) -> 1522.257329 | D19: =SUMIF('Expanded kW'!$A$2:$A$8785,B19,'Expanded kW'!$H$2:$H$8785) -> 261438442.8 | F19: =+'Manual Inputs'!D20 -> 133754 | G19: =ROUND(VLOOKUP('Manual Inputs'!E36,'Expanded kW'!$D$2:$H$8785,5),0) -> 714341 | H19: =IF(C19=0,0,ROUND(+$D19/C19*'Monthly Data'!C20,0)) -> 740646 | I19: =IF(C19=0,0,ROUND(+$D19/C19*'Monthly Data'!E20,0)) -> 746333 | J19: 746333 | K19: =IF($C19=0,0,+$D19/$C19*'LR Monthly'!G11) -> 1208373.326 | L19: =IF($C19=0,0,+$D19/$C19*'LR Monthly'!H11) -> 1207081.837 | M19: =IF($C19=0,0,+$D19/$C19*'LR Monthly'!F11) -> 1303431.623
A20: =+'Manual Inputs'!A21 -> 2020 | B20: =+'Manual Inputs'!B21 -> 2 | C20: =SUMIF('Expanded kW'!$A$2:$A$8785,B20,'Expanded kW'!$F$2:$F$8785) -> 1493.173283 | D20: =SUMIF('Expanded kW'!$A$2:$A$8785,B20,'Expanded kW'!$H$2:$H$8785) -> 231833012.7 | F20: =+'Manual Inputs'!D21 -> 133754 | G20: =ROUND(VLOOKUP('Manual Inputs'!E37,'Expanded kW'!$D$2:$H$8785,5),0) -> 632914 | H20: =IF(C20=0,0,ROUND(+$D20/C20*'Monthly Data'!C21,0)) -> 573574 | I20: =IF(C20=0,0,ROUND(+$D20/C20*'Monthly Data'!E21,0)) -> 649049 | J20: 649049 | K20: =IF($C20=0,0,+$D20/$C20*'LR Monthly'!G12) -> 1061892.766 | L20: =IF($C20=0,0,+$D20/$C20*'LR Monthly'!H12) -> 1136251.835 | M20: =IF($C20=0,0,+$D20/$C20*'LR Monthly'!F12) -> 1189422.58
A21: =+'Manual Inputs'!A22 -> 2020 | B21: =+'Manual Inputs'!B22 -> 3 | C21: =SUMIF('Expanded kW'!$A$2:$A$8785,B21,'Expanded kW'!$F$2:$F$8785) -> 1147.173094 | D21: =SUMIF('Expanded kW'!$A$2:$A$8785,B21,'Expanded kW'!$H$2:$H$8785) -> 201810078.6 | F21: =+'Manual Inputs'!D22 -> 133754 | G21: =ROUND(VLOOKUP('Manual Inputs'!E38,'Expanded kW'!$D$2:$H$8785,5),0) -> 607437 | H21: =IF(C21=0,0,ROUND(+$D21/C21*'Monthly Data'!C22,0)) -> 471707 | I21: =IF(C21=0,0,ROUND(+$D21/C21*'Monthly Data'!E22,0)) -> 655129 | J21: 655129 | K21: =IF($C21=0,0,+$D21/$C21*'LR Monthly'!G13) -> 1081625.149 | L21: =IF($C21=0,0,+$D21/$C21*'LR Monthly'!H13) -> 1203711.129 | M21: =IF($C21=0,0,+$D21/$C21*'LR Monthly'!F13) -> 1271070.056
A23: Total | C23: =SUM(C10:C21) -> 14529.64625 | D23: =SUM(D10:D21) -> 1992407328 | F23: =SUM(F10:F21) -> 1605048 | G23: 5504462 | H23: 5485449 | I23: 5595467 | J23: 5766854 | K23: 10379140.15 | L23: 10374228.25 | M23: 11298226.31
A24: Average | C24: =+C23/12 -> 1210.803854 | D24: =+D23/12 -> 166033944 | F24: =+F23/12 -> 133754 | G24: 458705.1667 | H24: 457120.75 | I24: 466288.9167 | J24: 480571.1667 | K24: 864928.3457 | L24: 864519.0211 | M24: 941518.8588
A25: Maximum | C25: =MAX(C10:C21) -> 1522.257329 | D25: =MAX(D10:D21) -> 261438442.8 | G25: =MAX(G10:G21) -> 714341 | H25: 740646 | I25: 746333 | J25: 746333 | K25: 1208373.326 | L25: 1207081.837 | M25: 1303431.623
A27: Annual SNCP | K27: =MAX(+Summary!B8*Peaks!D23/Peaks!C23,K25) -> 1209771.647 | L27: =MAX(+Summary!B9*Peaks!D23/Peaks!C23,L25) -> 1207081.837 | M27: =MAX(+Summary!B10*Peaks!D23/Peaks!C23,M25) -> 1303431.623

Sheet Load Factors
A1: ='Manual Inputs'!D1 -> Kentucky Power Co.
A2: =+'Manual Inputs'!D2 -> Kentucky
A3: Load Factor Report
A4: =CustClass & " Customers" -> Residential Customers
A5: =+'Monthly Data'!A5 -> For the Test Year Ended March 31, 2020
A6: =+'Monthly Data'!A6 -> Based on Sample Period Ended March 31, 2020
D8: NCP | H8: SNCP
A9: Year | B9: Month | C9: Coincidence Ratio | D9: Peak LF | E9: Off-Peak LF | F9: Total LF | H9: Peak LF | I9: Off-Peak LF | J9: Total LF
A10: =+'Manual Inputs'!A11 -> 2019 | B10: =+'Manual Inputs'!B11 -> 4 | C10: =IF(Peaks!J10=0,0,+Peaks!G10/Peaks!J10) -> 0.9706361058 | D10: =IF(Peaks!H10=0,0,Peaks!$D10/Peaks!H10/COUNTIF('Expanded kW'!$A$2:$A$8785,'Load Factors'!$B10)) -> 0.3836943539 | E10: =IF(Peaks!I10=0,0,Peaks!$D10/Peaks!I10/COUNTIF('Expanded kW'!$A$2:$A$8785,'Load Factors'!$B10)) -> 0.3953019587 | F10: =IF(Peaks!J10=0,0,Peaks!$D10/Peaks!J10/COUNTIF('Expanded kW'!$A$2:$A$8785,'Load Factors'!$B10)) -> 0.3836943539 | H10: =IF(Peaks!K10=0,0,Peaks!$D10/Peaks!K10/COUNTIF('Expanded kW'!$A$2:$A$8785,'Load Factors'!$B10)) -> 0.1987524031 | I10: =IF(Peaks!L10=0,0,Peaks!$D10/Peaks!L10/COUNTIF('Expanded kW'!$A$2:$A$8785,'Load Factors'!$B10)) -> 0.2025454137 | J10: =IF(Peaks!M10=0,0,Peaks!$D10/Peaks!M10/COUNTIF('Expanded kW'!$A$2:$A$8785,'Load Factors'!$B10)) -> 0.1807411219
A11: =+'Manual Inputs'!A12 -> 2019 | B11: =+'Manual Inputs'!B12 -> 5 | C11: =IF(Peaks!J11=0,0,+Peaks!G11/Peaks!J11) -> 0.9111840913 | D11: =IF(Peaks!H11=0,0,Peaks!$D11/Peaks!H11/COUNTIF('Expanded kW'!$A$2:$A$8785,'Load Factors'!$B11)) -> 0.438689244 | E11: =IF(Peaks!I11=0,0,Peaks!$D11/Peaks!I11/COUNTIF('Expanded kW'!$A$2:$A$8785,'Load Factors'!$B11)) -> 0.4417409396 | F11: =IF(Peaks!J11=0,0,Peaks!$D11/Peaks!J11/COUNTIF('Expanded kW'!$A$2:$A$8785,'Load Factors'!$B11)) -> 0.438689244 | H11: =IF(Peaks!K11=0,0,Peaks!$D11/Peaks!K11/COUNTIF('Expanded kW'!$A$2:$A$8785,'Load Factors'!$B11)) -> 0.2150640761 | I11: =IF(Peaks!L11=0,0,Peaks!$D11/Peaks!L11/COUNTIF('Expanded kW'!$A$2:$A$8785,'Load Factors'!$B11)) -> 0.2228180492 | J11: =IF(Peaks!M11=0,0,Peaks!$D11/Peaks!M11/COUNTIF('Expanded kW'!$A$2:$A$8785,'Load Factors'!$B11)) -> 0.202980637
A12: =+'Manual Inputs'!A13 -> 2019 | B12: =+'Manual Inputs'!B13 -> 6 | C12: =IF(Peaks!J12=0,0,+Peaks!G12/Peaks!J12) -> 0.976998295 | D12: =IF(Peaks!H12=0,0,Peaks!$D12/Peaks!H12/COUNTIF('Expanded kW'!$A$2:$A$8785,'Load Factors'!$B12)) -> 0.480447893 | E12: =IF(Peaks!I12=0,0,Peaks!$D12/Peaks!I12/COUNTIF('Expanded kW'!$A$2:$A$8785,'Load Factors'!$B12)) -> 0.4760819703 | F12: =IF(Peaks!J12=0,0,Peaks!$D12/Peaks!J12/COUNTIF('Expanded kW'!$A$2:$A$8785,'Load Factors'!$B12)) -> 0.4760819703 | H12: =IF(Peaks!K12=0,0,Peaks!$D12/Peaks!K12/COUNTIF('Expanded kW'!$A$2:$A$8785,'Load Factors'!$B12)) -> 0.253499065 | I12: =IF(Peaks!L12=0,0,Peaks!$D12/Peaks!L12/COUNTIF('Expanded kW'!$A$2:$A$8785,'Load Factors'!$B12)) -> 0.2487612348 | J12: =IF(Peaks!M12=0,0,Peaks!$D12/Peaks!M12/COUNTIF('Expanded kW'!$A$2:$A$8785,'Load Factors'!$B12)) -> 0.2333182452
A13: =+'Manual Inputs'!A14 -> 2019 | B13: =+'Manual Inputs'!B14 -> 7 | C13: =IF(Peaks!J13=0,0,+Peaks!G13/Peaks!J13) -> 0.9536569295 | D13: =IF(Peaks!H13=0,0,Peaks!$D13/Peaks!H13/COUNTIF('Expanded kW'!$A$2:$A$8785,'Load Factors'!$B13)) -> 0.5589954611 | E13: =IF(Peaks!I13=0,0,Peaks!$D13/Peaks!I13/COUNTIF('Expanded kW'!$A$2:$A$8785,'Load Factors'!$B13)) -> 0.5512796247 | F13: =IF(Peaks!J13=0,0,Peaks!$D13/Peaks!J13/COUNTIF('Expanded kW'!$A$2:$A$8785,'Load Factors'!$B13)) -> 0.5512796247 | H13: =IF(Peaks!K13=0,0,Peaks!$D13/Peaks!K13/COUNTIF('Expanded kW'!$A$2:$A$8785,'Load Factors'!$B13)) -> 0.3022089383 | I13: =IF(Peaks!L13=0,0,Peaks!$D13/Peaks!L13/COUNTIF('Expanded kW'!$A$2:$A$8785,'Load Factors'!$B13)) -> 0.3081924025 | J13: =IF(Peaks!M13=0,0,Peaks!$D13/Peaks!M13/COUNTIF('Expanded kW'!$A$2:$A$8785,'Load Factors'!$B13)) -> 0.2860509498
A14: =+'Manual Inputs'!A15 -> 2019 | B14: =+'Manual Inputs'!B15 -> 8 | C14: =IF(Peaks!J14=0,0,+Peaks!G14/Peaks!J14) -> 0.9165089175 | D14: =IF(Peaks!H14=0,0,Peaks!$D14/Peaks!H14/COUNTIF('Expanded kW'!$A$2:$A$8785,'Load Factors'!$B14)) -> 0.5319794502 | E14: =IF(Peaks!I14=0,0,Peaks!$D14/Peaks!I14/COUNTIF('Expanded kW'!$A$2:$A$8785,'Load Factors'!$B14)) -> 0.5216652702 | F14: =IF(Peaks!J14=0,0,Peaks!$D14/Peaks!J14/COUNTIF('Expanded kW'!$A$2:$A$8785,'Load Factors'!$B14)) -> 0.5216652702 | H14: =IF(Peaks!K14=0,0,Peaks!$D14/Peaks!K14/COUNTIF('Expanded kW'!$A$2:$A$8785,'Load Factors'!$B14)) -> 0.2889742081 | I14: =IF(Peaks!L14=0,0,Peaks!$D14/Peaks!L14/COUNTIF('Expanded kW'!$A$2:$A$8785,'Load Factors'!$B14)) -> 0.2929861007 | J14: =IF(Peaks!M14=0,0,Peaks!$D14/Peaks!M14/COUNTIF('Expanded kW'!$A$2:$A$8785,'Load Factors'!$B14)) -> 0.27324774
A15: =+'Manual Inputs'!A16 -> 2019 | B15: =+'Manual Inputs'!B16 -> 9 | C15: =IF(Peaks!J15=0,0,+Peaks!G15/Peaks!J15) -> 0.9223005092 | D15: =IF(Peaks!H15=0,0,Peaks!$D15/Peaks!H15/COUNTIF('Expanded kW'!$A$2:$A$8785,'Load Factors'!$B15)) -> 0.4997532269 | E15: =IF(Peaks!I15=0,0,Peaks!$D15/Peaks!I15/COUNTIF('Expanded kW'!$A$2:$A$8785,'Load Factors'!$B15)) -> 0.5324880713 | F15: =IF(Peaks!J15=0,0,Peaks!$D15/Peaks!J15/COUNTIF('Expanded kW'!$A$2:$A$8785,'Load Factors'!$B15)) -> 0.4997532269 | H15: =IF(Peaks!K15=0,0,Peaks!$D15/Peaks!K15/COUNTIF('Expanded kW'!$A$2:$A$8785,'Load Factors'!$B15)) -> 0.2581194233 | I15: =IF(Peaks!L15=0,0,Peaks!$D15/Peaks!L15/COUNTIF('Expanded kW'!$A$2:$A$8785,'Load Factors'!$B15)) -> 0.2676487099 | J15: =IF(Peaks!M15=0,0,Peaks!$D15/Peaks!M15/COUNTIF('Expanded kW'!$A$2:$A$8785,'Load Factors'!$B15)) -> 0.2405217489
A16: =+'Manual Inputs'!A17 -> 2019 | B16: =+'Manual Inputs'!B17 -> 10 | C16: =IF(Peaks!J16=0,0,+Peaks!G16/Peaks!J16) -> 0.9741816114 | D16: =IF(Peaks!H16=0,0,Peaks!$D16/Peaks!H16/COUNTIF('Expanded kW'!$A$2:$A$8785,'Load Factors'!$B16)) -> 0.4187844387 | E16: =IF(Peaks!I16=0,0,Peaks!$D16/Peaks!I16/COUNTIF('Expanded kW'!$A$2:$A$8785,'Load Factors'!$B16)) -> 0.5509448701 | F16: =IF(Peaks!J16=0,0,Peaks!$D16/Peaks!J16/COUNTIF('Expanded kW'!$A$2:$A$8785,'Load Factors'!$B16)) -> 0.4187844387 | H16: =IF(Peaks!K16=0,0,Peaks!$D16/Peaks!K16/COUNTIF('Expanded kW'!$A$2:$A$8785,'Load Factors'!$B16)) -> 0.1952407977 | I16: =IF(Peaks!L16=0,0,Peaks!$D16/Peaks!L16/COUNTIF('Expanded kW'!$A$2:$A$8785,'Load Factors'!$B16)) -> 0.2091164924 | J16: =IF(Peaks!M16=0,0,Peaks!$D16/Peaks!M16/COUNTIF('Expanded kW'!$A$2:$A$8785,'Load Factors'!$B16)) -> 0.1805659959
A17: =+'Manual Inputs'!A18 -> 2019 | B17: =+'Manual Inputs'!B18 -> 11 | C17: =IF(Peaks!J17=0,0,+Peaks!G17/Peaks!J17) -> 1 | D17: =IF(Peaks!H17=0,0,Peaks!$D17/Peaks!H17/COUNTIF('Expanded kW'!$A$2:$A$8785,'Load Factors'!$B17)) -> 0.4677639157 | E17: =IF(Peaks!I17=0,0,Peaks!$D17/Peaks!I17/COUNTIF('Expanded kW'!$A$2:$A$8785,'Load Factors'!$B17)) -> 0.4835484845 | F17: =IF(Peaks!J17=0,0,Peaks!$D17/Peaks!J17/COUNTIF('Expanded kW'!$A$2:$A$8785,'Load Factors'!$B17)) -> 0.4677639157 | H17: =IF(Peaks!K17=0,0,Peaks!$D17/Peaks!K17/COUNTIF('Expanded kW'!$A$2:$A$8785,'Load Factors'!$B17)) -> 0.2836500165 | I17: =IF(Peaks!L17=0,0,Peaks!$D17/Peaks!L17/COUNTIF('Expanded kW'!$A$2:$A$8785,'Load Factors'!$B17)) -> 0.2875498566 | J17: =IF(Peaks!M17=0,0,Peaks!$D17/Peaks!M17/COUNTIF('Expanded kW'!$A$2:$A$8785,'Load Factors'!$B17)) -> 0.262355989
A18: =+'Manual Inputs'!A19 -> 2019 | B18: =+'Manual Inputs'!B19 -> 12 | C18: =IF(Peaks!J18=0,0,+Peaks!G18/Peaks!J18) -> 0.9681844541 | D18: =IF(Peaks!H18=0,0,Peaks!$D18/Peaks!H18/COUNTIF('Expanded kW'!$A$2:$A$8785,'Load Factors'!$B18)) -> 0.5318313031 | E18: =IF(Peaks!I18=0,0,Peaks!$D18/Peaks!I18/COUNTIF('Expanded kW'!$A$2:$A$8785,'Load Factors'!$B18)) -> 0.5663740972 | F18: =IF(Peaks!J18=0,0,Peaks!$D18/Peaks!J18/COUNTIF('Expanded kW'!$A$2:$A$8785,'Load Factors'!$B18)) -> 0.5318313031 | H18: =IF(Peaks!K18=0,0,Peaks!$D18/Peaks!K18/COUNTIF('Expanded kW'!$A$2:$A$8785,'Load Factors'!$B18)) -> 0.2892985613 | I18: =IF(Peaks!L18=0,0,Peaks!$D18/Peaks!L18/COUNTIF('Expanded kW'!$A$2:$A$8785,'Load Factors'!$B18)) -> 0.3085298572 | J18: =IF(Peaks!M18=0,0,Peaks!$D18/Peaks!M18/COUNTIF('Expanded kW'!$A$2:$A$8785,'Load Factors'!$B18)) -> 0.2756120901
A19: =+'Manual Inputs'!A20 -> 2020 | B19: =+'Manual Inputs'!B20 -> 1 | C19: =IF(Peaks!J19=0,0,+Peaks!G19/Peaks!J19) -> 0.9571344159 | D19: =IF(Peaks!H19=0,0,Peaks!$D19/Peaks!H19/COUNTIF('Expanded kW'!$A$2:$A$8785,'Load Factors'!$B19)) -> 0.4744449527 | E19: =IF(Peaks!I19=0,0,Peaks!$D19/Peaks!I19/COUNTIF('Expanded kW'!$A$2:$A$8785,'Load Factors'!$B19)) -> 0.4708297187 | F19: =IF(Peaks!J19=0,0,Peaks!$D19/Peaks!J19/COUNTIF('Expanded kW'!$A$2:$A$8785,'Load Factors'!$B19)) -> 0.4708297187 | H19: =IF(Peaks!K19=0,0,Peaks!$D19/Peaks!K19/COUNTIF('Expanded kW'!$A$2:$A$8785,'Load Factors'!$B19)) -> 0.2908006564 | I19: =IF(Peaks!L19=0,0,Peaks!$D19/Peaks!L19/COUNTIF('Expanded kW'!$A$2:$A$8785,'Load Factors'!$B19)) -> 0.2911117919 | J19: =IF(Peaks!M19=0,0,Peaks!$D19/Peaks!M19/COUNTIF('Expanded kW'!$A$2:$A$8785,'Load Factors'!$B19)) -> 0.2695927813
A20: =+'Manual Inputs'!A21 -> 2020 | B20: =+'Manual Inputs'!B21 -> 2 | C20: =IF(Peaks!J20=0,0,+Peaks!G20/Peaks!J20) -> 0.9751405518 | D20: =IF(Peaks!H20=0,0,Peaks!$D20/Peaks!H20/COUNTIF('Expanded kW'!$A$2:$A$8785,'Load Factors'!$B20)) -> 0.5807331035 | E20: =IF(Peaks!I20=0,0,Peaks!$D20/Peaks!I20/COUNTIF('Expanded kW'!$A$2:$A$8785,'Load Factors'!$B20)) -> 0.513202253 | F20: =IF(Peaks!J20=0,0,Peaks!$D20/Peaks!J20/COUNTIF('Expanded kW'!$A$2:$A$8785,'Load Factors'!$B20)) -> 0.513202253 | H20: =IF(Peaks!K20=0,0,Peaks!$D20/Peaks!K20/COUNTIF('Expanded kW'!$A$2:$A$8785,'Load Factors'!$B20)) -> 0.3136789513 | I20: =IF(Peaks!L20=0,0,Peaks!$D20/Peaks!L20/COUNTIF('Expanded kW'!$A$2:$A$8785,'Load Factors'!$B20)) -> 0.2931510419 | J20: =IF(Peaks!M20=0,0,Peaks!$D20/Peaks!M20/COUNTIF('Expanded kW'!$A$2:$A$8785,'Load Factors'!$B20)) -> 0.2800463139
A21: =+'Manual Inputs'!A22 -> 2020 | B21: =+'Manual Inputs'!B22 -> 3 | C21: =IF(Peaks!J21=0,0,+Peaks!G21/Peaks!J21) -> 0.9272021236 | D21: =IF(Peaks!H21=0,0,Peaks!$D21/Peaks!H21/COUNTIF('Expanded kW'!$A$2:$A$8785,'Load Factors'!$B21)) -> 0.5750393902 | E21: =IF(Peaks!I21=0,0,Peaks!$D21/Peaks!I21/COUNTIF('Expanded kW'!$A$2:$A$8785,'Load Factors'!$B21)) -> 0.4140407548 | F21: =IF(Peaks!J21=0,0,Peaks!$D21/Peaks!J21/COUNTIF('Expanded kW'!$A$2:$A$8785,'Load Factors'!$B21)) -> 0.4140407548 | H21: =IF(Peaks!K21=0,0,Peaks!$D21/Peaks!K21/COUNTIF('Expanded kW'!$A$2:$A$8785,'Load Factors'!$B21)) -> 0.2507801393 | I21: =IF(Peaks!L21=0,0,Peaks!$D21/Peaks!L21/COUNTIF('Expanded kW'!$A$2:$A$8785,'Load Factors'!$B21)) -> 0.2253448514 | J21: =IF(Peaks!M21=0,0,Peaks!$D21/Peaks!M21/COUNTIF('Expanded kW'!$A$2:$A$8785,'Load Factors'!$B21)) -> 0.2134029548
A23: Average | C23: =AVERAGE(Peaks!G10:G21)/AVERAGE(Peaks!J10:J21) -> 0.9544999752 | D23: =+Peaks!$D24/Peaks!H24/(TYDays*24/12) -> 0.4961978381 | E23: =+Peaks!$D24/Peaks!I24/(TYDays*24/12) -> 0.4864416026 | F23: =+Peaks!$D24/Peaks!J24/(TYDays*24/12) -> 0.4719848872 | H23: =+Peaks!$D24/Peaks!K24/(TYDays*24/12) -> 0.262244068 | I23: =+Peaks!$D24/Peaks!L24/(TYDays*24/12) -> 0.2623682329 | J23: =+Peaks!$D24/Peaks!M24/(TYDays*24/12) -> 0.240911083

Sheet On,Off Peak kWh
A1: ='Manual Inputs'!D1 -> Kentucky Power Co.
A2: =+'Manual Inputs'!D2 -> Kentucky
A3: On and Off Peak Energy Summary
A4: =CustClass & " Customers" -> Residential Customers
A5: =+'Monthly Data'!A5 -> For the Test Year Ended March 31, 2020
A6: =+'Monthly Data'!A6 -> Based on Sample Period Ended March 31, 2020
C10: TY kWh | E10: kWh Peak | F10: % Peak | H10: kWh Off-Peak | I10: % Off-Peak
A11: =+'Manual Inputs'!A11 -> 2019 | B11: =+'Manual Inputs'!B11 -> 4 | C11: =SUMIF('Expanded kW'!$A$2:$A$8785,B11,'Expanded kW'!$H$2:$H$8785) -> 148178370 | E11: =SUMIFS('Expanded kW'!$H$2:$H$8785,'Expanded kW'!$A$2:$A$8785,$B11,'Expanded kW'!$C$2:$C$8785,"ON") -> 66871737.53 | F11: =IF(C11=0,0,+E11/C11) -> 0.4512921659 | H11: =SUMIFS('Expanded kW'!$H$2:$H$8785,'Expanded kW'!$A$2:$A$8785,$B11,'Expanded kW'!$C$2:$C$8785,"OFF") -> 81306632.47 | I11: =IF(C11=0,0,+H11/C11) -> 0.5487078341
A12: =+'Manual Inputs'!A12 -> 2019 | B12: =+'Manual Inputs'!B12 -> 5 | C12: =SUMIF('Expanded kW'!$A$2:$A$8785,B12,'Expanded kW'!$H$2:$H$8785) -> 117073247.7 | E12: =SUMIFS('Expanded kW'!$H$2:$H$8785,'Expanded kW'!$A$2:$A$8785,$B12,'Expanded kW'!$C$2:$C$8785,"ON") -> 57718782.1 | F12: =IF(C12=0,0,+E12/C12) -> 0.4930142729 | H12: =SUMIFS('Expanded kW'!$H$2:$H$8785,'Expanded kW'!$A$2:$A$8785,$B12,'Expanded kW'!$C$2:$C$8785,"OFF") -> 59354465.63 | I12: =IF(C12=0,0,+H12/C12) -> 0.5069857271
A13: =+'Manual Inputs'!A13 -> 2019 | B13: =+'Manual Inputs'!B13 -> 6 | C13: =SUMIF('Expanded kW'!$A$2:$A$8785,B13,'Expanded kW'!$H$2:$H$8785) -> 127459635.9 | E13: =SUMIFS('Expanded kW'!$H$2:$H$8785,'Expanded kW'!$A$2:$A$8785,$B13,'Expanded kW'!$C$2:$C$8785,"ON") -> 55971790.01 | F13: 0.439133453 | H13: =SUMIFS('Expanded kW'!$H$2:$H$8785,'Expanded kW'!$A$2:$A$8785,$B13,'Expanded kW'!$C$2:$C$8785,"OFF") -> 71487845.84 | I13: 0.560866547
A14: =+'Manual Inputs'!A14 -> 2019 | B14: =+'Manual Inputs'!B14 -> 7 | C14: =SUMIF('Expanded kW'!$A$2:$A$8785,B14,'Expanded kW'!$H$2:$H$8785) -> 156863468.3 | E14: =SUMIFS('Expanded kW'!$H$2:$H$8785,'Expanded kW'!$A$2:$A$8785,$B14,'Expanded kW'!$C$2:$C$8785,"ON") -> 77482431.93 | F14: 0.4939482262 | H14: =SUMIFS('Expanded kW'!$H$2:$H$8785,'Expanded kW'!$A$2:$A$8785,$B14,'Expanded kW'!$C$2:$C$8785,"OFF") -> 79381036.39 | I14: 0.5060517738
A15: =+'Manual Inputs'!A15 -> 2019 | B15: =+'Manual Inputs'!B15 -> 8 | C15: =SUMIF('Expanded kW'!$A$2:$A$8785,B15,'Expanded kW'!$H$2:$H$8785) -> 163408561.8 | E15: =SUMIFS('Expanded kW'!$H$2:$H$8785,'Expanded kW'!$A$2:$A$8785,$B15,'Expanded kW'!$C$2:$C$8785,"ON") -> 78617281.99 | F15: 0.4811087076 | H15: =SUMIFS('Expanded kW'!$H$2:$H$8785,'Expanded kW'!$A$2:$A$8785,$B15,'Expanded kW'!$C$2:$C$8785,"OFF") -> 84791279.82 | I15: 0.5188912924
A16: =+'Manual Inputs'!A16 -> 2019 | B16: =+'Manual Inputs'!B16 -> 9 | C16: =SUMIF('Expanded kW'!$A$2:$A$8785,B16,'Expanded kW'!$H$2:$H$8785) -> 151010592.5 | E16: =SUMIFS('Expanded kW'!$H$2:$H$8785,'Expanded kW'!$A$2:$A$8785,$B16,'Expanded kW'!$C$2:$C$8785,"ON") -> 71430130.74 | F16: 0.473014042 | H16: =SUMIFS('Expanded kW'!$H$2:$H$8785,'Expanded kW'!$A$2:$A$8785,$B16,'Expanded kW'!$C$2:$C$8785,"OFF") -> 79580461.77 | I16: 0.526985958
A17: =+'Manual Inputs'!A17 -> 2019 | B17: =+'Manual Inputs'!B17 -> 10 | C17: =SUMIF('Expanded kW'!$A$2:$A$8785,B17,'Expanded kW'!$H$2:$H$8785) -> 110132323.7 | E17: =SUMIFS('Expanded kW'!$H$2:$H$8785,'Expanded kW'!$A$2:$A$8785,$B17,'Expanded kW'!$C$2:$C$8785,"ON") -> 51947766.18 | F17: 0.47168501 | H17: =SUMIFS('Expanded kW'!$H$2:$H$8785,'Expanded kW'!$A$2:$A$8785,$B17,'Expanded kW'!$C$2:$C$8785,"OFF") -> 58184557.48 | I17: 0.52831499
A18: =+'Manual Inputs'!A18 -> 2019 | B18: =+'Manual Inputs'!B18 -> 11 | C18: =SUMIF('Expanded kW'!$A$2:$A$8785,B18,'Expanded kW'!$H$2:$H$8785) -> 126686260.1 | E18: =SUMIFS('Expanded kW'!$H$2:$H$8785,'Expanded kW'!$A$2:$A$8785,$B18,'Expanded kW'!$C$2:$C$8785,"ON") -> 49005592.02 | F18: 0.3868264166 | H18: =SUMIFS('Expanded kW'!$H$2:$H$8785,'Expanded kW'!$A$2:$A$8785,$B18,'Expanded kW'!$C$2:$C$8785,"OFF") -> 77680668.05 | I18: 0.6131735834
A19: =+'Manual Inputs'!A19 -> 2019 | B19: =+'Manual Inputs'!B19 -> 12 | C19: =SUMIF('Expanded kW'!$A$2:$A$8785,B19,'Expanded kW'!$H$2:$H$8785) -> 196513334.3 | E19: =SUMIFS('Expanded kW'!$H$2:$H$8785,'Expanded kW'!$A$2:$A$8785,$B19,'Expanded kW'!$C$2:$C$8785,"ON") -> 83982960.59 | F19: 0.4273652008 | H19: =SUMIFS('Expanded kW'!$H$2:$H$8785,'Expanded kW'!$A$2:$A$8785,$B19,'Expanded kW'!$C$2:$C$8785,"OFF") -> 112530373.7 | I19: 0.5726347992
A20: =+'Manual Inputs'!A20 -> 2020 | B20: =+'Manual Inputs'!B20 -> 1 | C20: =SUMIF('Expanded kW'!$A$2:$A$8785,B20,'Expanded kW'!$H$2:$H$8785) -> 261438442.8 | E20: =SUMIFS('Expanded kW'!$H$2:$H$8785,'Expanded kW'!$A$2:$A$8785,$B20,'Expanded kW'!$C$2:$C$8785,"ON") -> 113454592.2 | F20: 0.4339629283 | H20: =SUMIFS('Expanded kW'!$H$2:$H$8785,'Expanded kW'!$A$2:$A$8785,$B20,'Expanded kW'!$C$2:$C$8785,"OFF") -> 147983850.6 | I20: 0.5660370717
A21: =+'Manual Inputs'!A21 -> 2020 | B21: =+'Manual Inputs'!B21 -> 2 | C21: =SUMIF('Expanded kW'!$A$2:$A$8785,B21,'Expanded kW'!$H$2:$H$8785) -> 231833012.7 | E21: =SUMIFS('Expanded kW'!$H$2:$H$8785,'Expanded kW'!$A$2:$A$8785,$B21,'Expanded kW'!$C$2:$C$8785,"ON") -> 88904003.36 | F21: 0.3834829316 | H21: =SUMIFS('Expanded kW'!$H$2:$H$8785,'Expanded kW'!$A$2:$A$8785,$B21,'Expanded kW'!$C$2:$C$8785,"OFF") -> 142929009.4 | I21: 0.6165170684
A22: =+'Manual Inputs'!A22 -> 2020 | B22: =+'Manual Inputs'!B22 -> 3 | C22: =SUMIF('Expanded kW'!$A$2:$A$8785,B22,'Expanded kW'!$H$2:$H$8785) -> 201810078.6 | E22: =SUMIFS('Expanded kW'!$H$2:$H$8785,'Expanded kW'!$A$2:$A$8785,$B22,'Expanded kW'!$C$2:$C$8785,"ON") -> 77692276.69 | F22: 0.3849771886 | H22: =SUMIFS('Expanded kW'!$H$2:$H$8785,'Expanded kW'!$A$2:$A$8785,$B22,'Expanded kW'!$C$2:$C$8785,"OFF") -> 124117801.9 | I22: 0.6150228114
A24: 12-Month Total | C24: =SUM(C11:C22) -> 1992407328 | E24: =SUM(E11:E22) -> 873079345.3 | F24: 0.4382032393 | H24: =SUM(H11:H22) -> 1119327983 | I24: 0.5617967607
